{"text_format":"1","workbook":"xlsx","n_sheets":23,"sheets":["説明","会社データ","申請書","役員等の一覧表","営業所一覧表（更新）","手数料","専技一覧表","誓約書","令３条","営業の沿革","団体","健保等","金融機関","経管","経管略歴書","略歴書","令3略歴書","株主調書","行政書士委任状","登記されていない申請書","都道府県・知事一覧など","(般)有資格コード","(特)有資格コード"],"not_rendered":{"charts":0,"images":9,"macros":1,"external_links":0,"defined_names":16,"comments":11,"pivot_tables":0},"unopened":[],"bounds":{"document_bytes":16777216,"sheet_cells":100000,"rows_first":2000,"rows_last":500,"rows_between":2000,"halvings":0,"cell_chars":16384,"cell_head_chars":4096},"cells_cut":0,"cells_raw":0,"read":"whole","date_system":"1900"}

{"sheet":"説明","index":0,"n_rows":205,"n_cols":2,"rows_kept":205,"cut":false,"hidden":false,"merged":[[0,0,0,1]]}
["建設業許可申請スーパーセットブック　Ver.2.00／更新用"]
[null,"2015.4.1施行規則改正版"]
[]
[null,"とにかく、必ず、以下をお読み下さい。当様式（ソフト）使用時の疑問等に対する答えは、ほぼすべてここに書いてあります。\nExcel操作についての疑問は、ご自身で解決して下さい。\nExcelのセキュリティレベルは「中」以下に設定し、また、マクロは有効にしてください。"]
["概要","このブックは、建設業許可申請に必要な書類（事業年度終了届を除く）を作成するためのブックです。\n新規･更新･変更はこのブック１つで作成できます。\n同じ項目の重複入力をできるだけしないで済むように、うっかり記入を忘れてしまいがちな部分を自動で入力、県名を入力すれば知事名が出てくる、市区町村名を入力すれば市区町村コードが出てくる・・・など、お助け機能盛りだくさんです！\n"]
[null,"これは、再審査に使用する部分のみの抜粋版です。"]
[null,"財務諸表については、税務署に提出した決算書類の数値を入力してゆくことにより、建設業財務諸表様式である「千円未満の丸め」を自動的に行い、かつ、合計部分については、1の位までの合計額を丸めるような機能になっています。「完成工事原価」についても、「期首仕掛工事高」・「期末仕掛工事高」を消滅させ、各工事原価科目に比例按分する機能も付いています。なお、税込経理にて処理されているものを、税抜経理処理に自動的にするような機能及び勘定科目を建設業会計のものに自動振替するというような機能は付いておりません。"]
[null,"申請書類のうち、不必要なシートは削除して構いません。（ただし元に戻せません）\nフォントなどの書式変更も可能です。\n代理人（作成者）欄は、不要の場合はDeleteして下さい。"]
[]
["入力","「会社データ」シートへの入力"]
[null,"まず、「会社データ」のシートに、入力方法のコメントに沿って必要事項を入力してください。商号・所在地など、各書類に頻繁に出てくる項目の入力の手間を省くことができます。"]
[]
[null,"「申請書」シートなどへの入力"]
[null,"次に、各シート（様式）への入力です。\n「会社データ」シートから転記されている部分は既に表示されているはずです。ここで、表示がおかしかったら、「会社データ」シートに戻って、再度正しく入力してください。"]
[]
[null,"それぞれのシート（様式）には、入力の方法の説明がコメントでついていますので、それに従ってください。\n入力用のボタンがある場合もあります。"]
[null,"工事経歴書"]
[null,"1業種に付き1シートで作成してください。複数業種ある場合は、シートコピーしてください。"]
[]
[null,"財務諸表"]
[null,"貸借対照表・損益計算書・工事原価報告書･株主資本等変動計算書･兼業事業原価報告書は、黄色いセルに１の位までの額を入力してください。注記表は、右端のセルに適宜入力してください。\n建設業財務諸表では、各勘定科目は、千円未満を丸めて表示することになっていますので、黄色いセルに入力すれば、その右側に千円単位の額が表示されます。"]
[null,"※合計金額や利益等の計算金額も、千円単位で表示された金額を加算するのではなく、円単位までの金額で計算した後、千円未満を丸めることとされています。\nまた、税金の処理の仕方が指定されているため、決算書からそのまま転記するのではなく、振替等が必要な場合もあります。"]
[null,"兼業事業売上原価報告書が必要ない場合でも、シートの削除はしないで下さい。\n事業報告書は、テキストボックスに千葉県の記載例を書いてありますので、参考にしてください。"]
[]
["印刷","印刷・印刷プレビューは、Excelコマンドで普通に行ってください（財務諸表以外）。\n財務諸表は、印刷ボタンで印刷してください。「財務諸表表紙」シートに、連続印刷ボタンもあります。財務諸表の一部分だけ印刷したいときは、「印刷されない列を隠す」ボタンを押してから、Excelの印刷コマンドでページ指定をして下さい。"]
[]
["改良","「会社データ」シートに、整備局等名・都道府県名を選択すると、局長名・知事名が自動入力される部分がありますが、もしそれが間違っていたり古いものだったりした場合は、「都道府県・知事一覧など」シートのリストを変更してください。\nまた、市町村コードも、市町村合併等変更があった場合は、「都道府県・知事一覧など」シートのリストを変更してください。"]
[null,"「申請書」「経管」「専技」シートなど、行列番号や枠線が出ていないシートの列・行幅の変更等を行う場合は、「表示」メニューのなかの”見出し””枠線”にチェックをいれた後操作してください。"]
[]
["その他","印刷する申請書以外の部分に、自動入力や、選択するためのデータが書いてありますので、行・列・セルの削除等は絶対に行わないで下さい。「会社データ」シート、「都道府県・知事一覧など」シートは削除しないで下さい。"]
[]
[null,"経評総合評定値シミュレーション機能付の財務諸表は、「経評申請書類等作成スーパーセットブック」にて用意してありますので、そちらをご利用（ダウンロード）ください。"]
[null,"http://4booksoffice.com/"]
[]
[]
[]
[]
[]
[]
[]
[]
[]
[]
[]
[]
["バージョン情報"]
[]
["Ver1.01","許可番号　般/特　の選択肢に「般・特」を追加"]
["2001-04-05","専技（新規・更新）の法第7条・・・　の選択肢に「法第7条・法第15条」を追加"]
[null,"市町村コードの自動入力を全国対応に改良"]
[]
["Ver1.10","経営業務管理責任者、専任技術者、国家資格者のカラム入力用に、フォームを採用"]
["2001-04-18"]
[]
["Ver.1.11","申請日一元入力　別表、専任技術者（更新）ゴシック体に　略歴書印欄自動入力　別表、経管、専技、国家資格者許可番号欄自動入力"]
["2001-06-05"]
[]
["Ver.1.12","申請書、経管、専技の許可番号○○許可の部分の幅を増やし、切れずに印刷されるように改良。"]
["2001-07-02"]
[]
["Ver.1.13","都道府県・知事一覧などの市区町村名の「ケ」を「ヶ」に変更（会社データ自動コード入力の際検索できなかったため）"]
["2001-07-09","専技（更新）の有資格区分コード欄の表示形式を“文字列”に変更"]
[]
["Ver.1.14","期間の計算箇所（経管、実経、指導）を修正。\n　平成13年1月1日～平成13年12月31日が「0年11ヶ月」になってしまっていた。"]
["2001-08-29"]
[]
["Ver.1.15","印刷時の文字切れを修正（誓約書、経営業務の管理責任者証明書）"]
["2002-05-02"]
[]
["Ver.2.00","別ファイルだった財務諸表・変更届出書・届出書・廃業届をドッキング。経営事項審査用工事経歴書を追加。発注証明書・大臣用営業所調査依頼書を追加"]
["2002-08-07","申請書･専技・国家資格者・変更届出書・届出書・廃業届に「代理人」欄を追加。"]
[]
["Ver.2.01","財務諸表の連続印刷マクロ修正。財務諸表見出し位置調整。全シートのフォント見直し。"]
["2002-08-23"]
[]
["Ver.2.02","非常勤証明書の追加"]
["2002-08-30"]
[]
["Ver.2.03","変更届出書の届出者欄の計算式間違いを訂正。"]
["2002-09-04"]
[]
["Ｖｅｒ.2.10","市町村合併等によるコードの変更等に対応。"]
["2003-04-03","知事名の変更。"]
[]
["Ｖｅｒ.2.20","複数許可対応に変更。"]
["2003-09-10","局長名、知事名の変更。"]
[null,"所属建設業者団体「様式第二十号」を「様式第二十一号」に修正。"]
[null,"直前3年の営業年度を自動入力に変更。"]
[null,"平成15年7月25日国土交通省令第86号による財務諸表及び勘定科目の一部改正に対応。"]
[]
["Ver.3.0","建設業法施行規則改正（2004.4.1施行）による書式のA4版化・その他様式の変更。"]
["2004-04-05","宛先、許可番号等の表示方法を変更。"]
[null,"「会社データ」シートに許可予定日追加。"]
[null,"2004.4.1現在の市町村合併に対応済み。"]
[]
["Ver.3.01"]
["2004-06-03","「専技」シートの申請者･届出者の取消線付けのマクロを修正。"]
["2004-06-30","「兼業事業売上原価報告書」シートの計算式をExcel自身の数式拡張デフォルト設定に影響されないように修正。"]
["2004-07-05","「経管」シートのチェックボックスマクロ修正。"]
[]
["Ver.3.02","「工事経歴書」「工事経歴書(2)」シートを並べ替え可能に修正。"]
["2004-10-10","「直前3年」シートの営業年度自動入力をボタン方式に変更。"]
[null,"2004.10.4までの市町村合併に対応。"]
[]
["Ver.3.03","「廃業届」シートの廃業等理由欄に選択項目追加。"]
["2005-05-30","「誓約書」シートを2段書き対応へ修正。"]
[null,"2005.5.31現在の市町村合併、知事名に対応済み。"]
[null,"「許可証明願（千葉県）」シートを追加。"]
[]
["Ver.3.10","「会社データ」シートに都道府県名入力欄を追加。"]
["2005-08-18","それに伴い、該当シートの申請者欄に都道府県名が入るように改良。"]
[null,"個人用の財務諸表を追加。"]
[null,"背景色追加"]
[null,"2005.8.1現在の市町村合併に対応済み。"]
[]
["2006-01-17","「国家・監理」シートの申請者・届出者の取消線付けのマクロを修正。"]
[]
["Ver.4.00","「直前3年」シート中の“営業”を“事業”に変更。記載要領4を変更。"]
["2006-09-27","財務諸表各シートを新様式に変更。"]
[null,"有資格コード59を追加。"]
["2007-03-16","財務諸表各シートの印刷ボタンを変更。"]
[]
["Ver.4.01"]
["2007-05-21","「案内図」、「写真」シートを追加。（H19.4.1より千葉県に新規申請する場合必要）"]
[null,"千葉県用行政書士委任状を追加。"]
[]
["Ver.5.00","2008.4.1制度改正による様式変更。"]
["2008-04-21","「工事経歴書」シートを新様式に変更。"]
[null,"財務諸表中「前払い費用」「長期前払い費用」「その他」等の摘要変更"]
[null,"2008.4.17現在の市町村合併、知事名に対応済み。"]
[]
["2008-06-12","『会社データ』シートの利益処分年月日欄を消去"]
[]
["スーパーセットブック"]
["Ver.1.00","2009.4.1建設業法施行規則改正による様式変更。"]
["2009-03-04","枠線を全体的に細く。"]
[null,"登記されていないことの証明書と身分証明書用の委任状を追加。"]
[]
["2009-06-10","『都道府県・知事一覧など』シート　静岡県静岡県清水区を静岡県静岡市清水区に訂正。"]
[null,"『営業所一覧表（更新）』シート　所在地・郵便番号・電話番号の書き方を訂正。"]
[]
["2009-06-17","『営業所一覧表（新規用）』シート主たる営業所の名称の書き方を訂正。"]
[null,"『会社データ』シート従たる営業所の市区町村コード計算式を修正。"]
[null,"『営業所一覧表(更新）』シート　枠線を修正。"]
[null,"『行政書士委任状』ＦＡＸの計算式追加。"]
[null,"『直前３年』シート　前年以前各工事業種計の計算式を追加。"]
[]
["2009-12-03","『委任状』シートを『身分証明委任状』に変更。"]
[null,"『登記されていない申請書と委任状』シートを追加。"]
[]
["2010-01-06","印の表示を自動化。"]
[null,"『営業所一覧表(更新）』シートの本店所在地欄を2段書きに修正。"]
[null,"『経管』シート申請者と届出者の取り消し線付けチェックボックスを追加。"]
[null,"『変更届出書（1面）』シートの届出事項欄を自由書き込み方式に変更。"]
[]
["Ver.1.10","2010.4.1建設業法施行規則改正による様式変更。"]
["2010-04-01","2010.4.1現在の市町村合併、知事名に対応済み。"]
[]
["2011-04-15","2011.4.1より「登記されていないことの証明書」の様式が変更されたため更新。"]
[]
["2012-01-11","「登記されていないことの証明書」更新"]
[]
["Ver.1.20","2012.4.1建設業法施行規則改正（民法等の一部を改正する法律の施行に伴う改正）による様式変更"]
["2012-06-05","　（『誓約書』『略歴書』シート　”法定代理人の役員”が加わった）"]
[null,"2012.11.1建設業法施行規則改正による様式変更（健康保険・厚生年金保険・雇用保険の加入状況の確認）"]
[null,"『健保等』シートの追加。"]
[null,"『直前3年』シート　ページ数自動調整機能追加。"]
[null,"『身分証明委任状』シート削除。"]
[null,"『略歴書』シート　『役員の一覧表』シートから抽出できるように改良。"]
[null,"『令３略歴書』シート　『令３条』シートから抽出できるように改良。"]
[null,"様式番号誤りを訂正（令3条、財務諸表表紙、注記表、団体）。"]
[null,"『県税納税証明』シートに委任状を追加。"]
[]
["2012-11-01","『注記表』注2(3)　×引立金→○引当金　に修正。"]
[]
["2012-11-09","『経管』シートと『専技』シートの入力ボタンを”ボタン”に変更。"]
[null,"変更届の印マークをテキストボックスから数式に変更。代理人の場合とそうでない場合で印マークが変わる。"]
[]
["2012-11-09","『県税納税証明』シートの委任状を修正"]
[]
["2013-01-30","『県税納税証明』シートを1月15日より使用の様式に変更"]
[]
["2013-02-14","『株主資本等変動計算書』『注記表』シートを2013.4.1施行の建設業法施行規則改正により変更"]
[null,"フォントをMeiryoUIに"]
[]
["2013-04-23","2013.4.23現在の市町村合併に対応済み。"]
[]
["2014-10-10","『登記されていない証明書』シートを『役員一覧』で入力したものが反映されるように修正。"]
[]
[]
["Ver.2.00","2015.4.1建設業法施行規則改正による様式変更。"]
["2014-12-03"]
[]
["2015-03-26","シートの順番を綴り順に変更。着色。"]
[]
["2015-04-02","『経管略歴書』を役員一覧表から参照できるように修正。"]
[null,"『専技一覧表』日本語入力・有資格区分の文字列表示化。"]
[null,"『健保』事業所整理番号等欄の文字列表示化。"]
[]
["2015-04-17","『貸借対照表』コメントの修正"]
[null,"『注記表』7(2)に電子記録債権割引高と譲渡高を追加"]
[]
["2015-04-24","更新に使う部分のみ抜粋の「更新用」作成"]
[]
["2015-05-14","『役員等の一覧表』から『経管』、『経管略歴書』、『略歴書』、『登記されていない証明書』に自動入力するため、生年月日、住所欄他追加"]

{"sheet":"会社データ","index":1,"n_rows":90,"n_cols":17,"rows_kept":90,"cut":false,"hidden":false,"merged":[[46,3,46,4],[33,1,40,1],[22,1,23,1],[47,3,47,4],[39,7,39,8],[40,7,40,8],[33,7,33,8],[41,7,41,8],[42,7,42,8],[37,7,37,8],[10,3,10,6],[11,3,11,6],[36,7,36,8],[38,7,38,8],[34,7,34,8],[35,7,35,8],[3,6,4,6],[15,3,15,6],[22,3,22,6],[45,3,45,4],[1,1,1,8],[10,1,11,1],[13,1,15,1],[3,3,3,4],[5,3,5,4],[14,3,14,6],[44,1,49,1],[17,5,17,6],[17,1,20,1],[20,5,20,6],[18,3,18,6],[25,1,29,1]]}
[]
[null,"ここに入力したデータが、申請書類に反映されますので、右側コメントのとおり、正しく入力して下さい。"]
[]
[null,"申請日",null,"平成27年　　月　　日",null,null,"許可予定日",{"$f":"\"知事 \"&TEXT(D4+45,\"ggge年m月d日\")&\"前後\"","v":{"$error":"#VALUE!"}}]
[null,null,null,null,null,null,null,{"$f":"\"大臣 \"&TEXT(D4+120,\"ggge年m月d日\")&\"前後\"","v":{"$error":"#VALUE!"}}]
[null,"提出先",null,"北海道開発局長",null,null,null,null,"※許可予定日は申請書類に反映されません。",null,null,{"$f":"VLOOKUP(D6,O34:Q90,3,FALSE)","v":2}]
[]
[]
[null,"法人又は個人の別",null,1]
[]
[null,"商号又は名称","フリガナ（全角）"]
[null,null,"漢字（全角）"]
[]
[null,"代表者","役職名"]
[null,null,"フリガナ（全角）"]
[null,null,"漢字（全角）"]
[]
[null,"主たる営業所\n（事実上の本店）","都道府県名",null,"市町村名"]
[null,null,"市町村名以下"]
[null,null,"郵便番号",null,"市区町村コード",{"$f":"IF(F18=\"\",\"コードは自動入力されます。\",VLOOKUP(F18,都道府県・知事一覧など!$F$3:$G$2535,2,FALSE))","v":"コードは自動入力されます。"}]
[null,null,"電話番号",null,"FAX番号"]
[]
[null,"登記上の\n本店所在地","所在地"]
[null,null,"電話番号"]
[]
[null,"従たる営業所",null,"営業所名","都道府県名","市町村名","市町村名以下","郵便番号","電話番号","コード"]
[null,null,null,null,null,null,null,null,null,{"$f":"IF(F27=\"\",\"\",VLOOKUP(F27,都道府県・知事一覧など!$F$3:$G$2535,2,FALSE))","v":""}]
[null,null,null,null,null,null,null,null,null,{"$f":"IF(F28=\"\",\"\",VLOOKUP(F28,都道府県・知事一覧など!$F$3:$G$2535,2,FALSE))","v":""}]
[null,null,null,null,null,null,null,null,null,{"$f":"IF(F29=\"\",\"\",VLOOKUP(F29,都道府県・知事一覧など!$F$3:$G$2535,2,FALSE))","v":""}]
[null,null,null,null,null,null,null,null,null,{"$f":"IF(F30=\"\",\"\",VLOOKUP(F30,都道府県・知事一覧など!$F$3:$G$2535,2,FALSE))","v":""}]
[]
[null,"資本金（千円）"]
[]
[null,"現許可",null,"大臣／知事","般／特","（　）","許可番号","許可年月日",null,null,null,"国土交通大臣","般",1,{"$f":"都道府県・知事一覧など!A3","v":"北海道開発局長"},null,2]
[null,null,null,null,null,null,null,null,null,null,{"$f":"IF(AND(K37>0,K38=0),1,IF(AND(K37=0,K38>0),2,3))","v":3},"北海道知事","特",2,{"$f":"都道府県・知事一覧など!A4","v":"東北地方整備局長"},null,1]
[null,null,null,{"$f":"IF(D35=\"\",\"\",VLOOKUP(D35,都道府県・知事一覧など!$A$13:$C$60,3,FALSE))","v":""},null,null,null,null,null,null,null,"青森県知事","般\n特",3,{"$f":"都道府県・知事一覧など!A5","v":"関東地方整備局長"},null,1]
[null,null,null,null,null,null,null,null,null,{"$f":"IF(D37=\"\",\"\",VLOOKUP(D37,都道府県・知事一覧など!$A$13:$C$60,3,FALSE))","v":""},{"$f":"COUNTIF($E$35:$E$41,\"般\")","v":0},"岩手県知事",null,null,{"$f":"都道府県・知事一覧など!A6","v":"北陸地方整備局長"},null,1]
[null,null,null,null,null,null,null,null,null,{"$f":"IF(D38=\"\",\"\",VLOOKUP(D38,都道府県・知事一覧など!$A$13:$C$60,3,FALSE))","v":""},{"$f":"COUNTIF($E$35:$E$41,\"特\")","v":0},"宮城県知事",null,null,{"$f":"都道府県・知事一覧など!A7","v":"中部地方整備局長"},null,1]
[null,null,null,null,null,null,null,null,null,{"$f":"IF(D39=\"\",\"\",VLOOKUP(D39,都道府県・知事一覧など!$A$13:$C$60,3,FALSE))","v":""},null,"秋田県知事",null,null,{"$f":"都道府県・知事一覧など!A8","v":"近畿地方整備局長"},null,1]
[null,null,null,null,null,null,null,null,null,{"$f":"IF(D40=\"\",\"\",VLOOKUP(D40,都道府県・知事一覧など!$A$13:$C$60,3,FALSE))","v":""},null,"山形県知事",null,null,{"$f":"都道府県・知事一覧など!A9","v":"中国地方整備局長"},null,1]
[null,null,null,null,null,null,null,null,null,{"$f":"IF(D41=\"\",\"\",VLOOKUP(D41,都道府県・知事一覧など!$A$13:$C$60,3,FALSE))","v":""},null,"福島県知事",null,null,{"$f":"都道府県・知事一覧など!A10","v":"四国地方整備局長"},null,1]
[null,null,null,null,null,null,null,null,null,null,null,"茨城県知事",null,null,{"$f":"都道府県・知事一覧など!A11","v":"九州地方整備局長"},null,1]
[null,"旧許可","※許可換えの場合のみ",null,null,null,null,null,null,null,null,"栃木県知事",null,null,{"$f":"都道府県・知事一覧など!A12","v":"沖縄総合事務局長"},null,1]
[null,null,null,{"$f":"IF(D43=\"\",\"\",VLOOKUP(D43,都道府県・知事一覧など!$A$13:$C$60,3,FALSE))","v":""},{"$f":"IF(E43=\"\",\"\",VLOOKUP(E43,M34:N36,2,FALSE))","v":""},null,null,null,null,null,null,"群馬県知事",null,null,{"$f":"都道府県・知事一覧など!A13","v":"北海道知事"},null,3]
[null,"財務諸表関係","営業年度","（第",null,"期）",null,null,null,null,null,"埼玉県知事",null,null,{"$f":"都道府県・知事一覧など!A14","v":"青森県知事"},null,3]
[null,null,"自",null,null,null,null,null,null,1,null,"千葉県知事",null,null,{"$f":"都道府県・知事一覧など!A15","v":"岩手県知事"},null,3]
[null,null,"至",null,null,null,null,null,null,null,null,"東京都知事",null,null,{"$f":"都道府県・知事一覧など!A16","v":"宮城県知事"},null,3]
[null,null,null,null,null,null,null,null,null,null,null,"神奈川県知事",null,null,{"$f":"都道府県・知事一覧など!A17","v":"秋田県知事"},null,3]
[null,null,null,1,null,null,null,null,null,null,null,"新潟県知事",null,null,{"$f":"都道府県・知事一覧など!A18","v":"山形県知事"},null,3]
[null,null,null,1,null,null,null,null,null,null,null,"富山県知事",null,null,{"$f":"都道府県・知事一覧など!A19","v":"福島県知事"},null,3]
[null,null,null,null,null,null,null,null,null,null,null,"石川県知事",null,null,{"$f":"都道府県・知事一覧など!A20","v":"茨城県知事"},null,3]
[null,null,null,null,null,null,null,null,null,null,null,"福井県知事",null,null,{"$f":"都道府県・知事一覧など!A21","v":"栃木県知事"},null,3]
[null,null,null,null,null,null,null,null,null,null,null,"山梨県知事",null,null,{"$f":"都道府県・知事一覧など!A22","v":"群馬県知事"},null,3]
[null,null,null,null,null,null,null,null,null,null,null,"長野県知事",null,null,{"$f":"都道府県・知事一覧など!A23","v":"埼玉県知事"},null,3]
[null,null,null,null,null,null,null,null,null,null,null,"岐阜県知事",null,null,{"$f":"都道府県・知事一覧など!A24","v":"千葉県知事"},null,3]
[null,null,null,null,null,null,null,null,null,null,null,"静岡県知事",null,null,{"$f":"都道府県・知事一覧など!A25","v":"東京都知事"},null,3]
[null,null,null,null,null,null,null,null,null,null,null,"愛知県知事",null,null,{"$f":"都道府県・知事一覧など!A26","v":"神奈川県知事"},null,3]
[null,null,null,null,null,null,null,null,null,null,null,"三重県知事",null,null,{"$f":"都道府県・知事一覧など!A27","v":"新潟県知事"},null,3]
[null,null,null,null,null,null,null,null,null,null,null,"滋賀県知事",null,null,{"$f":"都道府県・知事一覧など!A28","v":"富山県知事"},null,3]
[null,null,null,null,null,null,null,null,null,null,null,"京都府知事",null,null,{"$f":"都道府県・知事一覧など!A29","v":"石川県知事"},null,3]
[null,null,null,null,null,null,null,null,null,null,null,"大阪府知事",null,null,{"$f":"都道府県・知事一覧など!A30","v":"福井県知事"},null,3]
[null,null,null,null,null,null,null,null,null,null,null,"兵庫県知事",null,null,{"$f":"都道府県・知事一覧など!A31","v":"山梨県知事"},null,3]
[null,null,null,null,null,null,null,null,null,null,null,"奈良県知事",null,null,{"$f":"都道府県・知事一覧など!A32","v":"長野県知事"},null,3]
[null,null,null,null,null,null,null,null,null,null,null,"和歌山県知事",null,null,{"$f":"都道府県・知事一覧など!A33","v":"岐阜県知事"},null,3]
[null,null,null,null,null,null,null,null,null,null,null,"鳥取県知事",null,null,{"$f":"都道府県・知事一覧など!A34","v":"静岡県知事"},null,3]
[null,null,null,null,null,null,null,null,null,null,null,"島根県知事",null,null,{"$f":"都道府県・知事一覧など!A35","v":"愛知県知事"},null,3]
[null,null,null,null,null,null,null,null,null,null,null,"岡山県知事",null,null,{"$f":"都道府県・知事一覧など!A36","v":"三重県知事"},null,3]
[null,null,null,null,null,null,null,null,null,null,null,"広島県知事",null,null,{"$f":"都道府県・知事一覧など!A37","v":"滋賀県知事"},null,3]
[null,null,null,null,null,null,null,null,null,null,null,"山口県知事",null,null,{"$f":"都道府県・知事一覧など!A38","v":"京都府知事"},null,3]
[null,null,null,null,null,null,null,null,null,null,null,"徳島県知事",null,null,{"$f":"都道府県・知事一覧など!A39","v":"大阪府知事"},null,3]
[null,null,null,null,null,null,null,null,null,null,null,"香川県知事",null,null,{"$f":"都道府県・知事一覧など!A40","v":"兵庫県知事"},null,3]
[null,null,null,null,null,null,null,null,null,null,null,"愛媛県知事",null,null,{"$f":"都道府県・知事一覧など!A41","v":"奈良県知事"},null,3]
[null,null,null,null,null,null,null,null,null,null,null,"高知県知事",null,null,{"$f":"都道府県・知事一覧など!A42","v":"和歌山県知事"},null,3]
[null,null,null,null,null,null,null,null,null,null,null,"福岡県知事",null,null,{"$f":"都道府県・知事一覧など!A43","v":"鳥取県知事"},null,3]
[null,null,null,null,null,null,null,null,null,null,null,"佐賀県知事",null,null,{"$f":"都道府県・知事一覧など!A44","v":"島根県知事"},null,3]
[null,null,null,null,null,null,null,null,null,null,null,"長崎県知事",null,null,{"$f":"都道府県・知事一覧など!A45","v":"岡山県知事"},null,3]
[null,null,null,null,null,null,null,null,null,null,null,"熊本県知事",null,null,{"$f":"都道府県・知事一覧など!A46","v":"広島県知事"},null,3]
[null,null,null,null,null,null,null,null,null,null,null,"大分県知事",null,null,{"$f":"都道府県・知事一覧など!A47","v":"山口県知事"},null,3]
[null,null,null,null,null,null,null,null,null,null,null,"宮崎県知事",null,null,{"$f":"都道府県・知事一覧など!A48","v":"徳島県知事"},null,3]
[null,null,null,null,null,null,null,null,null,null,null,"鹿児島県知事",null,null,{"$f":"都道府県・知事一覧など!A49","v":"香川県知事"},null,3]
[null,null,null,null,null,null,null,null,null,null,null,"沖縄県知事",null,null,{"$f":"都道府県・知事一覧など!A50","v":"愛媛県知事"},null,3]
[null,null,null,null,null,null,null,null,null,null,null,null,null,null,{"$f":"都道府県・知事一覧など!A51","v":"高知県知事"},null,3]
[null,null,null,null,null,null,null,null,null,null,null,null,null,null,{"$f":"都道府県・知事一覧など!A52","v":"福岡県知事"},null,3]
[null,null,null,null,null,null,null,null,null,null,null,null,null,null,{"$f":"都道府県・知事一覧など!A53","v":"佐賀県知事"},null,3]
[null,null,null,null,null,null,null,null,null,null,null,null,null,null,{"$f":"都道府県・知事一覧など!A54","v":"長崎県知事"},null,3]
[null,null,null,null,null,null,null,null,null,null,null,null,null,null,{"$f":"都道府県・知事一覧など!A55","v":"熊本県知事"},null,3]
[null,null,null,null,null,null,null,null,null,null,null,null,null,null,{"$f":"都道府県・知事一覧など!A56","v":"大分県知事"},null,3]
[null,null,null,null,null,null,null,null,null,null,null,null,null,null,{"$f":"都道府県・知事一覧など!A57","v":"宮崎県知事"},null,3]
[null,null,null,null,null,null,null,null,null,null,null,null,null,null,{"$f":"都道府県・知事一覧など!A58","v":"鹿児島県知事"},null,3]
[null,null,null,null,null,null,null,null,null,null,null,null,null,null,{"$f":"都道府県・知事一覧など!A59","v":"沖縄県知事"},null,3]

{"sheet":"申請書","index":2,"n_rows":65,"n_cols":200,"rows_kept":65,"cut":false,"hidden":false,"merged":[[6,115,6,191],[6,192,6,196],[12,9,12,17],[55,9,55,17],[39,131,39,187],[47,33,47,84],[41,180,41,187],[17,168,17,181],[14,20,14,41],[16,29,16,49],[34,162,34,169],[25,111,25,115],[25,117,25,121],[31,108,31,115],[22,86,22,92],[25,93,25,97],[30,117,30,124],[29,117,29,124],[24,111,24,115],[24,141,24,145],[27,135,27,142],[27,126,27,133],[28,117,28,124],[37,36,37,43],[64,2,64,40],[45,159,45,163],[49,128,49,141],[41,81,41,88],[41,117,41,124],[41,126,41,133],[41,135,41,142],[41,144,41,151],[41,153,41,160],[41,162,41,169],[51,9,51,13],[51,17,51,28],[50,9,50,13],[48,9,48,13],[49,51,49,55],[44,147,44,151],[49,9,49,13],[49,15,49,19],[49,21,49,25],[49,27,49,31],[49,33,49,37],[49,39,49,43],[49,45,49,49],[45,135,45,139],[8,1,8,2],[9,1,9,2],[10,1,10,2],[39,65,39,106],[36,72,36,79],[36,9,36,16],[37,9,37,16],[37,18,37,25],[17,87,17,90],[18,87,18,90],[18,25,18,28],[24,81,24,85],[22,57,22,61],[22,63,22,67],[23,81,23,85],[22,33,22,37],[22,39,22,43],[22,45,22,49],[23,39,23,43],[23,27,23,31],[31,90,31,97],[31,99,31,106],[18,91,18,127],[25,87,25,91],[35,9,35,16],[35,18,35,25],[35,27,35,34],[35,36,35,43],[35,45,35,52],[35,54,35,61],[35,63,35,70],[31,72,31,79],[35,72,35,79],[33,54,33,61],[31,54,31,61],[34,9,34,16],[33,9,33,16],[33,18,33,25],[37,63,37,70],[37,72,37,79],[35,99,35,106],[35,108,35,115],[35,90,35,97],[25,63,25,67],[25,69,25,73],[25,75,25,79],[25,81,25,85],[25,99,25,103],[25,105,25,109],[31,81,31,88],[35,81,35,88],[34,72,34,79],[37,90,37,97],[37,81,37,88],[22,9,22,13],[22,15,22,19],[22,21,22,25],[22,27,22,31],[22,123,22,127],[22,129,22,133],[22,51,22,55],[23,141,23,145],[23,147,23,151],[22,147,22,151],[22,141,22,145],[23,135,23,139],[23,93,23,97],[23,99,23,103],[23,105,23,109],[23,111,23,115],[23,123,23,127],[23,9,23,13],[23,15,23,19],[23,21,23,25],[23,57,23,61],[23,33,23,37],[23,63,23,67],[23,69,23,73],[25,9,25,13],[25,15,25,19],[25,21,25,25],[25,27,25,31],[25,33,25,37],[25,57,25,61],[31,36,31,43],[31,45,31,52],[23,45,23,49],[23,51,23,55],[25,51,25,55],[24,51,24,55],[27,36,27,43],[27,45,27,52],[25,39,25,43],[24,21,24,25],[31,9,31,16],[31,18,31,25],[29,9,29,16],[29,18,29,25],[31,27,31,34],[24,9,24,13],[27,9,27,16],[27,18,27,25],[23,75,23,79],[23,153,23,157],[33,117,33,124],[33,63,33,70],[33,72,33,79],[23,129,23,133],[33,36,33,43],[31,63,31,70],[25,135,25,139],[25,141,25,145],[25,123,25,127],[25,129,25,133],[25,147,25,151],[25,153,25,157],[25,45,25,49],[33,45,33,52],[27,72,27,79],[27,81,27,88],[27,144,27,151],[27,153,27,160],[27,90,27,97],[27,27,27,34],[26,9,26,16],[26,27,26,34],[28,9,28,16],[28,27,28,34],[29,27,29,34],[34,27,34,34],[29,36,29,43],[30,27,30,34],[45,9,45,13],[45,15,45,19],[45,21,45,25],[44,9,44,13],[44,21,44,25],[45,45,45,49],[45,39,45,43],[39,27,39,31],[39,33,39,37],[43,9,43,16],[43,18,43,25],[43,27,43,34],[43,36,43,43],[43,45,43,52],[41,45,41,52],[45,27,45,31],[36,27,36,34],[45,33,45,37],[44,33,44,37],[37,45,37,52],[37,54,37,61],[41,27,41,34],[41,36,41,43],[37,27,37,34],[43,54,43,61],[53,9,53,13],[57,44,58,50],[57,95,58,99],[57,69,58,72],[58,53,58,57],[57,64,58,67],[57,60,58,63],[54,9,54,13],[56,9,56,13],[58,22,58,43],[57,1,58,1],[57,3,58,3],[57,5,58,5],[57,7,58,7],[57,107,58,111],[57,113,58,117],[57,137,58,141],[57,149,58,154],[57,22,57,43],[57,53,57,57],[57,9,58,13],[57,15,58,19],[57,143,58,147],[35,171,35,178],[0,159,0,187],[13,5,13,7],[17,132,17,152],[16,154,16,158],[16,25,16,28],[17,25,17,28],[1,183,1,187],[2,0,2,196],[1,159,1,163],[14,166,14,174],[1,177,1,181],[4,124,4,196],[1,165,1,169],[1,171,1,175],[17,53,17,56],[17,163,17,167],[8,115,8,196],[9,115,9,196],[10,99,10,113],[10,115,10,191],[7,115,7,196],[14,161,14,165],[14,175,14,179],[31,180,31,187],[34,117,34,124],[31,144,31,151],[41,171,41,178],[24,1,26,1],[32,9,32,16],[32,27,32,34],[32,72,32,79],[26,72,26,79],[30,9,30,16],[28,72,28,79],[29,162,29,169],[29,45,29,52],[29,54,29,61],[29,63,29,70],[29,108,29,115],[29,72,29,79],[29,81,29,88],[29,90,29,97],[27,99,27,106],[27,108,27,115],[27,117,27,124],[27,54,27,61],[27,63,27,70],[38,1,40,1],[39,9,39,13],[39,15,39,19],[39,21,39,25],[42,9,42,16],[42,27,42,34],[41,9,41,16],[41,18,41,25],[32,162,32,169],[33,153,33,160],[40,162,40,169],[40,9,40,16],[40,72,40,79],[38,9,38,13],[38,21,38,25],[40,27,40,34],[33,162,33,169],[33,27,33,34],[33,126,33,133],[37,128,37,169],[41,90,41,97],[41,99,41,106],[41,108,41,115],[41,54,41,61],[63,44,63,52],[63,2,63,40],[51,65,51,151],[57,76,58,81],[57,83,58,87],[57,89,58,93],[63,115,63,131],[48,21,48,25],[43,63,43,70],[43,126,43,133],[43,135,43,142],[49,57,49,61],[43,72,43,79],[43,81,43,88],[43,144,43,151],[43,90,43,97],[43,99,43,106],[43,108,43,115],[43,117,43,124],[49,119,49,123],[44,117,44,121],[45,87,45,91],[45,93,45,97],[45,99,45,103],[63,132,63,192],[57,188,58,194],[57,182,58,186],[57,119,58,124],[57,101,58,105],[56,113,56,117],[57,162,58,166],[57,127,58,135],[57,176,58,180],[57,168,58,174],[57,156,58,160],[63,53,63,111],[41,63,41,70],[41,72,41,79],[40,117,40,124],[30,72,30,79],[33,180,33,187],[35,126,35,133],[35,135,35,142],[35,144,35,151],[42,117,42,124],[35,180,35,187],[33,144,33,151],[33,135,33,142],[33,81,33,88],[33,171,33,178],[33,99,33,106],[33,108,33,115],[31,162,31,169],[31,171,31,178],[31,153,31,160],[31,135,31,142],[31,126,31,133],[32,117,32,124],[33,90,33,97],[35,117,35,124],[42,72,42,79],[48,51,48,55],[48,119,48,123],[43,162,43,169],[43,171,43,178],[43,180,43,187],[43,153,43,160],[45,105,45,109],[45,153,45,157],[44,87,44,91],[45,141,45,145],[45,147,45,151],[45,111,45,115],[45,117,45,121],[45,123,45,127],[45,129,45,133],[45,51,45,55],[42,162,42,169],[22,135,22,139],[22,99,22,103],[22,93,22,97],[22,105,22,109],[22,111,22,115],[22,117,22,121],[35,153,35,160],[35,162,35,169],[23,87,23,91],[23,117,23,121],[25,165,25,169],[28,162,28,169],[31,117,31,124],[26,162,26,169],[29,126,29,133],[29,135,29,142],[29,171,29,178],[29,99,29,106],[29,144,29,151],[26,117,26,124],[30,162,30,169],[29,153,29,160],[23,178,25,196],[27,162,27,169],[27,171,27,178],[27,180,27,187],[23,165,23,169],[25,171,25,175],[23,159,23,163],[25,159,25,163],[24,171,24,175],[23,171,23,175],[29,180,29,187],[10,192,10,196],[17,91,17,127],[14,186,14,194],[14,117,14,123],[22,69,22,73],[22,75,22,79],[22,81,22,85],[22,153,22,157],[22,159,22,163],[22,165,22,169],[22,171,22,175],[14,155,14,159],[20,71,20,79],[14,147,14,154],[17,154,17,158],[16,57,16,84],[14,112,14,116],[14,100,14,104],[16,87,16,90],[16,91,16,127],[14,106,14,110],[14,136,14,140],[14,142,14,146],[14,181,14,185],[6,94,6,113],[20,46,20,50],[20,60,20,64],[17,9,17,13],[20,21,20,25],[20,27,20,31],[20,40,20,44],[18,57,18,84],[20,66,20,70],[17,29,17,49],[18,29,18,49],[17,57,17,84],[14,94,14,98],[14,88,14,92],[14,82,14,86],[14,9,14,13],[14,15,14,19],[14,52,14,57],[14,63,14,66],[14,68,14,71],[20,32,20,39],[20,51,20,59],[16,53,16,56],[18,53,18,56]]}
["様式第一号（第二条関係）",null,null,null,null,null,null,null,null,null,null,null,null,null,null,null,null,null,null,null,null,null,null,null,null,null,null,null,null,null,null,null,null,null,null,null,null,null,null,null,null,null,null,null,null,null,null,null,null,null,null,null,null,null,null,null,null,null,null,null,null,null,null,null,null,null,null,null,null,null,null,null,null,null,null,null,null,null,null,null,null,null,null,null,null,null,null,null,null,null,null,null,null,null,null,null,null,null,null,null,null,null,null,null,null,null,null,null,null,null,null,null,null,null,null,null,null,null,null,null,null,null,null,null,null,null,null,null,null,null,null,null,null,null,null,null,null,null,null,null,null,null,null,null,null,null,null,null,null,null,null,null,null,null,null,null,null,null,null,"（用紙A4）"]
[null,null,null,null,null,null,null,null,null,null,null,null,null,null,null,null,null,null,null,null,null,null,null,null,null,null,null,null,null,null,null,null,null,null,null,null,null,null,null,null,null,null,null,null,null,null,null,null,null,null,null,null,null,null,null,null,null,null,null,null,null,null,null,null,null,null,null,null,null,null,null,null,null,null,null,null,null,null,null,null,null,null,null,null,null,null,null,null,null,null,null,null,null,null,null,null,null,null,null,null,null,null,null,null,null,null,null,null,null,null,null,null,null,null,null,null,null,null,null,null,null,null,null,null,null,null,null,null,null,null,null,null,null,null,null,null,null,null,null,null,null,null,null,null,null,null,null,null,null,null,null,null,null,null,null,null,null,null,null,"0",null,null,null,null,null,"0",null,null,null,null,null,"0",null,null,null,null,null,"0",null,null,null,null,null,"1"]
["建　設　業　許　可　申　請　書"]
["この申請書により、建設業の許可を申請します。"]
["この申請書及び添付書類の記載事項は、事実に相違ありません。",null,null,null,null,null,null,null,null,null,null,null,null,null,null,null,null,null,null,null,null,null,null,null,null,null,null,null,null,null,null,null,null,null,null,null,null,null,null,null,null,null,null,null,null,null,null,null,null,null,null,null,null,null,null,null,null,null,null,null,null,null,null,null,null,null,null,null,null,null,null,null,null,null,null,null,null,null,null,null,null,null,null,null,null,null,null,null,null,null,null,null,null,null,null,null,null,null,null,null,null,null,null,null,null,null,null,null,null,null,null,null,null,null,null,null,null,null,null,null,null,null,null,null,{"$f":"会社データ!D4","v":"平成27年　　月　　日"}]
[]
[null,null,null,null,null,null,null,null,null,null,null,null,null,null,null,null,null,null,null,null,null,null,null,null,null,null,null,null,null,null,null,null,null,null,null,null,null,null,null,null,null,null,null,null,null,null,null,null,null,null,null,null,null,null,null,null,null,null,null,null,null,null,null,null,null,null,null,null,null,null,null,null,null,null,null,null,null,null,null,null,null,null,null,null,null,null,null,null,null,null,null,null,null,null,"代理人\n（作成者）",null,null,null,null,null,null,null,null,null,null,null,null,null,null,null,null,null,null,null,null,"千葉県君津市杢師4-19-6　0439-55-4910\n行政書士　四本平一",null,null,null,null,null,null,null,null,null,null,null,null,null,null,null,null,null,null,null,null,null,null,null,null,null,null,null,null,null,null,null,null,null,null,null,null,null,null,null,null,null,null,null,null,null,null,null,null,null,null,null,null,null,null,null,null,null,null,null,null,null,null,null,null,null,null,null,null,null,null,null,null,null,null,null,null,{"$f":"IF(DL7=\"\",\"\",\"印\")","v":"印"}]
[null,null,null,null,null,null,null,null,null,null,null,null,null,null,null,null,null,null,null,null,null,null,null,null,null,null,null,null,null,null,null,null,null,null,null,null,null,null,null,null,null,null,null,null,null,null,null,null,null,null,null,null,null,null,null,null,null,null,null,null,null,null,null,null,null,null,null,null,null,null,null,null,null,null,null,null,null,null,null,null,null,null,null,null,null,null,null,null,null,null,null,null,null,null,null,null,null,null,null,null,null,null,null,null,null,null,null,null,null,null,null,null,null,null,null,{"$f":"IF(会社データ!D23=\"\",\"\",\"（登記上）\"&会社データ!D23)","v":""}]
[null,"地方整備局長",null,null,null,null,null,null,null,null,null,null,null,null,null,null,null,null,null,null,null,null,null,null,null,null,null,null,null,null,null,null,null,null,null,null,null,null,null,null,null,null,null,null,null,null,null,null,null,null,null,null,null,null,null,null,null,null,null,null,null,null,null,null,null,null,null,null,null,null,null,null,null,null,null,null,null,null,null,null,null,null,null,null,null,null,null,null,null,null,null,null,null,null,null,null,null,null,null,null,null,null,null,null,null,null,null,null,null,null,null,null,null,null,null,{"$f":"IF(会社データ!D23=\"\",会社データ!D18&会社データ!F18&会社データ!D19,\"（事実上）\"&会社データ!D18&会社データ!F18&会社データ!D19)","v":""}]
[null,"北海道開発局長",null,null,null,null,null,null,null,null,null,null,null,null,null,null,null,null,null,null,null,null,null,null,null,null,null,null,null,null,null,null,null,null,null,null,null,null,null,null,null,null,null,null,null,null,null,null,null,null,null,null,null,null,null,null,null,null,null,null,null,null,null,null,null,null,null,null,null,null,null,null,null,null,null,null,null,null,null,null,null,null,null,null,null,null,null,null,null,null,null,null,null,null,null,null,null,null,null,null,null,null,null,null,null,null,null,null,null,null,null,null,null,null,null,{"$f":"会社データ!D12","v":0}]
[null,"知事",null,"殿",null,null,null,null,null,null,null,null,null,null,null,null,null,null,null,null,null,null,null,null,null,null,null,null,null,null,null,null,null,null,null,null,null,null,null,null,null,null,null,null,null,null,null,null,null,null,null,null,null,null,null,null,null,null,null,null,null,null,null,null,null,null,null,null,null,null,null,null,null,null,null,null,null,null,null,null,null,null,null,null,null,null,null,null,null,null,null,null,null,null,null,null,null,null,null,"申請者",null,null,null,null,null,null,null,null,null,null,null,null,null,null,null,{"$f":"\"　\"&会社データ!D14&\"   \"&会社データ!D16","v":"　   "},null,null,null,null,null,null,null,null,null,null,null,null,null,null,null,null,null,null,null,null,null,null,null,null,null,null,null,null,null,null,null,null,null,null,null,null,null,null,null,null,null,null,null,null,null,null,null,null,null,null,null,null,null,null,null,null,null,null,null,null,null,null,null,null,null,null,null,null,null,null,null,null,null,null,null,null,{"$f":"IF(DL7=\"\",\"印\",\"\")","v":""}]
[]
["行政庁側記入欄",null,null,null,null,null,null,null,null,"大臣\n知事",null,null,null,null,null,null,null,null,"コード",null,null,null,null,null,null,null,null,null,null,null,null,null,null,null,null,null,null,null,null,null,null,null,null,null,null,null,null,null,null,null,null,null,null,null,null,null,null,null,null,null,null,null,null,null,null,null,null,null,null,null,null,null,null,null,null,null,null,null,null,null,null,null,null,null,null,null,null,null,null,null,null,null,null,null,null,null,null,null,null,null,null,null,null,null,null,null,null,null,null,null,null,null,null,null,null,null,null,null,null,null,null,null,null,null,null,null,null,null,null,null,null,null,null,null,null,null,"許可年月日"]
[null,null,null,null,null,"項　番",null,null,null,null,"3",null,null,null,null,null,null,null,null,null,null,null,null,null,null,null,null,null,null,null,null,null,null,null,null,null,null,null,null,null,null,null,null,null,null,null,null,null,null,null,null,null,null,null,null,null,null,null,null,null,null,null,null,null,null,null,null,null,null,null,null,null,null,null,null,null,null,null,null,null,null,null,null,"5",null,null,null,null,null,null,null,null,null,null,null,null,null,null,null,null,null,null,null,null,null,null,null,null,null,null,null,null,null,null,"10",null,null,null,null,null,null,null,null,null,null,null,null,null,null,null,null,null,null,null,null,null,"11",null,null,null,null,null,null,null,null,null,null,null,null,null,null,null,null,null,null,"13",null,null,null,null,null,null,null,null,null,null,null,null,null,null,null,null,null,null,null,"15"]
[null,"許可番号",null,null,null,"0",null,"1",null,null,null,null,null,null,null,null,null,null,null,null,"国土交通大臣\n知事",null,null,null,null,null,null,null,null,null,null,null,null,null,null,null,null,null,null,null,null,null,"許可",null,null,null,null,null,null,null,"(",null,"般\n特",null,null,null,null,null,"－",null,null,null,null,null,null,null,null,null,null,null,null,null,")",null,null,"第",null,null,null,null,null,null,null,null,null,null,null,null,null,null,null,null,null,null,null,null,null,null,null,null,null,null,null,null,null,null,null,null,null,null,null,null,null,null,null,null,null,"号",null,null,null,null,null,null,null,null,"平成",null,null,null,null,null,null,null,null,null,null,null,null,null,null,null,null,null,null,null,null,"年",null,null,null,null,null,null,null,null,null,null,null,null,null,null,null,null,null,null,"月",null,null,null,null,null,null,null,null,null,null,null,null,null,null,null,null,null,null,null,"日"]
[]
[null,null,null,null,null,null,null,null,null,null,"3",null,null,null,null,null,null,null,null,null,null,null,null,null,null,"1.",null,null,null,"新規",null,null,null,null,null,null,null,null,null,null,null,null,null,null,null,null,null,null,null,null,null,null,null,"4.",null,null,null,"業種追加",null,null,null,null,null,null,null,null,null,null,null,null,null,null,null,null,null,null,null,null,null,null,null,null,null,null,null,null,null,"7.",null,null,null,"般・特新規＋更新",null,null,null,null,null,null,null,null,null,null,null,null,null,null,null,null,null,null,null,null,null,null,null,null,null,null,null,null,null,null,null,null,null,null,null,null,null,null,null,null,null,null,null,null,null,null,null,null,null,null,null,null,null,null,null,null,null,null,null,null,null,null,"4"]
[null,"申請の区分",null,null,null,"0",null,"2",null,null,null,null,null,null,null,null,null,null,null,null,null,null,null,null,null,"2.",null,null,null,"許可換え新規",null,null,null,null,null,null,null,null,null,null,null,null,null,null,null,null,null,null,null,null,null,null,null,"5.",null,null,null,"更新",null,null,null,null,null,null,null,null,null,null,null,null,null,null,null,null,null,null,null,null,null,null,null,null,null,null,null,null,null,"8.",null,null,null,"業種追加＋更新",null,null,null,null,null,null,null,null,null,null,null,null,null,null,null,null,null,null,null,null,null,null,null,null,null,null,null,null,null,null,null,null,null,null,null,null,null,null,null,null,"許可の有効\n期間の調整",null,null,null,null,null,null,null,null,null,null,null,null,null,null,null,null,null,null,null,null,null,2,null,null,null,null,null,null,null,null,"1.\n2.",null,null,null,null,"する\nしない",null,null,null,null,null,null,null,null,null,null,null,null,null,null,null,null,null,null,null,null,null,null,null,null,null,null,null,null,null,null,1]
[null,null,null,null,null,null,null,null,null,null,null,null,null,null,null,null,null,null,null,null,null,null,null,null,null,"3.",null,null,null,"般・特新規",null,null,null,null,null,null,null,null,null,null,null,null,null,null,null,null,null,null,null,null,null,null,null,"6.",null,null,null,"般・特新規＋業種追加",null,null,null,null,null,null,null,null,null,null,null,null,null,null,null,null,null,null,null,null,null,null,null,null,null,null,null,null,null,"9.",null,null,null,"般・特新規＋業種追加＋更新",null,null,null,null,null,null,null,null,null,null,null,null,null,null,null,null,null,null,null,null,null,null,null,null,null,null,null,null,null,null,null,null,null,null,null,null,null,null,null,null,null,null,null,null,null,null,null,null,null,null,null,null,null,null,null,null,null,null,null,null,null,null,null,null,null,null,null,null,null,null,null,null,null,null,null,null,null,null,null,null,null,null,null,null,null,null,null,null,null,null,null,null,null,null,null,null,null,null,null,null,null,null,null,null,null,null,null,2]
[null,null,null,null,null,null,null,null,null,null,null,null,null,null,null,null,null,null,null,null,null,null,"3",null,null,null,null,null,null,null,null,null,null,null,null,null,null,null,null,null,null,"5",null,null,null,null,null,null,null,null,null,null,null,null,null,null,null,null,null,null,null,"7"]
[null,"申請年月日",null,null,null,"0",null,"3",null,null,null,"平成",null,null,null,null,null,null,null,null,null,null,null,null,null,null,null,null,null,null,null,null,"年",null,null,null,null,null,null,null,null,null,null,null,null,null,null,null,null,null,null,"月",null,null,null,null,null,null,null,null,null,null,null,null,null,null,null,null,null,null,null,"日"]
[]
[null,null,null,null,null,null,null,null,null,"土",null,null,null,null,null,"建",null,null,null,null,null,"大",null,null,null,null,null,"左",null,null,null,null,null,"と",null,null,null,null,null,"石",null,null,null,null,null,"屋",null,null,null,null,null,"電",null,null,null,null,null,"管",null,null,null,null,null,"タ",null,null,null,null,null,"鋼",null,null,null,null,null,"筋",null,null,null,null,null,"ほ",null,null,null,null,"しゅ",null,null,null,null,null,null,"板",null,null,null,null,null,"ガ",null,null,null,null,null,"塗",null,null,null,null,null,"防",null,null,null,null,null,"内",null,null,null,null,null,"機",null,null,null,null,null,"絶",null,null,null,null,null,"通",null,null,null,null,null,"園",null,null,null,null,null,"井",null,null,null,null,null,"具",null,null,null,null,null,"水",null,null,null,null,null,"消",null,null,null,null,null,"清"]
[null,"許可を受けようと\nする建設業",null,null,null,"0",null,"4",null,null,null,null,null,null,null,null,null,null,null,null,null,null,null,null,null,null,null,null,null,null,null,null,null,null,null,null,null,null,null,null,null,null,null,null,null,null,null,null,null,null,null,null,null,null,null,null,null,null,null,null,null,null,null,null,null,null,null,null,null,null,null,null,null,null,null,null,null,null,null,null,null,null,null,null,null,null,null,null,null,null,null,null,null,null,null,null,null,null,null,null,null,null,null,null,null,null,null,null,null,null,null,null,null,null,null,null,null,null,null,null,null,null,null,null,null,null,null,null,null,null,null,null,null,null,null,null,null,null,null,null,null,null,null,null,null,null,null,null,null,null,null,null,null,null,null,null,null,null,null,null,null,null,null,null,null,null,null,null,null,null,null,null,null,null,null,null,null,null,"1.一般\n2.特定",null,null,null,null,null,null,null,null,null,null,null,null,null,null,null,null,null,null,null,null,{"$f":"COUNTA(J24:FT24)","v":0}]
[null,"申請時において\n既に許可を受\nけている建設業",null,null,null,null,null,null,null,"3",null,null,null,null,null,null,null,null,null,null,null,5,null,null,null,null,null,null,null,null,null,null,null,null,null,null,null,null,null,null,null,null,null,null,null,null,null,null,null,null,null,"10",null,null,null,null,null,null,null,null,null,null,null,null,null,null,null,null,null,null,null,null,null,null,null,null,null,null,null,null,null,"15",null,null,null,null,null,null,null,null,null,null,null,null,null,null,null,null,null,null,null,null,null,null,null,null,null,null,null,null,null,20,null,null,null,null,null,null,null,null,null,null,null,null,null,null,null,null,null,null,null,null,null,null,null,null,null,null,null,null,null,25,null,null,null,null,null,null,null,null,null,null,null,null,null,null,null,null,null,null,null,null,null,null,null,null,null,null,null,null,null,30]
[null,null,null,null,null,"0",null,"5"]
[null,null,null,null,null,null,null,null,null,3,null,null,null,null,null,null,null,null,null,null,null,null,null,null,null,null,null,5,null,null,null,null,null,null,null,null,null,null,null,null,null,null,null,null,null,null,null,null,null,null,null,null,null,null,null,null,null,null,null,null,null,null,null,null,null,null,null,null,null,null,null,null,10,null,null,null,null,null,null,null,null,null,null,null,null,null,null,null,null,null,null,null,null,null,null,null,null,null,null,null,null,null,null,null,null,null,null,null,null,null,null,null,null,null,null,null,null,15,null,null,null,null,null,null,null,null,null,null,null,null,null,null,null,null,null,null,null,null,null,null,null,null,null,null,null,null,null,null,null,null,null,null,null,null,null,null,null,null,null,null,null,null,20]
[null,"商号又は名称\nのフリガナ",null,null,null,"0",null,"6",null,{"$f":"LEFT(会社データ!$D$11,1)","v":""},null,null,null,null,null,null,null,null,{"$f":"MID(会社データ!$D$11,2,1)","v":""},null,null,null,null,null,null,null,null,{"$f":"MID(会社データ!$D$11,3,1)","v":""},null,null,null,null,null,null,null,null,{"$f":"MID(会社データ!$D$11,4,1)","v":""},null,null,null,null,null,null,null,null,{"$f":"MID(会社データ!$D$11,5,1)","v":""},null,null,null,null,null,null,null,null,{"$f":"MID(会社データ!$D$11,6,1)","v":""},null,null,null,null,null,null,null,null,{"$f":"MID(会社データ!$D$11,7,1)","v":""},null,null,null,null,null,null,null,null,{"$f":"MID(会社データ!$D$11,8,1)","v":""},null,null,null,null,null,null,null,null,{"$f":"MID(会社データ!$D$11,9,1)","v":""},null,null,null,null,null,null,null,null,{"$f":"MID(会社データ!$D$11,10,1)","v":""},null,null,null,null,null,null,null,null,{"$f":"MID(会社データ!$D$11,11,1)","v":""},null,null,null,null,null,null,null,null,{"$f":"MID(会社データ!$D$11,12,1)","v":""},null,null,null,null,null,null,null,null,{"$f":"MID(会社データ!$D$11,13,1)","v":""},null,null,null,null,null,null,null,null,{"$f":"MID(会社データ!$D$11,14,1)","v":""},null,null,null,null,null,null,null,null,{"$f":"MID(会社データ!$D$11,15,1)","v":""},null,null,null,null,null,null,null,null,{"$f":"MID(会社データ!$D$11,16,1)","v":""},null,null,null,null,null,null,null,null,{"$f":"MID(会社データ!$D$11,17,1)","v":""},null,null,null,null,null,null,null,null,{"$f":"MID(会社データ!$D$11,18,1)","v":""},null,null,null,null,null,null,null,null,{"$f":"MID(会社データ!$D$11,19,1)","v":""},null,null,null,null,null,null,null,null,{"$f":"MID(会社データ!$D$11,20,1)","v":""}]
[null,null,null,null,null,null,null,null,null,23,null,null,null,null,null,null,null,null,null,null,null,null,null,null,null,null,null,25,null,null,null,null,null,null,null,null,null,null,null,null,null,null,null,null,null,null,null,null,null,null,null,null,null,null,null,null,null,null,null,null,null,null,null,null,null,null,null,null,null,null,null,null,30,null,null,null,null,null,null,null,null,null,null,null,null,null,null,null,null,null,null,null,null,null,null,null,null,null,null,null,null,null,null,null,null,null,null,null,null,null,null,null,null,null,null,null,null,35,null,null,null,null,null,null,null,null,null,null,null,null,null,null,null,null,null,null,null,null,null,null,null,null,null,null,null,null,null,null,null,null,null,null,null,null,null,null,null,null,null,null,null,null,40]
[null,null,null,null,null,null,null,null,null,{"$f":"MID(会社データ!$D$11,21,1)","v":""},null,null,null,null,null,null,null,null,{"$f":"MID(会社データ!$D$11,22,1)","v":""},null,null,null,null,null,null,null,null,{"$f":"MID(会社データ!$D$11,23,1)","v":""},null,null,null,null,null,null,null,null,{"$f":"MID(会社データ!$D$11,24,1)","v":""},null,null,null,null,null,null,null,null,{"$f":"MID(会社データ!$D$11,25,1)","v":""},null,null,null,null,null,null,null,null,{"$f":"MID(会社データ!$D$11,26,1)","v":""},null,null,null,null,null,null,null,null,{"$f":"MID(会社データ!$D$11,27,1)","v":""},null,null,null,null,null,null,null,null,{"$f":"MID(会社データ!$D$11,28,1)","v":""},null,null,null,null,null,null,null,null,{"$f":"MID(会社データ!$D$11,29,1)","v":""},null,null,null,null,null,null,null,null,{"$f":"MID(会社データ!$D$11,30,1)","v":""},null,null,null,null,null,null,null,null,{"$f":"MID(会社データ!$D$11,31,1)","v":""},null,null,null,null,null,null,null,null,{"$f":"MID(会社データ!$D$11,32,1)","v":""},null,null,null,null,null,null,null,null,{"$f":"MID(会社データ!$D$11,33,1)","v":""},null,null,null,null,null,null,null,null,{"$f":"MID(会社データ!$D$11,34,1)","v":""},null,null,null,null,null,null,null,null,{"$f":"MID(会社データ!$D$11,35,1)","v":""},null,null,null,null,null,null,null,null,{"$f":"MID(会社データ!$D$11,36,1)","v":""},null,null,null,null,null,null,null,null,{"$f":"MID(会社データ!$D$11,37,1)","v":""},null,null,null,null,null,null,null,null,{"$f":"MID(会社データ!$D$11,38,1)","v":""},null,null,null,null,null,null,null,null,{"$f":"MID(会社データ!$D$11,39,1)","v":""},null,null,null,null,null,null,null,null,{"$f":"MID(会社データ!$D$11,40,1)","v":""}]
[null,null,null,null,null,null,null,null,null,3,null,null,null,null,null,null,null,null,null,null,null,null,null,null,null,null,null,5,null,null,null,null,null,null,null,null,null,null,null,null,null,null,null,null,null,null,null,null,null,null,null,null,null,null,null,null,null,null,null,null,null,null,null,null,null,null,null,null,null,null,null,null,10,null,null,null,null,null,null,null,null,null,null,null,null,null,null,null,null,null,null,null,null,null,null,null,null,null,null,null,null,null,null,null,null,null,null,null,null,null,null,null,null,null,null,null,null,15,null,null,null,null,null,null,null,null,null,null,null,null,null,null,null,null,null,null,null,null,null,null,null,null,null,null,null,null,null,null,null,null,null,null,null,null,null,null,null,null,null,null,null,null,20]
[null,"商号又は名称",null,null,null,"0",null,"7",null,{"$f":"LEFT(会社データ!$D$12,1)","v":""},null,null,null,null,null,null,null,null,{"$f":"MID(会社データ!$D$12,2,1)","v":""},null,null,null,null,null,null,null,null,{"$f":"MID(会社データ!$D$12,3,1)","v":""},null,null,null,null,null,null,null,null,{"$f":"MID(会社データ!$D$12,4,1)","v":""},null,null,null,null,null,null,null,null,{"$f":"MID(会社データ!$D$12,5,1)","v":""},null,null,null,null,null,null,null,null,{"$f":"MID(会社データ!$D$12,6,1)","v":""},null,null,null,null,null,null,null,null,{"$f":"MID(会社データ!$D$12,7,1)","v":""},null,null,null,null,null,null,null,null,{"$f":"MID(会社データ!$D$12,8,1)","v":""},null,null,null,null,null,null,null,null,{"$f":"MID(会社データ!$D$12,9,1)","v":""},null,null,null,null,null,null,null,null,{"$f":"MID(会社データ!$D$12,10,1)","v":""},null,null,null,null,null,null,null,null,{"$f":"MID(会社データ!$D$12,11,1)","v":""},null,null,null,null,null,null,null,null,{"$f":"MID(会社データ!$D$12,12,1)","v":""},null,null,null,null,null,null,null,null,{"$f":"MID(会社データ!$D$12,13,1)","v":""},null,null,null,null,null,null,null,null,{"$f":"MID(会社データ!$D$12,14,1)","v":""},null,null,null,null,null,null,null,null,{"$f":"MID(会社データ!$D$12,15,1)","v":""},null,null,null,null,null,null,null,null,{"$f":"MID(会社データ!$D$12,16,1)","v":""},null,null,null,null,null,null,null,null,{"$f":"MID(会社データ!$D$12,17,1)","v":""},null,null,null,null,null,null,null,null,{"$f":"MID(会社データ!$D$12,18,1)","v":""},null,null,null,null,null,null,null,null,{"$f":"MID(会社データ!$D$12,19,1)","v":""},null,null,null,null,null,null,null,null,{"$f":"MID(会社データ!$D$12,20,1)","v":""}]
[null,null,null,null,null,null,null,null,null,23,null,null,null,null,null,null,null,null,null,null,null,null,null,null,null,null,null,25,null,null,null,null,null,null,null,null,null,null,null,null,null,null,null,null,null,null,null,null,null,null,null,null,null,null,null,null,null,null,null,null,null,null,null,null,null,null,null,null,null,null,null,null,30,null,null,null,null,null,null,null,null,null,null,null,null,null,null,null,null,null,null,null,null,null,null,null,null,null,null,null,null,null,null,null,null,null,null,null,null,null,null,null,null,null,null,null,null,35,null,null,null,null,null,null,null,null,null,null,null,null,null,null,null,null,null,null,null,null,null,null,null,null,null,null,null,null,null,null,null,null,null,null,null,null,null,null,null,null,null,null,null,null,40]
[null,null,null,null,null,null,null,null,null,{"$f":"MID(会社データ!$D$12,21,1)","v":""},null,null,null,null,null,null,null,null,{"$f":"MID(会社データ!$D$12,22,1)","v":""},null,null,null,null,null,null,null,null,{"$f":"MID(会社データ!$D$12,23,1)","v":""},null,null,null,null,null,null,null,null,{"$f":"MID(会社データ!$D$12,24,1)","v":""},null,null,null,null,null,null,null,null,{"$f":"MID(会社データ!$D$12,25,1)","v":""},null,null,null,null,null,null,null,null,{"$f":"MID(会社データ!$D$12,26,1)","v":""},null,null,null,null,null,null,null,null,{"$f":"MID(会社データ!$D$12,27,1)","v":""},null,null,null,null,null,null,null,null,{"$f":"MID(会社データ!$D$12,28,1)","v":""},null,null,null,null,null,null,null,null,{"$f":"MID(会社データ!$D$12,29,1)","v":""},null,null,null,null,null,null,null,null,{"$f":"MID(会社データ!$D$12,30,1)","v":""},null,null,null,null,null,null,null,null,{"$f":"MID(会社データ!$D$12,31,1)","v":""},null,null,null,null,null,null,null,null,{"$f":"MID(会社データ!$D$12,32,1)","v":""},null,null,null,null,null,null,null,null,{"$f":"MID(会社データ!$D$12,33,1)","v":""},null,null,null,null,null,null,null,null,{"$f":"MID(会社データ!$D$12,34,1)","v":""},null,null,null,null,null,null,null,null,{"$f":"MID(会社データ!$D$12,35,1)","v":""},null,null,null,null,null,null,null,null,{"$f":"MID(会社データ!$D$12,36,1)","v":""},null,null,null,null,null,null,null,null,{"$f":"MID(会社データ!$D$12,37,1)","v":""},null,null,null,null,null,null,null,null,{"$f":"MID(会社データ!$D$12,38,1)","v":""},null,null,null,null,null,null,null,null,{"$f":"MID(会社データ!$D$12,39,1)","v":""},null,null,null,null,null,null,null,null,{"$f":"MID(会社データ!$D$12,40,1)","v":""}]
[null,null,null,null,null,null,null,null,null,3,null,null,null,null,null,null,null,null,null,null,null,null,null,null,null,null,null,5,null,null,null,null,null,null,null,null,null,null,null,null,null,null,null,null,null,null,null,null,null,null,null,null,null,null,null,null,null,null,null,null,null,null,null,null,null,null,null,null,null,null,null,null,10,null,null,null,null,null,null,null,null,null,null,null,null,null,null,null,null,null,null,null,null,null,null,null,null,null,null,null,null,null,null,null,null,null,null,null,null,null,null,null,null,null,null,null,null,15,null,null,null,null,null,null,null,null,null,null,null,null,null,null,null,null,null,null,null,null,null,null,null,null,null,null,null,null,null,null,null,null,null,null,null,null,null,null,null,null,null,null,null,null,20]
[null,"代表者又は個人の氏名のフリガナ",null,null,null,"0",null,"8",null,{"$f":"LEFT(会社データ!$D$15,1)","v":""},null,null,null,null,null,null,null,null,{"$f":"MID(会社データ!$D$15,2,1)","v":""},null,null,null,null,null,null,null,null,{"$f":"MID(会社データ!$D$15,3,1)","v":""},null,null,null,null,null,null,null,null,{"$f":"MID(会社データ!$D$15,4,1)","v":""},null,null,null,null,null,null,null,null,{"$f":"MID(会社データ!$D$15,5,1)","v":""},null,null,null,null,null,null,null,null,{"$f":"MID(会社データ!$D$15,6,1)","v":""},null,null,null,null,null,null,null,null,{"$f":"MID(会社データ!$D$15,7,1)","v":""},null,null,null,null,null,null,null,null,{"$f":"MID(会社データ!$D$15,8,1)","v":""},null,null,null,null,null,null,null,null,{"$f":"MID(会社データ!$D$15,9,1)","v":""},null,null,null,null,null,null,null,null,{"$f":"MID(会社データ!$D$15,10,1)","v":""},null,null,null,null,null,null,null,null,{"$f":"MID(会社データ!$D$15,11,1)","v":""},null,null,null,null,null,null,null,null,{"$f":"MID(会社データ!$D$15,12,1)","v":""},null,null,null,null,null,null,null,null,{"$f":"MID(会社データ!$D$15,13,1)","v":""},null,null,null,null,null,null,null,null,{"$f":"MID(会社データ!$D$15,14,1)","v":""},null,null,null,null,null,null,null,null,{"$f":"MID(会社データ!$D$15,15,1)","v":""},null,null,null,null,null,null,null,null,{"$f":"MID(会社データ!$D$15,16,1)","v":""},null,null,null,null,null,null,null,null,{"$f":"MID(会社データ!$D$15,17,1)","v":""},null,null,null,null,null,null,null,null,{"$f":"MID(会社データ!$D$15,18,1)","v":""},null,null,null,null,null,null,null,null,{"$f":"MID(会社データ!$D$15,19,1)","v":""},null,null,null,null,null,null,null,null,{"$f":"MID(会社データ!$D$15,20,1)","v":""}]
[null,null,null,null,null,null,null,null,null,3,null,null,null,null,null,null,null,null,null,null,null,null,null,null,null,null,null,5,null,null,null,null,null,null,null,null,null,null,null,null,null,null,null,null,null,null,null,null,null,null,null,null,null,null,null,null,null,null,null,null,null,null,null,null,null,null,null,null,null,null,null,null,10]
[null,"代表者又は\n個人の氏名",null,null,null,"0",null,"9",null,{"$f":"LEFT(会社データ!$D$16,1)","v":""},null,null,null,null,null,null,null,null,{"$f":"MID(会社データ!$D$16,2,1)","v":""},null,null,null,null,null,null,null,null,{"$f":"MID(会社データ!$D$16,3,1)","v":""},null,null,null,null,null,null,null,null,{"$f":"MID(会社データ!$D$16,4,1)","v":""},null,null,null,null,null,null,null,null,{"$f":"MID(会社データ!$D$16,5,1)","v":""},null,null,null,null,null,null,null,null,{"$f":"MID(会社データ!$D$16,6,1)","v":""},null,null,null,null,null,null,null,null,{"$f":"MID(会社データ!$D$16,7,1)","v":""},null,null,null,null,null,null,null,null,{"$f":"MID(会社データ!$D$16,8,1)","v":""},null,null,null,null,null,null,null,null,{"$f":"MID(会社データ!$D$16,9,1)","v":""},null,null,null,null,null,null,null,null,{"$f":"MID(会社データ!$D$16,10,1)","v":""},null,null,null,null,null,null,null,null,null,null,null,null,"支配人の氏名"]
[null,"主たる営業所の\n所在地市区町村\nコード",null,null,null,null,null,null,null,3,null,null,null,null,null,null,null,null,null,null,null,5]
[null,null,null,null,null,"1",null,"0",null,{"$f":"LEFT(会社データ!F20,1)","v":"コ"},null,null,null,null,null,{"$f":"MID(会社データ!$F$20,2,1)","v":"ー"},null,null,null,null,null,{"$f":"MID(会社データ!$F$20,3,1)","v":"ド"},null,null,null,null,null,{"$f":"MID(会社データ!$F$20,4,1)","v":"は"},null,null,null,null,null,{"$f":"MID(会社データ!$F$20,5,1)","v":"自"},null,null,null,null,null,null,null,null,null,null,"都道府県名",null,null,null,null,null,null,null,null,null,null,null,null,null,null,null,null,null,null,null,null,{"$f":"会社データ!D18","v":0},null,null,null,null,null,null,null,null,null,null,null,null,null,null,null,null,null,null,null,null,null,null,null,null,null,null,null,null,null,null,null,null,null,null,null,null,null,null,null,null,null,null,null,null,"市区町村名",null,null,null,null,null,null,null,null,null,null,null,null,null,null,null,null,null,null,null,null,{"$f":"会社データ!F18","v":0}]
[null,null,null,null,null,null,null,null,null,3,null,null,null,null,null,null,null,null,null,null,null,null,null,null,null,null,null,5,null,null,null,null,null,null,null,null,null,null,null,null,null,null,null,null,null,null,null,null,null,null,null,null,null,null,null,null,null,null,null,null,null,null,null,null,null,null,null,null,null,null,null,null,10,null,null,null,null,null,null,null,null,null,null,null,null,null,null,null,null,null,null,null,null,null,null,null,null,null,null,null,null,null,null,null,null,null,null,null,null,null,null,null,null,null,null,null,null,15,null,null,null,null,null,null,null,null,null,null,null,null,null,null,null,null,null,null,null,null,null,null,null,null,null,null,null,null,null,null,null,null,null,null,null,null,null,null,null,null,null,null,null,null,20]
[null,"主たる営業所の\n所在地",null,null,null,"1",null,"1",null,{"$f":"LEFT(会社データ!$D$19,1)","v":""},null,null,null,null,null,null,null,null,{"$f":"MID(会社データ!$D$19,2,1)","v":""},null,null,null,null,null,null,null,null,{"$f":"MID(会社データ!$D$19,3,1)","v":""},null,null,null,null,null,null,null,null,{"$f":"MID(会社データ!$D$19,4,1)","v":""},null,null,null,null,null,null,null,null,{"$f":"MID(会社データ!$D$19,5,1)","v":""},null,null,null,null,null,null,null,null,{"$f":"MID(会社データ!$D$19,6,1)","v":""},null,null,null,null,null,null,null,null,{"$f":"MID(会社データ!$D$19,7,1)","v":""},null,null,null,null,null,null,null,null,{"$f":"MID(会社データ!$D$19,8,1)","v":""},null,null,null,null,null,null,null,null,{"$f":"MID(会社データ!$D$19,9,1)","v":""},null,null,null,null,null,null,null,null,{"$f":"MID(会社データ!$D$19,10,1)","v":""},null,null,null,null,null,null,null,null,{"$f":"MID(会社データ!$D$19,11,1)","v":""},null,null,null,null,null,null,null,null,{"$f":"MID(会社データ!$D$19,12,1)","v":""},null,null,null,null,null,null,null,null,{"$f":"MID(会社データ!$D$19,13,1)","v":""},null,null,null,null,null,null,null,null,{"$f":"MID(会社データ!$D$19,14,1)","v":""},null,null,null,null,null,null,null,null,{"$f":"MID(会社データ!$D$19,15,1)","v":""},null,null,null,null,null,null,null,null,{"$f":"MID(会社データ!$D$19,16,1)","v":""},null,null,null,null,null,null,null,null,{"$f":"MID(会社データ!$D$19,17,1)","v":""},null,null,null,null,null,null,null,null,{"$f":"MID(会社データ!$D$19,18,1)","v":""},null,null,null,null,null,null,null,null,{"$f":"MID(会社データ!$D$19,19,1)","v":""},null,null,null,null,null,null,null,null,{"$f":"MID(会社データ!$D$19,20,1)","v":""}]
[null,null,null,null,null,null,null,null,null,23,null,null,null,null,null,null,null,null,null,null,null,null,null,null,null,null,null,25,null,null,null,null,null,null,null,null,null,null,null,null,null,null,null,null,null,null,null,null,null,null,null,null,null,null,null,null,null,null,null,null,null,null,null,null,null,null,null,null,null,null,null,null,30,null,null,null,null,null,null,null,null,null,null,null,null,null,null,null,null,null,null,null,null,null,null,null,null,null,null,null,null,null,null,null,null,null,null,null,null,null,null,null,null,null,null,null,null,35,null,null,null,null,null,null,null,null,null,null,null,null,null,null,null,null,null,null,null,null,null,null,null,null,null,null,null,null,null,null,null,null,null,null,null,null,null,null,null,null,null,null,null,null,40]
[null,null,null,null,null,null,null,null,null,{"$f":"MID(会社データ!$D$19,21,1)","v":""},null,null,null,null,null,null,null,null,{"$f":"MID(会社データ!$D$19,22,1)","v":""},null,null,null,null,null,null,null,null,{"$f":"MID(会社データ!$D$19,23,1)","v":""},null,null,null,null,null,null,null,null,{"$f":"MID(会社データ!$D$19,24,1)","v":""},null,null,null,null,null,null,null,null,{"$f":"MID(会社データ!$D$19,25,1)","v":""},null,null,null,null,null,null,null,null,{"$f":"MID(会社データ!$D$19,26,1)","v":""},null,null,null,null,null,null,null,null,{"$f":"MID(会社データ!$D$19,27,1)","v":""},null,null,null,null,null,null,null,null,{"$f":"MID(会社データ!$D$19,28,1)","v":""},null,null,null,null,null,null,null,null,{"$f":"MID(会社データ!$D$19,29,1)","v":""},null,null,null,null,null,null,null,null,{"$f":"MID(会社データ!$D$19,30,1)","v":""},null,null,null,null,null,null,null,null,{"$f":"MID(会社データ!$D$19,31,1)","v":""},null,null,null,null,null,null,null,null,{"$f":"MID(会社データ!$D$19,32,1)","v":""},null,null,null,null,null,null,null,null,{"$f":"MID(会社データ!$D$19,33,1)","v":""},null,null,null,null,null,null,null,null,{"$f":"MID(会社データ!$D$19,34,1)","v":""},null,null,null,null,null,null,null,null,{"$f":"MID(会社データ!$D$19,35,1)","v":""},null,null,null,null,null,null,null,null,{"$f":"MID(会社データ!$D$19,36,1)","v":""},null,null,null,null,null,null,null,null,{"$f":"MID(会社データ!$D$19,37,1)","v":""},null,null,null,null,null,null,null,null,{"$f":"MID(会社データ!$D$19,38,1)","v":""},null,null,null,null,null,null,null,null,{"$f":"MID(会社データ!$D$19,39,1)","v":""},null,null,null,null,null,null,null,null,{"$f":"MID(会社データ!$D$19,40,1)","v":""}]
[null,null,null,null,null,null,null,null,null,3,null,null,null,null,null,null,null,null,null,null,null,5,null,null,null,null,null,null,null,null,null,null,null,6,null,null,null,null,null,null,null,null,null,null,null,null,null,null,null,null,null,null,null,null,null,null,null,null,null,null,null,null,null,null,null,null,null,null,null,null,null,null,null,null,null,null,null,null,null,null,null,null,null,null,null,null,null,10,null,null,null,null,null,null,null,null,null,null,null,null,null,null,null,null,null,null,null,null,null,null,null,null,null,null,null,null,null,15,null,null,null,null,null,null,null,null,null,null,null,null,null,null,null,null,null,null,null,null,null,null,null,null,null,null,null,null,null,20]
[null,"郵便番号",null,null,null,"1",null,"2",null,{"$f":"LEFT(会社データ!D20,1)","v":""},null,null,null,null,null,{"$f":"MID(会社データ!$D$20,2,1)","v":""},null,null,null,null,null,{"$f":"MID(会社データ!$D$20,3,1)","v":""},null,null,null,null,null,"－",null,null,null,null,null,{"$f":"MID(会社データ!$D$20,5,1)","v":""},null,null,null,null,null,{"$f":"MID(会社データ!$D$20,6,1)","v":""},null,null,null,null,null,{"$f":"MID(会社データ!$D$20,7,1)","v":""},null,null,null,null,null,{"$f":"MID(会社データ!$D$20,8,1)","v":""},null,null,null,null,null,null,null,null,null,null,null,null,null,null,null,null,null,null,null,null,null,null,null,null,null,null,null,null,null,null,null,null,"電話番号",null,null,{"$f":"LEFT(会社データ!D21,1)","v":""},null,null,null,null,null,{"$f":"MID(会社データ!$D$21,2,1)","v":""},null,null,null,null,null,{"$f":"MID(会社データ!$D$21,3,1)","v":""},null,null,null,null,null,{"$f":"MID(会社データ!$D$21,4,1)","v":""},null,null,null,null,null,{"$f":"MID(会社データ!$D$21,5,1)","v":""},null,null,null,null,null,{"$f":"MID(会社データ!$D$21,6,1)","v":""},null,null,null,null,null,{"$f":"MID(会社データ!$D$21,7,1)","v":""},null,null,null,null,null,{"$f":"MID(会社データ!$D$21,8,1)","v":""},null,null,null,null,null,{"$f":"MID(会社データ!$D$21,9,1)","v":""},null,null,null,null,null,{"$f":"MID(会社データ!$D$21,10,1)","v":""},null,null,null,null,null,{"$f":"MID(会社データ!$D$21,11,1)","v":""},null,null,null,null,null,{"$f":"MID(会社データ!$D$21,12,1)","v":""},null,null,null,null,null,{"$f":"MID(会社データ!$D$21,13,1)","v":""}]
[]
[null,null,null,null,null,null,null,null,null,"ファックス番号",null,null,null,null,null,null,null,null,null,null,null,null,null,null,null,null,null,null,null,null,null,null,null,{"$f":"会社データ!F21","v":0}]
[null,null,null,null,null,null,null,null,null,3,null,null,null,null,null,null,null,null,null,null,null,5,null,null,null,null,null,null,null,null,null,null,null,null,null,null,null,null,null,null,null,null,null,null,null,null,null,null,null,null,null,10,null,null,null,null,null,null,null,null,null,null,null,null,null,null,null,null,null,null,null,null,null,null,null,null,null,null,null,null,null,null,null,null,null,null,null,null,null,null,null,null,null,null,null,null,null,null,null,null,null,null,null,null,null,null,null,null,null,null,null,null,null,null,null,null,null,null,null,12]
[null,"資本金額\n又は出資総額",null,null,null,"1",null,"3",null,{"$f":"IF(LEN(会社データ!$D$32)<=8,\"\",MID(会社データ!$D$32,LEN(会社データ!$D$32)-8,1))","v":""},null,null,null,null,null,{"$f":"IF(LEN(会社データ!$D$32)<=7,\"\",MID(会社データ!$D$32,LEN(会社データ!$D$32)-7,1))","v":""},null,null,null,null,null,{"$f":"IF(LEN(会社データ!$D$32)<=6,\"\",MID(会社データ!$D$32,LEN(会社データ!$D$32)-6,1))","v":""},null,null,null,null,null,{"$f":"IF(LEN(会社データ!$D$32)<=5,\"\",MID(会社データ!$D$32,LEN(会社データ!$D$32)-5,1))","v":""},null,null,null,null,null,{"$f":"IF(LEN(会社データ!$D$32)<=4,\"\",MID(会社データ!$D$32,LEN(会社データ!$D$32)-4,1))","v":""},null,null,null,null,null,{"$f":"IF(LEN(会社データ!$D$32)<=3,\"\",MID(会社データ!$D$32,LEN(会社データ!$D$32)-3,1))","v":""},null,null,null,null,null,{"$f":"IF(LEN(会社データ!$D$32)<=2,\"\",MID(会社データ!$D$32,LEN(会社データ!$D$32)-2,1))","v":""},null,null,null,null,null,{"$f":"IF(LEN(会社データ!$D$32)<=1,\"\",MID(会社データ!$D$32,LEN(会社データ!$D$32)-1,1))","v":""},null,null,null,null,null,{"$f":"RIGHT(会社データ!D32,1)","v":""},null,null,null,null,null,null,"（千円）",null,null,null,null,null,null,null,null,null,null,null,null,null,null,null,null,null,null,null,null,null,"法人又は個人の別",null,null,null,null,null,null,null,null,null,null,null,null,null,null,null,null,null,null,null,null,null,null,null,null,null,null,null,null,null,null,null,null,{"$f":"IF(会社データ!D9=1,1,2)","v":1},null,null,null,null,null,null,null,null,"1.法人\n2.個人"]
[null,null,null,null,null,null,null,null,null,3,null,null,null,null,null,null,null,null,null,null,null,null,null,null,null,"’",null,null,null,null,null,null,null,null,null,null,null,null,null,null,null,null,null,"’",null,null,null,null,null,null,null,null,null,null,null,null,null,null,null,null,null,null,null,null,null,"建設業以外に行っている営業の種類"]
[null,"兼業の有無",null,null,null,"1",null,"4",null,null,null,null,null,null,null,null,null,"1.　有\n2.　無"]
[]
[null,null,null,null,null,null,null,null,null,3,null,null,null,null,null,null,null,null,null,null,null,null,null,null,null,null,null,null,null,null,null,null,null,null,null,null,null,null,null,null,null,null,null,null,null,null,null,null,null,null,null,null,null,null,null,null,null,null,null,null,null,null,null,null,null,null,null,null,null,null,null,null,null,null,null,null,null,null,null,null,null,null,null,null,null,null,null,null,null,null,null,null,null,null,null,null,null,null,null,null,null,null,null,null,null,null,null,null,null,null,null,null,null,null,null,null,null,null,null,null,null,null,null,null,null,null,null,null,null,null,null,null,null,null,null,null,null,null,null,null,null,null,null,null,null,null,null,null,null,null,null,null,null,null,null,null,null,null,null,null,null,null,null,null,null,null,null,null,null,null,null,null,null,null,null,null,null,null,null,null,null,null,null,null,null,null,null,null,null,null,null,null,null,null,null,null,null,null,1]
[null,"許可換えの区分",null,null,null,"1",null,"5",null,null,null,null,null,null,null,null,null,null,"（1.大臣許可→知事許可　　　2.知事許可→大臣許可　　　3.知事許可→他の知事許可）",null,null,null,null,null,null,null,null,null,null,null,null,null,null,null,null,null,null,null,null,null,null,null,null,null,null,null,null,null,null,null,null,null,null,null,null,null,null,null,null,null,null,null,null,null,null,null,null,null,null,null,null,null,null,null,null,null,null,null,null,null,null,null,null,null,null,null,null,null,null,null,null,null,null,null,null,null,null,null,null,null,null,null,null,null,null,null,null,null,null,null,null,null,null,null,null,null,null,null,null,null,null,null,null,null,null,null,null,null,null,null,null,null,null,null,null,null,null,null,null,null,null,null,null,null,null,null,null,null,null,null,null,null,null,null,null,null,null,null,null,null,null,null,null,null,null,null,null,null,null,null,null,null,null,null,null,null,null,null,null,null,null,null,null,null,null,null,null,null,null,null,null,null,null,null,null,null,null,null,2]
[null,null,null,null,null,null,null,null,null,"大臣\n知事",null,null,null,null,null,null,null,null,"コード",null,null,null,null,null,null,null,null,null,null,null,null,null,null,null,null,null,null,null,null,null,null,null,null,null,null,null,null,null,null,null,null,null,null,null,null,null,null,null,null,null,null,null,null,null,null,null,null,null,null,null,null,null,null,null,null,null,null,null,null,null,null,null,null,null,null,null,null,null,null,null,null,null,null,null,null,null,null,null,null,null,null,null,null,null,null,null,null,null,null,null,null,null,null,null,null,null,null,null,null,null,null,null,null,null,null,null,null,"旧許可年月日"]
[null,null,null,null,null,null,null,null,null,3,null,null,null,null,null,null,null,null,null,null,null,null,null,null,null,null,null,null,null,null,null,null,null,null,null,null,null,null,null,null,null,null,null,null,null,null,null,null,null,null,null,null,null,null,null,null,null,null,null,null,null,null,null,null,null,null,null,null,null,null,null,null,null,null,null,null,null,null,null,null,null,null,null,null,"5",null,null,null,null,null,null,null,null,null,null,null,null,null,null,null,null,null,null,null,null,null,null,null,null,null,null,null,null,10,null,null,null,null,null,null,null,null,null,null,null,null,null,null,null,null,null,null,null,null,null,null,null,"11",null,null,null,null,null,null,null,null,null,null,null,null,null,null,null,null,null,null,"13",null,null,null,null,null,null,null,null,null,null,null,null,null,null,null,null,null,null,null,"15"]
[null,"旧許可番号",null,null,null,"1",null,"6",null,{"$f":"IF(会社データ!D43=\"\",\"\",LEFT(会社データ!D44,1))","v":""},null,null,null,null,null,{"$f":"IF(会社データ!D43=\"\",\"\",RIGHT(会社データ!D44,1))","v":""},null,null,null,null,null,null,"国土交通大臣",null,null,null,null,null,null,null,null,null,null,null,null,null,null,null,null,null,null,null,null,null,"許可",null,null,null,null,null,null,null,null,"般",null,null,null,null,null,null,"－",null,null,null,{"$f":"IF(会社データ!F43=\"\",\"\",LEFT(会社データ!F43,1))","v":""},null,null,null,null,{"$f":"IF(会社データ!F43=\"\",\"\",RIGHT(会社データ!F43,1))","v":""},null,null,null,null,null,null,"第",null,null,null,null,null,null,{"$f":"LEFT(会社データ!G43,1)","v":""},null,null,null,null,null,{"$f":"MID(会社データ!G43,2,1)","v":""},null,null,null,null,null,{"$f":"MID(会社データ!G43,3,1)","v":""},null,null,null,null,null,{"$f":"MID(会社データ!G43,4,1)","v":""},null,null,null,null,null,{"$f":"MID(会社データ!G43,5,1)","v":""},null,null,null,null,null,{"$f":"MID(会社データ!G43,6,1)","v":""},null,null,null,null,null,"号",null,null,null,null,null,null,null,"平成",null,null,null,null,null,null,null,null,null,{"$f":"IF(会社データ!H43=\"\",\"\",IF(LEN(TEXT(会社データ!H43,\"e\"))=1,\"0\",LEFT(TEXT(会社データ!H43,\"e\"),1)))","v":""},null,null,null,null,null,{"$f":"IF(会社データ!H43=\"\",\"\",RIGHT(TEXT(会社データ!H43,\"e\"),1))","v":""},null,null,null,null,null,"年",null,null,null,null,null,null,{"$f":"IF(会社データ!H43=\"\",\"\",IF(LEN(MONTH(会社データ!H43))=1,\"0\",LEFT(MONTH(会社データ!H43),1)))","v":""},null,null,null,null,null,{"$f":"IF(会社データ!H43=\"\",\"\",RIGHT(MONTH(会社データ!H43),1))","v":""},null,null,null,null,null,"月",null,null,null,null,null,null,null,{"$f":"IF(会社データ!H43=\"\",\"\",IF(LEN(DAY(会社データ!H43))=1,\"0\",LEFT(DAY(会社データ!H43),1)))","v":""},null,null,null,null,null,{"$f":"IF(会社データ!H43=\"\",\"\",RIGHT(DAY(会社データ!H43),1))","v":""},null,null,null,null,null,"日"]
[null,null,null,null,null,null,null,null,null,null,null,null,null,null,null,null,null,null,null,null,null,null,"知事",null,null,null,null,null,null,null,null,null,null,null,null,null,null,null,null,null,null,null,null,null,null,null,null,null,null,null,null,null,null,"特"]
[]
["役員等、営業所及び営業所に置く専任の技術者については別表による。"]
[]
[null,"連絡先"]
[null,"所属等","四本事務所",null,null,null,null,null,null,null,null,null,null,null,null,null,null,null,null,null,null,null,null,null,null,null,null,null,null,null,null,null,null,null,null,null,null,null,null,null,null,null,null,null,"氏名",null,null,null,null,null,null,null,null,"行政書士　四本平一",null,null,null,null,null,null,null,null,null,null,null,null,null,null,null,null,null,null,null,null,null,null,null,null,null,null,null,null,null,null,null,null,null,null,null,null,null,null,null,null,null,null,null,null,null,null,null,null,null,null,null,null,null,null,null,null,null,null,null,null,null,"電話番号",null,null,null,null,null,null,null,null,null,null,null,null,null,null,null,null,"0439-55-4910"]
[null,"ファックス番号","0439-55-4911"]

{"sheet":"役員等の一覧表","index":3,"n_rows":32,"n_cols":22,"rows_kept":32,"cut":false,"hidden":false,"merged":[[2,1,2,4],[29,1,29,4],[30,1,30,4],[31,1,31,4],[4,7,4,9],[4,6,5,6],[4,1,4,4]]}
[null,"別紙一",null,null,"（用紙A4)"]
[]
[null,"役　員　等　の　一　覧　表"]
[null,null,null,null,{"$f":"会社データ!D4","v":"平成27年　　月　　日"}]
[null,"役員等の氏名及び役名等",null,null,null,null,"生年月日","住所",null,null,null,"常勤"]
["NO","氏名","役名等","常勤・非常勤の別","経営業務の管理責任者",null,null,"都道府県名","市区町村名","字丁目番地等",null,"非常勤"]
[1,null,null,null,null,null,null,null,null,null,null,"○",null,{"$f":"E7","v":0},{"$f":"B7","v":0},{"$f":"C7","v":0},{"$f":"D7","v":0},{"$f":"G7","v":"00:00:00"},{"$f":"H7","v":0},0,0,{"$f":"PHONETIC(B7)","v":""}]
[2,null,null,null,null,null,null,null,null,null,null,null,null,{"$f":"E8","v":0},{"$f":"B8","v":0},{"$f":"C8","v":0},{"$f":"D8","v":0},{"$f":"G8","v":"00:00:00"},{"$f":"H8","v":0},{"$f":"I8","v":0},{"$f":"J8","v":0},{"$f":"PHONETIC(B8)","v":""}]
[3,null,null,null,null,null,null,null,null,null,null,null,null,0,0,0,0,"00:00:00",0,0,0,""]
[4,null,null,null,null,null,null,null,null,null,null,null,null,0,0,0,0,"00:00:00",0,0,0,""]
[5,null,null,null,null,null,null,null,null,null,null,null,null,0,0,0,0,"00:00:00",0,0,0,""]
[6,null,null,null,null,null,null,null,null,null,null,null,null,0,0,0,0,"00:00:00",0,0,0,""]
[7,null,null,null,null,null,null,null,null,null,null,null,null,0,0,0,0,"00:00:00",0,0,0,""]
[8,null,null,null,null,null,null,null,null,null,null,null,null,0,0,0,0,"00:00:00",0,0,0,""]
[9,null,null,null,null,null,null,null,null,null,null,null,null,0,0,0,0,"00:00:00",0,0,0,""]
[10,null,null,null,null,null,null,null,null,null,null,null,null,0,0,0,0,"00:00:00",0,0,0,""]
[11,null,null,null,null,null,null,null,null,null,null,null,null,0,0,0,0,"00:00:00",0,0,0,""]
[12,null,null,null,null,null,null,null,null,null,null,null,null,0,0,0,0,"00:00:00",0,0,0,""]
[13,null,null,null,null,null,null,null,null,null,null,null,null,0,0,0,0,"00:00:00",0,0,0,""]
[14,null,null,null,null,null,null,null,null,null,null,null,null,0,0,0,0,"00:00:00",0,0,0,""]
[15,null,null,null,null,null,null,null,null,null,null,null,null,0,0,0,0,"00:00:00",0,0,0,""]
[16,null,null,null,null,null,null,null,null,null,null,null,null,0,0,0,0,"00:00:00",0,0,0,""]
[17,null,null,null,null,null,null,null,null,null,null,null,null,0,0,0,0,"00:00:00",0,0,0,""]
[18,null,null,null,null,null,null,null,null,null,null,null,null,0,0,0,0,"00:00:00",0,0,0,""]
[19,null,null,null,null,null,null,null,null,null,null,null,null,0,0,0,0,"00:00:00",0,0,0,""]
[20,null,null,null,null,null,null,null,null,null,null,null,null,0,0,0,0,"00:00:00",0,0,0,""]
[21,null,null,null,null,null,null,null,null,null,null,null,null,0,0,0,0,"00:00:00",0,0,0,""]
[22,null,null,null,null,null,null,null,null,null,null,null,null,0,0,0,0,"00:00:00",0,0,0,""]
[23,null,null,null,null,null,null,null,null,null,null,null,null,0,0,0,0,"00:00:00",0,0,0,""]
[null,"1　法人の役員、顧問、相談役又は総株主の議決権の100分の5以上を有する株主若しくは出資の総額の100分の5以上に相当する出資をしている者（個人であるものに限る。以下「株主等」という。）について記載すること。"]
[null,"2　「株主等」については、「役名等」の欄には「株主等」と記載することとし、「常勤・非常勤の別」の欄に記載することを要しない。"]
[null,"3　「経営業務の管理責任者」の欄には、当該役員等が経営業務の管理責任者に該当する場合に○を記入すること。"]

{"sheet":"営業所一覧表（更新）","index":4,"n_rows":26,"n_cols":5,"rows_kept":26,"cut":false,"hidden":false,"merged":[[1,0,1,4],[15,4,16,4],[7,4,8,4],[9,1,10,1],[9,3,10,3],[9,4,10,4],[7,1,8,1],[7,3,8,3],[2,0,3,1],[2,2,3,2],[2,3,2,4],[4,4,6,4],[4,1,6,1],[4,0,6,0],[4,3,6,3],[7,0,22,0],[17,4,18,4],[11,4,12,4],[13,1,14,1],[13,3,14,3],[13,4,14,4],[11,1,12,1],[11,3,12,3],[15,1,16,1],[15,3,16,3],[17,1,18,1],[17,3,18,3],[24,1,24,4],[25,1,25,4],[19,1,20,1],[19,3,20,3],[19,4,20,4],[21,1,22,1],[21,3,22,3],[21,4,22,4]]}
["別紙二（2）",null,null,null,"（用紙A4)"]
["営業所一覧表　（更　新）"]
["営業所の名称",null,"所在地（郵便番号・電話番号）","営業しようとする建設業"]
[null,null,null,"特定","一般"]
["主たる\n営業所","本　店",{"$f":"IF(会社データ!D23=\"\",\"\",\"（登記上）\"&会社データ!D23)","v":""}]
[null,null,{"$f":"IF(会社データ!D23=\"\",会社データ!D18&会社データ!F18&会社データ!D19,\"（事実上）\"&会社データ!D18&会社データ!F18&会社データ!D19)","v":""}]
[null,null,{"$f":"\"（〒\"&会社データ!D20&\"　TEL：\"&会社データ!D21&\"）\"","v":"（〒　TEL：）"}]
["従たる営業所",{"$f":"IF(会社データ!D27=\"\",\"\",会社データ!D27)","v":""},{"$f":"IF(会社データ!E27=\"\",\"\",会社データ!E27&会社データ!F27&会社データ!G27)","v":""}]
[null,null,{"$f":"IF(会社データ!H27=\"\",\"\",\"（〒\"&会社データ!H27&\"　TEL：\"&会社データ!I27&\"）\")","v":""}]
[null,{"$f":"IF(会社データ!D28=\"\",\"\",会社データ!D28)","v":""},{"$f":"IF(会社データ!E28=\"\",\"\",会社データ!E28&会社データ!F28&会社データ!G28)","v":""}]
[null,null,{"$f":"IF(会社データ!H28=\"\",\"\",\"（〒\"&会社データ!H28&\"　TEL：\"&会社データ!I28&\"）\")","v":""}]
[null,{"$f":"IF(会社データ!D29=\"\",\"\",会社データ!D29)","v":""},{"$f":"IF(会社データ!E29=\"\",\"\",会社データ!E29&会社データ!F29&会社データ!G29)","v":""}]
[null,null,{"$f":"IF(会社データ!H29=\"\",\"\",\"（〒\"&会社データ!H29&\"　TEL：\"&会社データ!I29&\"）\")","v":""}]
[null,{"$f":"IF(会社データ!D30=\"\",\"\",会社データ!D30)","v":""},{"$f":"IF(会社データ!E30=\"\",\"\",会社データ!E30&会社データ!F30&会社データ!G30)","v":""}]
[null,null,{"$f":"IF(会社データ!H30=\"\",\"\",\"（〒\"&会社データ!H30&\"　TEL：\"&会社データ!I30&\"）\")","v":""}]
[]
[]
[]
[]
[]
[]
[]
[]
[]
[1,"「主たる営業所」及び「従たる営業所」の欄は、それぞれ本店、支店又は常時建設工事の請負契約を締結する事務所のうち該当するものについて記載すること。"]
[2,"「営業しようとする建設業」の欄は、許可を受けている建設業のうち左欄に記載した営業所において営業しようとする建設業を、許可申請書の記載要領6の表の（　）内に示された略号により、一般と特定に分けて記載すること。"]

{"sheet":"手数料","index":5,"n_rows":74,"n_cols":1,"rows_kept":74,"cut":false,"hidden":false,"merged":[[28,0,28,9],[73,0,73,9]]}
["別紙三"]
[]
[]
[]
[]
[]
[]
[]
[]
[]
[]
[]
[]
[]
[]
[]
[]
[]
[]
[]
[]
[]
[]
[]
[]
[]
[]
[]
["収入印紙、証紙、登録免許税領収証書又は許可手数料領収証書はり付け欄"]
[]
[]
[]
[]
[]
[]
[]
[]
[]
[]
[]
[]
[]
[]
[]
[]
[]
[]
[]
[]
[]
[]
[]
[]
[]
[]
[]
[]
[]
[]
[]
[]
[]
[]
[]
[]
[]
[]
[]
[]
[]
[]
[]
["記載要領"]
["　「収入印紙、証紙、登録免許税領収証書又は許可手数料領収証書はり付け欄」は、収入印紙、証紙、登録免許税領収証書又は許可手数料領収証書をはり付けること。ただし、登録免許税法（昭和42年法律第35号）第24条の2第1項又は令第4条ただし書の規定により国土交通大臣の許可に係る登録免許税又は許可手数料を現金でもって納めた場合にあっては、この限りではない。"]

{"sheet":"専技一覧表","index":6,"n_rows":4,"n_cols":4,"rows_kept":4,"cut":false,"hidden":false,"merged":[[1,0,1,3],[2,2,2,3]]}
["別紙四"]
["専任技術者一覧表"]
[null,null,{"$f":"会社データ!D4","v":"平成27年　　月　　日"}]
["営業所の名称","専任の技術者の氏名","建設工事の種類","有資格区分"]

{"sheet":"誓約書","index":7,"n_rows":27,"n_cols":6,"rows_kept":27,"cut":false,"hidden":false,"merged":[[26,0,26,1],[3,0,3,5],[7,1,8,5],[24,0,24,1],[25,0,25,1]]}
["様式第六号（第二条関係）"]
[null,null,null,null,null,"（用紙A4）"]
[]
["誓　　　　約　　　　書"]
[]
[]
[]
[null,"　申請者、申請者の役員等及び建設業法施行令第３条に規定する使用人並びに法定代理人及び法定代理人の役員等は、同法第8条各号（同法17条において準用される場合を含む。）に規定されている欠格要件に該当しないことを誓約します。"]
[]
[]
[]
[null,null,null,null,null,{"$f":"会社データ!D4","v":"平成27年　　月　　日"}]
[null,null,null,null,null,{"$f":"IF(会社データ!D23=\"\",\"\",\"（登記上）\"&会社データ!D23)","v":""}]
[null,null,null,null,"申請者",{"$f":"IF(会社データ!D23=\"\",会社データ!D18&会社データ!F18&会社データ!D19,\"（事実上）\"&会社データ!D18&会社データ!F18&会社データ!D19)","v":""}]
[null,null,null,null,null,{"$f":"会社データ!D12","v":0}]
[null,null,null,null,null,{"$f":"会社データ!D14&\"   \"&会社データ!D16","v":"   "}]
[null,"地方整備局長"]
[null,"北海道開発局長"]
[null,"知事",{"$f":"会社データ!D7&\"殿\"","v":"殿"}]
[]
[]
[]
[]
["記載要領"]
["「　地方整備局長"]
["　北海道開発局長",null,"　　については、不要のものを消すこと。"]
["　　　　　　　　知事",null,"」"]

{"sheet":"令３条","index":8,"n_rows":22,"n_cols":4,"rows_kept":22,"cut":false,"hidden":false,"merged":[[2,1,2,3]]}
[null,"様式第十一号（第二条関係）"]
[null,null,null,"（用紙A4）"]
[null,"建設業法施行令第３条に規定する使用人の一覧表"]
[null,null,null,{"$f":"会社データ!D4","v":"平成27年　　月　　日"}]
["No","営　業　所　の　名　称","職　　　　　　名","氏　　　　　　名"]
[1,{"$f":"IF(会社データ!D27=\"\",\"\",会社データ!D27)","v":""}]
[2,{"$f":"IF(会社データ!D28=\"\",\"\",会社データ!D28)","v":""}]
[3,{"$f":"IF(会社データ!D29=\"\",\"\",会社データ!D29)","v":""}]
[4,{"$f":"IF(会社データ!D30=\"\",\"\",会社データ!D30)","v":""}]
[5]
[6]
[7]
[8]
[9]
[10]
[11]
[12]
[13]
[14]
[15]
[16]
[17]

{"sheet":"営業の沿革","index":9,"n_rows":32,"n_cols":3,"rows_kept":32,"cut":false,"hidden":false,"merged":[[29,0,29,2],[2,0,2,2],[3,0,10,0],[12,0,21,0],[23,0,26,0]]}
["様式第二十号（第四条関係）",null,"（用紙A4)"]
[]
["営　業　の　沿　革"]
["創業以後の沿革","　　　年　　　月　　日","創　　　業"]
[null,"　　　年　　　月　　日"]
[null,"　　　年　　　月　　日"]
[null,"　　　年　　　月　　日"]
[null,"　　　年　　　月　　日"]
[null,"　　　年　　　月　　日"]
[null,"　　　年　　　月　　日"]
[null,"　　　年　　　月　　日"]
[]
["建設業の登録及び許可の状況","　　　年　　　月　　日"]
[null,"　　　年　　　月　　日"]
[null,"　　　年　　　月　　日"]
[null,"　　　年　　　月　　日"]
[null,"　　　年　　　月　　日"]
[null,"　　　年　　　月　　日"]
[null,"　　　年　　　月　　日"]
[null,"　　　年　　　月　　日"]
[null,"　　　年　　　月　　日"]
[null,"　　　年　　　月　　日"]
[]
["賞罰","　　　年　　　月　　日"]
[null,"　　　年　　　月　　日"]
[null,"　　　年　　　月　　日"]
[null,"　　　年　　　月　　日"]
[]
["記載要領"]
["1　「創業以後の沿革」の欄は、創業、商号又は名称の変更、合併又は分割、資本金額の変更、営業の休止、営業の再開等を記載すること。"]
["2　「建設業の登録及び許可の状況」の欄は、建設業の最初の登録及び許可等（更新を除く。）について記載すること。"]
["3　「賞罰」の欄は、行政処分等についても記載すること。"]

{"sheet":"団体","index":10,"n_rows":30,"n_cols":2,"rows_kept":30,"cut":false,"hidden":false,"merged":[[2,0,2,1]]}
["様式第二十号の二（第四条関係）"]
[null,"(用紙A4）"]
["所　属　建　設　業　者　団　体"]
[]
["団　　体　　の　　名　　称","所　属　年　月　日"]
[]
[]
[]
[]
[]
[]
[]
[]
[]
[]
[]
[]
[]
[]
[]
[]
[]
[]
[]
[]
[]
[]
[]
["記載要領"]
["　「団体の名称」の欄は、法第27条の37に規定する建設業者の団体の名称を記載すること。"]

{"sheet":"健保等","index":11,"n_rows":23,"n_cols":11,"rows_kept":23,"cut":false,"hidden":false,"merged":[[21,0,22,0],[21,4,22,8],[18,0,20,0],[18,2,19,2],[18,4,20,4],[18,5,20,5],[18,6,20,6],[15,0,17,0],[15,2,16,2],[15,4,17,4],[15,5,17,5],[15,6,17,6],[12,0,14,0],[12,2,13,2],[12,4,14,4],[12,5,14,5],[12,6,14,6],[9,0,11,0],[9,2,10,2],[9,4,11,4],[9,5,11,5],[9,6,11,6],[4,0,5,0],[4,4,4,6],[4,7,5,8],[2,0,2,8],[6,4,8,4],[6,5,8,5],[6,6,8,6],[4,1,5,3],[6,2,7,2],[6,0,8,0]]}
["様式第二十号の三（第四条関係）",null,null,null,null,null,null,null,"（用紙A4）"]
[]
["健　康　保　険　等　の　加　入　状　況"]
[]
["　営業所の\n　名称","従業員数",null,null,"保険加入の有無",null,null,"事業所整理番号等"]
[null,null,null,null,"健康保険","　厚生年金\n　保険","雇用保険"]
["本　店",null,null,null,null,null,null,"健康保険",null,null,1]
[null,null,null,"人",null,null,null,"厚生年金保険",null,null,2]
[null,"（",null,"人）",null,null,null,"雇用保険",null,null,3]
[{"$f":"IF(会社データ!D27=\"\",\"\",会社データ!D27)","v":""},null,null,null,null,null,null,"健康保険"]
[null,null,null,"人",null,null,null,"厚生年金保険"]
[null,"（",null,"人）",null,null,null,"雇用保険"]
[{"$f":"IF(会社データ!D28=\"\",\"\",会社データ!D28)","v":""},null,null,null,null,null,null,"健康保険"]
[null,null,null,"人",null,null,null,"厚生年金保険"]
[null,"（",null,"人）",null,null,null,"雇用保険"]
[{"$f":"IF(会社データ!D29=\"\",\"\",会社データ!D29)","v":""},null,null,null,null,null,null,"健康保険"]
[null,null,null,"人",null,null,null,"厚生年金保険"]
[null,"（",null,"人）",null,null,null,"雇用保険"]
[{"$f":"IF(会社データ!D30=\"\",\"\",会社データ!D30)","v":""},null,null,null,null,null,null,"健康保険"]
[null,null,null,"人",null,null,null,"厚生年金保険"]
[null,"（",null,"人）",null,null,null,"雇用保険"]
["合計",null,{"$f":"+C7+C10+C13+C16+C19","v":0},"人"]
[null,"（",{"$f":"+C9+C12+C15+C18+C21","v":0},"人）"]

{"sheet":"金融機関","index":12,"n_rows":28,"n_cols":4,"rows_kept":28,"cut":false,"hidden":false,"merged":[[2,0,2,3],[26,0,26,3],[27,0,27,3]]}
["様式第二十号の四（第四条関係）"]
[null,null,null,"（用紙A4）"]
["主要取引金融機関名"]
[]
["政府関係金融機関","普通銀行\n長期信用銀行","商工組合中央金庫\n信用金庫・信用協同組合","その他の金融機関"]
[]
[]
[]
[]
[]
[]
[]
[]
[]
[]
[]
[]
[]
[]
[]
[]
[]
[]
[]
[]
["記載要領"]
["1　「政府関係金融機関」の欄は、国民生活金融公庫、住宅金融公庫、中小企業金融公庫、国際協力銀行、日本政策投資銀行等について記載すること。"]
["2　各金融機関とも、本所、本店、支所、支店、営業所、出張所等の区別まで記載すること。\n　　　（例　○○銀行○○支店）"]

{"sheet":"経管","index":13,"n_rows":51,"n_cols":200,"rows_kept":51,"cut":false,"hidden":false,"merged":[[47,177,47,186],[40,152,40,156],[40,172,40,176],[40,146,40,150],[46,166,46,170],[40,166,40,170],[47,172,47,176],[40,157,40,165],[46,146,46,150],[22,115,22,196],[23,115,23,196],[25,9,25,13],[17,80,17,85],[21,1,21,7],[22,1,22,7],[21,115,21,196],[6,14,6,51],[40,177,40,186],[22,99,22,113],[6,8,6,13],[7,8,7,13],[15,1,17,12],[15,15,15,42],[16,15,16,42],[8,2,8,7],[6,2,6,7],[6,52,6,61],[17,15,17,42],[23,99,23,113],[40,127,40,131],[40,133,40,137],[32,101,33,105],[32,107,33,111],[0,159,0,187],[10,124,10,196],[19,124,19,196],[13,115,13,196],[12,115,12,196],[11,115,11,196],[6,118,6,155],[7,14,7,196],[1,183,1,187],[13,99,13,113],[2,0,2,196],[5,8,5,13],[1,171,1,175],[1,177,1,181],[1,159,1,163],[1,165,1,169],[37,9,37,13],[38,9,38,13],[38,15,38,19],[32,9,33,13],[32,15,33,19],[40,138,40,145],[31,113,31,117],[39,127,39,131],[40,102,40,118],[39,120,39,124],[23,1,23,7],[26,9,26,13],[31,9,31,13],[32,89,33,93],[28,4,28,43],[32,53,32,57],[33,53,33,57],[32,58,33,62],[33,21,33,42],[32,21,32,42],[30,9,30,16],[32,43,33,50],[32,64,33,67],[32,1,33,1],[32,3,33,3],[32,5,33,5],[32,7,33,7],[20,115,20,196],[15,47,17,75],[6,62,6,99],[4,5,4,43],[5,2,5,7],[5,14,5,196],[6,100,6,117],[7,2,7,7],[15,80,15,85],[32,187,33,192],[32,69,33,72],[32,181,33,185],[32,119,33,125],[32,127,33,135],[32,76,33,81],[32,83,33,87],[32,175,33,179],[32,162,33,166],[32,149,33,154],[32,95,33,99],[32,156,33,160],[32,168,33,173],[32,143,33,147],[32,113,33,117],[32,137,33,141],[46,9,46,16],[46,72,46,79],[46,27,46,34],[47,63,47,70],[47,72,47,79],[47,81,47,88],[47,90,47,97],[42,3,42,119],[39,27,39,34],[40,45,40,52],[40,54,40,61],[40,90,40,97],[39,72,39,79],[40,9,40,16],[40,18,40,25],[47,9,47,16],[47,18,47,25],[47,27,47,34],[47,36,47,43],[47,45,47,52],[47,54,47,61],[40,27,40,34],[39,9,39,16],[47,133,47,137],[47,146,47,150],[47,152,47,156],[47,166,47,170],[47,103,47,118],[46,127,46,131],[39,146,39,150],[46,120,46,124],[40,36,40,43],[40,120,40,124],[40,63,40,70],[40,72,40,79],[40,81,40,88],[47,127,47,131],[47,120,47,124],[39,166,39,170],[47,138,47,145],[47,157,47,165]]}
["様式第七号（第三条関係）",null,null,null,null,null,null,null,null,null,null,null,null,null,null,null,null,null,null,null,null,null,null,null,null,null,null,null,null,null,null,null,null,null,null,null,null,null,null,null,null,null,null,null,null,null,null,null,null,null,null,null,null,null,null,null,null,null,null,null,null,null,null,null,null,null,null,null,null,null,null,null,null,null,null,null,null,null,null,null,null,null,null,null,null,null,null,null,null,null,null,null,null,null,null,null,null,null,null,null,null,null,null,null,null,null,null,null,null,null,null,null,null,null,null,null,null,null,null,null,null,null,null,null,null,null,null,null,null,null,null,null,null,null,null,null,null,null,null,null,null,null,null,null,null,null,null,null,null,null,null,null,null,null,null,null,null,null,null,"（用紙A4）"]
[null,null,null,null,null,null,null,null,null,null,null,null,null,null,null,null,null,null,null,null,null,null,null,null,null,null,null,null,null,null,null,null,null,null,null,null,null,null,null,null,null,null,null,null,null,null,null,null,null,null,null,null,null,null,null,null,null,null,null,null,null,null,null,null,null,null,null,null,null,null,null,null,null,null,null,null,null,null,null,null,null,null,null,null,null,null,null,null,null,null,null,null,null,null,null,null,null,null,null,null,null,null,null,null,null,null,null,null,null,null,null,null,null,null,null,null,null,null,null,null,null,null,null,null,null,null,null,null,null,null,null,null,null,null,null,null,null,null,null,null,null,null,null,null,null,null,null,null,null,null,null,null,null,null,null,null,null,null,null,"0",null,null,null,null,null,"0",null,null,null,null,null,"0",null,null,null,null,null,"0",null,null,null,null,null,"2"]
["経 営 業 務 の 管 理 責 任 者 証 明 書"]
[]
[null,"(1)下記の者は、",null,null,null,null,null,null,null,null,null,null,null,null,null,null,null,null,null,null,null,null,null,null,null,null,null,null,null,null,null,null,null,null,null,null,null,null,null,null,null,null,null,null,null,"工事業に関し、次のとおり経営業務の管理責任者としての経験を有することを証明します。"]
[null,null,"役職名等",null,null,null,null,null,null,null,null,null,null,null,"代表取締役、事業主"]
[null,null,"経験年数",null,null,null,null,null,null,null,null,null,null,null,null,null,null,null,null,null,null,null,null,null,null,null,null,null,null,null,null,null,null,null,null,null,null,null,null,null,null,null,null,null,null,null,null,null,null,null,null,null,"から",null,null,null,null,null,null,null,null,null,null,null,null,null,null,null,null,null,null,null,null,null,null,null,null,null,null,null,null,null,null,null,null,null,null,null,null,null,null,null,null,null,null,null,null,null,null,null,"まで　満",null,null,null,null,null,null,null,null,null,null,null,null,null,null,null,null,null,{"$f":"DATEDIF(O7,BK7+1,\"Y\")&\"年\"&DATEDIF(O7,BK7+1,\"ym\")&\"月\"","v":"0年0月"}]
[null,null,"証明者と被証明者との関係",null,null,null,null,null,null,null,null,null,null,null,"役員、本人"]
[null,null,"備考"]
[]
[null,null,null,null,null,null,null,null,null,null,null,null,null,null,null,null,null,null,null,null,null,null,null,null,null,null,null,null,null,null,null,null,null,null,null,null,null,null,null,null,null,null,null,null,null,null,null,null,null,null,null,null,null,null,null,null,null,null,null,null,null,null,null,null,null,null,null,null,null,null,null,null,null,null,null,null,null,null,null,null,null,null,null,null,null,null,null,null,null,null,null,null,null,null,null,null,null,null,null,null,null,null,null,null,null,null,null,null,null,null,null,null,null,null,null,null,null,null,null,null,null,null,null,null,{"$f":"会社データ!D4","v":"平成27年　　月　　日"}]
[null,null,null,null,null,null,null,null,null,null,null,null,null,null,null,null,null,null,null,null,null,null,null,null,null,null,null,null,null,null,null,null,null,null,null,null,null,null,null,null,null,null,null,null,null,null,null,null,null,null,null,null,null,null,null,null,null,null,null,null,null,null,null,null,null,null,null,null,null,null,null,null,null,null,null,null,null,null,null,null,null,null,null,null,null,null,null,null,null,null,null,null,null,null,null,null,null,null,null,null,null,null,null,null,null,null,null,null,null,null,null,null,null,null,null,"《住所》"]
[null,null,null,null,null,null,null,null,null,null,null,null,null,null,null,null,null,null,null,null,null,null,null,null,null,null,null,null,null,null,null,null,null,null,null,null,null,null,null,null,null,null,null,null,null,null,null,null,null,null,null,null,null,null,null,null,null,null,null,null,null,null,null,null,null,null,null,null,null,null,null,null,null,null,null,null,null,null,null,null,null,null,null,null,null,null,null,null,null,null,null,null,null,null,null,null,null,null,null,null,null,null,null,null,null,null,null,null,null,null,null,null,null,null,null,"《商号又は名称》"]
[null,null,null,null,null,null,null,null,null,null,null,null,null,null,null,null,null,null,null,null,null,null,null,null,null,null,null,null,null,null,null,null,null,null,null,null,null,null,null,null,null,null,null,null,null,null,null,null,null,null,null,null,null,null,null,null,null,null,null,null,null,null,null,null,null,null,null,null,null,null,null,null,null,null,null,null,null,null,null,null,null,null,null,null,null,null,null,null,null,null,null,null,null,null,null,null,null,null,null,"証明者",null,null,null,null,null,null,null,null,null,null,null,null,null,null,null,"《代表者名》"]
[]
[null,"(2)下記の者は、許可申請者",null,null,null,null,null,null,null,null,null,null,null,null,null,"の常勤の役員",null,null,null,null,null,null,null,null,null,null,null,null,null,null,null,null,null,null,null,null,null,null,null,null,null,null,null,null,null,null,null,"で法第7条第1号",null,null,null,null,null,null,null,null,null,null,null,null,null,null,null,null,null,null,null,null,null,null,null,null,null,null,null,null,null,null,null,null,"イ"]
[null,null,null,null,null,null,null,null,null,null,null,null,null,null,null,"本人",null,null,null,null,null,null,null,null,null,null,null,null,null,null,null,null,null,null,null,null,null,null,null,null,null,null,null,null,null,null,null,null,null,null,null,null,null,null,null,null,null,null,null,null,null,null,null,null,null,null,null,null,null,null,null,null,null,null,null,null,null,null,null,null,null,null,null,null,null,null,null,null,null,null,null,"に該当するものであることに相違ありません。"]
[null,null,null,null,null,null,null,null,null,null,null,null,null,null,null,"の支配人",null,null,null,null,null,null,null,null,null,null,null,null,null,null,null,null,null,null,null,null,null,null,null,null,null,null,null,null,null,null,null,null,null,null,null,null,null,null,null,null,null,null,null,null,null,null,null,null,null,null,null,null,null,null,null,null,null,null,null,null,null,null,null,null,"ロ"]
[]
[null,null,null,null,null,null,null,null,null,null,null,null,null,null,null,null,null,null,null,null,null,null,null,null,null,null,null,null,null,null,null,null,null,null,null,null,null,null,null,null,null,null,null,null,null,null,null,null,null,null,null,null,null,null,null,null,null,null,null,null,null,null,null,null,null,null,null,null,null,null,null,null,null,null,null,null,null,null,null,null,null,null,null,null,null,null,null,null,null,null,null,null,null,null,null,null,null,null,null,null,null,null,null,null,null,null,null,null,null,null,null,null,null,null,null,null,null,null,null,null,null,null,null,null,{"$f":"会社データ!D4","v":"平成27年　　月　　日"}]
[null,null,null,null,null,null,null,null,null,null,null,null,null,null,null,null,null,null,null,null,null,null,null,null,null,null,null,null,null,null,null,null,null,null,null,null,null,null,null,null,null,null,null,null,null,null,null,null,null,null,null,null,null,null,null,null,null,null,null,null,null,null,null,null,null,null,null,null,null,null,null,null,null,null,null,null,null,null,null,null,null,null,null,null,null,null,null,null,null,null,null,null,null,null,null,null,null,null,null,null,null,null,null,null,null,null,null,null,null,null,null,null,null,null,null,{"$f":"IF(会社データ!D23=\"\",\"\",\"（登記上）\"&会社データ!D23)","v":""}]
[null,"地方整備局長",null,null,null,null,null,null,null,null,null,null,null,null,null,null,null,null,null,null,null,null,null,null,null,null,null,null,null,null,null,null,null,null,null,null,null,null,null,null,null,null,null,null,null,null,null,null,null,null,null,null,null,null,null,null,null,null,null,null,null,null,null,null,null,null,null,null,null,null,null,null,null,null,null,null,null,null,null,null,null,null,null,null,null,null,null,null,null,null,null,null,null,null,null,null,null,null,null,null,null,null,null,null,null,null,null,null,null,null,null,null,null,null,null,{"$f":"IF(会社データ!D23=\"\",会社データ!D18&会社データ!F18&会社データ!D19,\"（事実上）\"&会社データ!D18&会社データ!F18&会社データ!D19)","v":""}]
[null,"北海道開発局長",null,null,null,null,null,null,null,null,null,null,null,null,null,null,null,null,null,null,null,null,null,null,null,null,null,null,null,null,null,null,null,null,null,null,null,null,null,null,null,null,null,null,null,null,null,null,null,null,null,null,null,null,null,null,null,null,null,null,null,null,null,null,null,null,null,null,null,null,null,null,null,null,null,null,null,null,null,null,null,null,null,null,null,null,null,null,null,null,null,null,null,null,null,null,null,null,null,"申請者",null,null,null,null,null,null,null,null,null,null,null,null,null,null,null,{"$f":"会社データ!D12","v":0}]
[null,"知事",null,null,null,null,null,null,null,"殿",null,null,null,null,null,null,null,null,null,null,null,null,null,null,null,null,null,null,null,null,null,null,null,null,null,null,null,null,null,null,null,null,null,null,null,null,null,null,null,null,null,null,null,null,null,null,null,null,null,null,null,null,null,null,null,null,null,null,null,null,null,null,null,null,null,null,null,null,null,null,null,null,null,null,null,null,null,null,null,null,null,null,null,null,null,null,null,null,null,"届出者",null,null,null,null,null,null,null,null,null,null,null,null,null,null,null,{"$f":"会社データ!D14&\"   \"&会社データ!D16","v":"   "}]
[]
[null,null,null,null,null,"項",null,"番",null,3]
[null,"申請又は届出の区分",null,null,null,"1",null,"7",null,null,null,null,null,null,null,null,null,null,null,null,null,null,"（　1.新規　　2.変更　　3.経営業務の管理責任者の追加　　4.経営業務の管理責任者の更新等　）",null,null,null,null,null,null,null,null,null,null,null,null,null,null,null,null,null,null,null,null,null,null,null,null,null,null,null,null,null,null,null,null,null,null,null,null,null,null,null,null,null,null,null,null,null,null,null,null,null,null,null,null,null,null,null,null,null,null,null,null,null,null,null,null,null,null,null,null,null,null,null,null,null,null,null,null,null,null,null,null,null,null,null,null,null,null,null,null,null,null,null,null,null,null,null,null,null,null,null,null,null,null,null,null,null,null,null,null,null,null,null,null,null,null,null,null,null,null,null,null,null,null,null,null,null,null,null,null,null,null,null,null,null,null,null,null,null,null,null,null,null,null,null,null,null,null,null,null,null,null,null,null,null,null,null,null,null,null,null,null,null,null,null,null,null,null,null,null,null,null,null,null,null,null,null,null,1]
[null,null,null,null,null,null,null,null,null,null,null,null,null,null,null,null,null,null,null,null,null,null,null,null,null,null,null,null,null,null,null,null,null,null,null,null,null,null,null,null,null,null,null,null,null,null,null,null,null,null,null,null,null,null,null,null,null,null,null,null,null,null,null,null,null,null,null,null,null,null,null,null,null,null,null,null,null,null,null,null,null,null,null,null,null,null,null,null,null,null,null,null,null,null,null,null,null,null,null,null,null,null,null,null,null,null,null,null,null,null,null,null,null,null,null,null,null,null,null,null,null,null,null,null,null,null,null,null,null,null,null,null,null,null,null,null,null,null,null,null,null,null,null,null,null,null,null,null,null,null,null,null,null,null,null,null,null,null,null,null,null,null,null,null,null,null,null,null,null,null,null,null,null,null,null,null,null,null,null,null,null,null,null,null,null,null,null,null,null,null,null,null,null,null,null,null,null,null,null,2]
[null,"変更又は追加の年月日",null,null,"平成　　年　　月　　日",null,null,null,null,null,null,null,null,null,null,null,null,null,null,null,null,null,null,null,null,null,null,null,null,null,null,null,null,null,null,null,null,null,null,null,null,null,null,null,null,null,null,null,null,null,null,null,null,null,null,null,null,null,null,null,null,null,null,null,null,null,null,null,null,null,null,null,null,null,null,null,null,null,null,null,null,null,null,null,null,null,null,null,null,null,null,null,null,null,null,null,null,null,null,null,null,null,null,null,null,null,null,null,null,null,null,null,null,null,null,null,null,null,null,null,null,null,null,null,null,null,null,null,null,null,null,null,null,null,null,null,null,null,null,null,null,null,null,null,null,null,null,null,null,null,null,null,null,null,null,null,null,null,null,null,null,null,null,null,null,null,null,null,null,null,null,null,null,null,null,null,null,null,null,null,null,null,null,null,null,null,null,null,null,null,null,null,null,null,null,null,null,null,null,3]
[null,null,null,null,null,null,null,null,null,null,null,null,null,null,null,null,null,null,null,null,null,null,null,null,null,null,null,null,null,null,null,null,null,null,null,null,null,null,null,null,null,null,null,null,null,null,null,null,null,null,null,null,null,null,null,null,null,null,null,null,null,null,null,null,null,null,null,null,null,null,null,null,null,null,null,null,null,null,null,null,null,null,null,null,null,null,null,null,null,null,null,null,null,null,null,null,null,null,null,null,null,null,null,null,null,null,null,null,null,null,null,null,null,null,null,null,null,null,null,null,null,null,null,null,null,null,null,null,null,null,null,null,null,null,null,null,null,null,null,null,null,null,null,null,null,null,null,null,null,null,null,null,null,null,null,null,null,null,null,null,null,null,null,null,null,null,null,null,null,null,null,null,null,null,null,null,null,null,null,null,null,null,null,null,null,null,null,null,null,null,null,null,null,null,null,null,null,null,null,4]
[null,null,null,null,null,null,null,null,null,"大臣\n知事",null,null,null,null,null,null,null,"コード",null,null,null,null,null,null,null,null,null,null,null,null,null,null,null,null,null,null,null,null,null,null,null,null,null,null,null,null,null,null,null,null,null,null,null,null,null,null,null,null,null,null,null,null,null,null,null,null,null,null,null,null,null,null,null,null,null,null,null,null,null,null,null,null,null,null,null,null,null,null,null,null,null,null,null,null,null,null,null,null,null,null,null,null,null,null,null,null,null,null,null,null,null,null,null,null,null,null,null,null,null,null,null,null,null,null,null,null,null,"許可年月日"]
[null,null,null,null,null,null,null,null,null,3,null,null,null,null,null,null,null,null,null,null,null,null,null,null,null,null,null,null,null,null,null,null,null,null,null,null,null,null,null,null,null,null,null,null,null,null,null,null,null,null,null,null,null,null,null,null,null,null,null,null,null,null,null,null,null,null,null,null,null,null,null,null,null,null,null,null,null,null,null,null,null,null,null,null,"5",null,null,null,null,null,null,null,null,null,null,null,null,null,null,null,null,null,null,null,null,null,null,null,null,null,null,null,null,10,null,null,null,null,null,null,null,null,null,null,null,null,null,null,null,null,null,null,null,null,null,null,null,"11",null,null,null,null,null,null,null,null,null,null,null,null,null,null,null,null,null,null,"13",null,null,null,null,null,null,null,null,null,null,null,null,null,null,null,null,null,null,"15"]
[null,"許可番号",null,null,null,"1",null,"8",null,{"$f":"IF(V33=\"\",\"\",LEFT(会社データ!D36,1))","v":""},null,null,null,null,null,{"$f":"IF(V33=\"\",\"\",RIGHT(会社データ!D36,1))","v":""},null,null,null,null,null,"国土交通大臣",null,null,null,null,null,null,null,null,null,null,null,null,null,null,null,null,null,null,null,null,null,"許可",null,null,null,null,null,null,null,null,null,"般",null,null,null,null,"－",null,null,null,null,null,{"$f":"LEFT(会社データ!F35,1)","v":""},null,null,null,null,{"$f":"RIGHT(会社データ!F35,1)","v":""},null,null,null,null,null,null,"第",null,null,null,null,null,null,{"$f":"LEFT(会社データ!G35,1)","v":""},null,null,null,null,null,{"$f":"MID(会社データ!$G$35,2,1)","v":""},null,null,null,null,null,{"$f":"MID(会社データ!$G$35,3,1)","v":""},null,null,null,null,null,{"$f":"MID(会社データ!$G$35,4,1)","v":""},null,null,null,null,null,{"$f":"MID(会社データ!$G$35,5,1)","v":""},null,null,null,null,null,{"$f":"MID(会社データ!$G$35,6,1)","v":""},null,null,null,null,null,"号",null,null,null,null,null,null,null,"平成",null,null,null,null,null,null,null,null,null,{"$f":"IF(会社データ!H35=\"\",\"\",IF(LEN(TEXT(会社データ!H35,\"e\"))=1,\"0\",LEFT(TEXT(会社データ!H35,\"e\"),1)))","v":""},null,null,null,null,null,{"$f":"IF(会社データ!H35=\"\",\"\",RIGHT(TEXT(会社データ!H35,\"e\"),1))","v":""},null,null,null,null,null,"年",null,null,null,null,null,null,{"$f":"IF(会社データ!H35=\"\",\"\",IF(LEN(MONTH(会社データ!H35))=1,\"0\",LEFT(MONTH(会社データ!H35),1)))","v":""},null,null,null,null,null,{"$f":"IF(会社データ!H35=\"\",\"\",RIGHT(MONTH(会社データ!H35),1))","v":""},null,null,null,null,null,"月",null,null,null,null,null,null,{"$f":"IF(会社データ!H35=\"\",\"\",IF(LEN(DAY(会社データ!H35))=1,\"0\",LEFT(DAY(会社データ!H35),1)))","v":""},null,null,null,null,null,{"$f":"IF(会社データ!H35=\"\",\"\",RIGHT(DAY(会社データ!H35),1))","v":""},null,null,null,null,null,"日"]
[null,null,null,null,null,null,null,null,null,null,null,null,null,null,null,null,null,null,null,null,null,"知事",null,null,null,null,null,null,null,null,null,null,null,null,null,null,null,null,null,null,null,null,null,null,null,null,null,null,null,null,null,null,null,"特"]
[]
[]
[null,"◎【新規・変更後・経営業務の管理責任者の追加・経営業務の管理責任者の更新等】"]
[null,null,null,null,null,null,null,null,null,"3"]
[null,"氏名のフリガナ",null,null,null,"1",null,"9",null,{"$f":"LEFT(VLOOKUP(\"○\",役員等の一覧表!$N$7:$V$29,9,FALSE),1)","v":{"$error":"#N/A"}},null,null,null,null,null,{"$f":"MID(VLOOKUP(\"○\",役員等の一覧表!$N$7:$V$29,9,FALSE),2,1)","v":{"$error":"#N/A"}},null,null,null,null,null,null,null,null,null,null,null,null,null,null,null,null,null,null,null,null,null,null,null,null,null,null,null,null,null,null,null,null,null,null,null,null,null,null,null,null,null,null,null,null,null,null,null,null,null,null,null,null,null,null,null,null,null,null,null,null,null,null,null,null,null,null,null,null,null,null,null,null,null,null,null,null,null,null,null,null,null,null,null,null,null,null,null,null,null,null,null,null,null,null,null,null,null,null,null,null,null,null,null,null,"元号［平成H、昭和Ｓ、大正Ｔ、明治Ｍ］"]
[null,null,null,null,null,null,null,null,null,3,null,null,null,null,null,null,null,null,null,null,null,null,null,null,null,null,null,5,null,null,null,null,null,null,null,null,null,null,null,null,null,null,null,null,null,null,null,null,null,null,null,null,null,null,null,null,null,null,null,null,null,null,null,null,null,null,null,null,null,null,null,null,10,null,null,null,null,null,null,null,null,null,null,null,null,null,null,null,null,null,null,null,null,null,null,null,null,null,null,null,null,null,null,null,null,null,null,null,null,null,null,null,null,null,null,null,null,null,null,null,13,null,null,null,null,null,null,14,null,null,null,null,null,null,null,null,null,null,null,null,null,null,null,null,null,null,16,null,null,null,null,null,null,null,null,null,null,null,null,null,null,null,null,null,null,null,18]
[null,"氏名",null,null,null,"2",null,"0",null,{"$f":"LEFT(VLOOKUP(\"○\",役員等の一覧表!$N$7:$U$29,2,FALSE),1)","v":{"$error":"#N/A"}},null,null,null,null,null,null,null,null,{"$f":"MID(VLOOKUP(\"○\",役員等の一覧表!$N$7:$U$29,2,FALSE),2,1)","v":{"$error":"#N/A"}},null,null,null,null,null,null,null,null,{"$f":"MID(VLOOKUP(\"○\",役員等の一覧表!$N$7:$U$29,2,FALSE),3,1)","v":{"$error":"#N/A"}},null,null,null,null,null,null,null,null,{"$f":"MID(VLOOKUP(\"○\",役員等の一覧表!$N$7:$U$29,2,FALSE),4,1)","v":{"$error":"#N/A"}},null,null,null,null,null,null,null,null,{"$f":"MID(VLOOKUP(\"○\",役員等の一覧表!$N$7:$U$29,2,FALSE),5,1)","v":{"$error":"#N/A"}},null,null,null,null,null,null,null,null,{"$f":"MID(VLOOKUP(\"○\",役員等の一覧表!$N$7:$U$29,2,FALSE),6,1)","v":{"$error":"#N/A"}},null,null,null,null,null,null,null,null,{"$f":"MID(VLOOKUP(\"○\",役員等の一覧表!$N$7:$U$29,2,FALSE),7,1)","v":{"$error":"#N/A"}},null,null,null,null,null,null,null,null,{"$f":"MID(VLOOKUP(\"○\",役員等の一覧表!$N$7:$U$29,2,FALSE),8,1)","v":{"$error":"#N/A"}},null,null,null,null,null,null,null,null,{"$f":"MID(VLOOKUP(\"○\",役員等の一覧表!$N$7:$U$29,2,FALSE),9,1)","v":{"$error":"#N/A"}},null,null,null,null,null,null,null,null,{"$f":"MID(VLOOKUP(\"○\",役員等の一覧表!$N$7:$U$29,2,FALSE),10,1)","v":{"$error":"#N/A"}},null,null,null,null,null,null,null,null,null,null,null,"生年月日",null,null,null,null,null,null,null,null,null,null,null,null,null,null,null,null,null,{"$f":"TEXT(VLOOKUP(\"○\",役員等の一覧表!$N$7:$U$29,5,FALSE),\"g\")","v":{"$error":"#N/A"}},null,null,null,null,null,null,{"$f":"MID(TEXT(VLOOKUP(\"○\",役員等の一覧表!$N$7:$U$29,5,FALSE),\"gy\"),2,1)","v":{"$error":"#N/A"}},null,null,null,null,null,{"$f":"MID(TEXT(VLOOKUP(\"○\",役員等の一覧表!$N$7:$U$29,5,FALSE),\"gy\"),3,1)","v":{"$error":"#N/A"}},null,null,null,null,"年",null,null,null,null,null,null,null,{"$f":"MID(TEXT(VLOOKUP(\"○\",役員等の一覧表!$N$7:$U$29,5,FALSE),\"mm\"),1,1)","v":{"$error":"#N/A"}},null,null,null,null,null,{"$f":"MID(TEXT(VLOOKUP(\"○\",役員等の一覧表!$N$7:$U$29,5,FALSE),\"mm\"),2,1)","v":{"$error":"#N/A"}},null,null,null,null,"月",null,null,null,null,null,null,null,null,{"$f":"MID(TEXT(VLOOKUP(\"○\",役員等の一覧表!$N$7:$U$29,5,FALSE),\"dd\"),1,1)","v":{"$error":"#N/A"}},null,null,null,null,null,{"$f":"MID(TEXT(VLOOKUP(\"○\",役員等の一覧表!$N$7:$U$29,5,FALSE),\"dd\"),2,1)","v":{"$error":"#N/A"}},null,null,null,null,"日"]
[]
[null,"住所",null,{"$f":"VLOOKUP(\"○\",役員等の一覧表!$N$7:$U$29,6,FALSE)&VLOOKUP(\"○\",役員等の一覧表!$N$7:$U$29,7,FALSE)&VLOOKUP(\"○\",役員等の一覧表!$N$7:$U$29,8,FALSE)","v":{"$error":"#N/A"}}]
[]
[null,"◎【変　更　前】"]
[null,null,null,null,null,null,null,null,null,null,null,null,null,null,null,null,null,null,null,null,null,null,null,null,null,null,null,null,null,null,null,null,null,null,null,null,null,null,null,null,null,null,null,null,null,null,null,null,null,null,null,null,null,null,null,null,null,null,null,null,null,null,null,null,null,null,null,null,null,null,null,null,null,null,null,null,null,null,null,null,null,null,null,null,null,null,null,null,null,null,null,null,null,null,null,null,null,null,null,null,null,null,null,null,null,null,null,null,null,null,null,null,null,null,null,null,null,null,null,null,"元号［平成H、昭和Ｓ、大正Ｔ、明治Ｍ］"]
[null,null,null,null,null,null,null,null,null,3,null,null,null,null,null,null,null,null,null,null,null,null,null,null,null,null,null,5,null,null,null,null,null,null,null,null,null,null,null,null,null,null,null,null,null,null,null,null,null,null,null,null,null,null,null,null,null,null,null,null,null,null,null,null,null,null,null,null,null,null,null,null,10,null,null,null,null,null,null,null,null,null,null,null,null,null,null,null,null,null,null,null,null,null,null,null,null,null,null,null,null,null,null,null,null,null,null,null,null,null,null,null,null,null,null,null,null,null,null,null,13,null,null,null,null,null,null,14,null,null,null,null,null,null,null,null,null,null,null,null,null,null,null,null,null,null,16,null,null,null,null,null,null,null,null,null,null,null,null,null,null,null,null,null,null,null,18]
[null,"氏名",null,null,null,"2",null,"1",null,null,null,null,null,null,null,null,null,null,null,null,null,null,null,null,null,null,null,null,null,null,null,null,null,null,null,null,null,null,null,null,null,null,null,null,null,null,null,null,null,null,null,null,null,null,null,null,null,null,null,null,null,null,null,null,null,null,null,null,null,null,null,null,null,null,null,null,null,null,null,null,null,null,null,null,null,null,null,null,null,null,null,null,null,null,null,null,null,null,null,null,null,null,null,"生年月日",null,null,null,null,null,null,null,null,null,null,null,null,null,null,null,null,null,null,null,null,null,null,null,null,null,null,null,null,null,null,null,null,null,null,"年",null,null,null,null,null,null,null,null,null,null,null,null,null,null,null,null,null,null,"月",null,null,null,null,null,null,null,null,null,null,null,null,null,null,null,null,null,null,null,"日"]
[]
["備考"]
[null,"経営業務の管理責任者の略歴については、別紙による"]

{"sheet":"経管略歴書","index":14,"n_rows":46,"n_cols":9,"rows_kept":46,"cut":false,"hidden":false,"merged":[[4,0,4,2],[4,3,4,8],[5,0,5,2],[5,3,5,6],[6,0,6,2],[6,3,6,8],[7,0,35,0],[7,1,7,3],[7,4,7,8],[8,2,8,3],[8,4,9,8],[9,2,9,3],[10,2,10,3],[10,4,11,8],[11,2,11,3],[12,2,12,3],[12,4,13,8],[13,2,13,3],[14,2,14,3],[14,4,15,8],[15,2,15,3],[16,2,16,3],[16,4,17,8],[17,2,17,3],[18,2,18,3],[18,4,19,8],[19,2,19,3],[20,2,20,3],[20,4,21,8],[21,2,21,3],[22,2,22,3],[22,4,23,8],[23,2,23,3],[24,2,24,3],[24,4,25,8],[25,2,25,3],[26,2,26,3],[26,4,27,8],[27,2,27,3],[28,2,28,3],[28,4,29,8],[29,2,29,3],[30,2,30,3],[30,4,31,8],[31,2,31,3],[32,4,33,8],[33,2,33,3],[34,2,34,3],[34,4,35,8],[35,2,35,3],[40,4,40,8],[41,1,41,3],[41,4,41,8],[43,0,43,3],[2,0,2,8],[36,0,41,0],[36,1,36,3],[36,4,36,8],[37,1,37,3],[37,4,37,8],[38,1,38,3],[38,4,38,8],[39,1,39,3],[39,4,39,8],[40,1,40,3],[32,2,32,3]]}
["別紙",null,null,null,null,null,null,null,"（用紙A4）"]
[]
["経営業務の管理責任者の略歴書"]
[]
["現　住　所",null,null,{"$f":"VLOOKUP(\"○\",役員等の一覧表!$N$7:$U$29,6,FALSE)&VLOOKUP(\"○\",役員等の一覧表!$N$7:$U$29,7,FALSE)&VLOOKUP(\"○\",役員等の一覧表!$N$7:$U$29,8,FALSE)","v":{"$error":"#N/A"}}]
["氏　　　名",null,null,{"$f":"VLOOKUP(\"○\",役員等の一覧表!$N$7:$U$29,2,FALSE)","v":{"$error":"#N/A"}},null,null,null,"生年月日",{"$f":"VLOOKUP(\"○\",役員等の一覧表!$N$7:$U$29,5,FALSE)","v":{"$error":"#N/A"}}]
["職　　　名",null,null,{"$f":"VLOOKUP(\"○\",役員等の一覧表!$N$7:$U$29,3,FALSE)&\"　（\"&VLOOKUP(\"○\",役員等の一覧表!$N$7:$U$29,4,FALSE)&\"）\"","v":{"$error":"#N/A"}}]
["職  　　　　 歴","期　　　　　　間",null,null,"従　事　し　た　職　務　内　容"]
[null,"自"]
[null,"至"]
[null,"自"]
[null,"至"]
[null,"自"]
[null,"至"]
[null,"自"]
[null,"至"]
[null,"自"]
[null,"至"]
[null,"自"]
[null,"至"]
[null,"自"]
[null,"至",null,"1966-03-08"]
[null,"自"]
[null,"至"]
[null,"自"]
[null,"至"]
[null,"自"]
[null,"至"]
[null,"自"]
[null,"至"]
[null,"自"]
[null,"至"]
[null,"自"]
[null,"至"]
[null,"自"]
[null,"至"]
["賞 罰","年　　月　　日",null,null,"賞　　罰　　の　　内　　容"]
[null,null,null,null,"な　し"]
[]
[]
[]
[]
[null,"上記の通り相違ありません。"]
[{"$f":"会社データ!$D$4","v":"平成27年　　月　　日"},null,null,null,null,null,null,"氏名",{"$f":"D6","v":{"$error":"#N/A"}}]
["記載要領"]
["※","「賞罰」の欄は、行政処分等についても記載すること。"]

{"sheet":"略歴書","index":15,"n_rows":28,"n_cols":11,"rows_kept":28,"cut":false,"hidden":false,"merged":[[9,0,9,2],[7,3,7,8],[9,3,9,8],[15,1,15,3],[15,4,15,8],[13,1,13,3],[13,4,13,8],[14,1,14,3],[14,4,14,8],[10,0,15,0],[2,6,4,8],[25,1,25,8],[26,1,26,8],[27,1,27,8],[23,1,24,8],[12,1,12,3],[10,1,10,3],[11,1,11,3],[17,0,17,3],[12,4,12,8],[11,4,11,8],[10,4,10,8],[2,3,4,4],[8,3,8,6],[7,0,7,2],[8,0,8,2]]}
["様式第十二号（第四条関係）",null,null,null,null,null,null,null,"（用紙A4）"]
[]
[null,null,null,"許可申請者　",null,"法人の役員等","　の住所、生年月日等に関する調書"]
[null,null,null,null,null,"本　　　人"]
[null,null,null,null,null,"法定代理人"]
[null,null,null,null,null,"法定代理人の役員等"]
[null,null,null,null,null,null,null,null,null,null,"役員一覧表左端のNo"]
["現　住　所",null,null,{"$f":"VLOOKUP(K8,役員等の一覧表!$A$7:$J$29,8,FALSE)&VLOOKUP(K8,役員等の一覧表!$A$7:$J$29,9,FALSE)&VLOOKUP(K8,役員等の一覧表!$A$7:$J$29,10,FALSE)","v":""},null,null,null,null,null,null,1]
["氏　　　名",null,null,{"$f":"VLOOKUP(K8,役員等の一覧表!$A$7:$J$29,2,FALSE)","v":0},null,null,null,"生年月日",{"$f":"VLOOKUP(K8,役員等の一覧表!$A$7:$J$29,7,FALSE)","v":"00:00:00"}]
["役名等",null,null,{"$f":"VLOOKUP(K8,役員等の一覧表!$A$7:$J$29,3,FALSE)&\"　（\"&VLOOKUP(K8,役員等の一覧表!$A$7:$J$29,4,FALSE)&\"）\"","v":"　（）"}]
["賞 罰","年　　月　　日",null,null,"賞　　罰　　の　　内　　容"]
[null,null,null,null,"な　し"]
[]
[]
[]
[]
[null,"上記の通り相違ありません。"]
[{"$f":"会社データ!$D$4","v":"平成27年　　月　　日"},null,null,null,null,null,null,"氏名",{"$f":"D9","v":0}]
["記載要領"]
[1,"「 法人の役員等"]
[null,"　本人",null,"　　　　　　については、不要のものを消すこと。"]
[null,"　法定代理人"]
[null,"　法定代理人の役員等　」"]
[2,"法人である場合においては、法人の役員、顧問、相談役又は総株主の議決権の100分の5以上を有する株主若しくは出資の総額の100分の5以上に相当する出資をしている者（個人であるものに限る。以下「株主等」という。）について記載すること。"]
[]
[3,"株主等については、「役名等」の欄には「株主等」と記載することとし、「賞罰」欄への記載並びに署名及び押印を要しない。"]
[4,"「賞罰」の欄は、行政処分等についても記載すること。"]
[5,"様式第７号別紙に記載のある者については、本様式の作成を要しない。"]

{"sheet":"令3略歴書","index":16,"n_rows":18,"n_cols":9,"rows_kept":18,"cut":false,"hidden":false,"merged":[[6,0,6,2],[6,3,6,6],[13,4,13,6],[12,1,12,3],[12,4,12,6],[9,1,9,3],[8,1,8,3],[15,0,15,3],[2,0,2,6],[4,0,4,2],[5,0,5,2],[7,0,7,2],[4,3,4,6],[5,3,5,4],[7,3,7,6],[10,1,10,3],[8,4,8,6],[9,4,9,6],[10,4,10,6],[8,0,13,0],[11,1,11,3],[11,4,11,6],[13,1,13,3]]}
["様式第十三号（第四条関係）"]
[null,null,null,null,null,null,"（用紙A4）"]
["建設業法施行令第３条に規定する使用人の住所、生年月日等に関する調書"]
[null,null,null,null,null,null,null,null,"令3条左端のNo"]
["現　住　所",null,null,null,null,null,null,null,1]
["氏　　　名",null,null,{"$f":"VLOOKUP($I$5,令３条!$A$6:$D$22,4)","v":0},null,"生年月日"]
["営 業 所 名",null,null,{"$f":"VLOOKUP($I$5,令３条!$A$6:$D$22,2)","v":""}]
["職　　　名",null,null,{"$f":"VLOOKUP($I$5,令３条!$A$6:$D$22,3)","v":0}]
["賞 罰","年　　月　　日",null,null,"賞　　罰　　の　　内　　容"]
[null,null,null,null,"な　し"]
[]
[]
[]
[]
[null,"上記の通り相違ありません。"]
[{"$f":"会社データ!$D$4","v":"平成27年　　月　　日"},null,null,null,null,"氏名",{"$f":"D6","v":0}]
["記載要領"]
["　「賞罰」の欄は、行政処分についても記載すること。"]

{"sheet":"株主調書","index":17,"n_rows":29,"n_cols":6,"rows_kept":29,"cut":false,"hidden":false,"merged":[[4,2,4,3],[2,0,2,3],[28,0,28,2]]}
["様式第十四号（第四条関係）"]
[null,null,null,"(用紙A4）"]
["株　主　（　出　資　者　）　調　書"]
[]
["株主(出資者)名","住        所","所有株数又は\n出資の価額"]
[null,null,null,"株",null,"株"]
[null,null,null,null,null,"円"]
[]
[]
[]
[]
[]
[]
[]
[]
[]
[]
[]
[]
[]
[]
[]
[]
[]
[]
[]
[]
["記載要領"]
["　この調書は、総株主の議決権の100分の5以上を有する株主又は出資の総額の100分の5以上に相当する出資をしている者について記載すること。"]

{"sheet":"行政書士委任状","index":18,"n_rows":28,"n_cols":5,"rows_kept":28,"cut":false,"hidden":false,"merged":[[26,0,26,4],[16,0,16,4],[17,0,25,0],[21,1,21,4],[25,1,25,4],[22,1,22,4],[23,1,23,4],[24,1,24,4],[17,1,20,3],[7,2,7,4],[8,2,8,4],[14,3,14,4],[15,3,15,4],[12,2,12,4],[1,0,1,4],[2,2,2,4],[8,1,9,1],[11,0,15,0],[11,1,12,1],[3,2,3,4],[4,2,4,4],[9,2,9,4],[10,0,10,4],[3,0,9,0],[4,1,7,1],[13,2,13,4],[11,2,11,4],[13,1,15,1],[5,2,5,4],[6,2,6,4]]}
[]
["委　　任　　状"]
[null,null,"平成　27　年　　　月　　　日"]
["行 政 書 士","氏　  　　名","四　本　平　一"]
[null,"事務所の所在地及び連絡先","千葉県君津市杢師4丁目19番6号"]
[null,null,"電話（  0439  ）55－4910"]
[null,null,"FAX（　0439　）55－4911"]
[null,null,"e-mail   4books@hello.email.ne.jp"]
[null,"行政書士登録番号及び千葉県行政書士会会員番号","行政書士登録番号　　第　　　　号"]
[null,null,"会員番号　　第　　　　　号"]
["上記の行政書士を代理人と定め、行政書士法第1条の3第1号及び同第2号の規定により、下記の事項に関する一切の権限を委任する。"]
["委　任　者","氏名又は名称及び代表者名",{"$f":"会社データ!D12","v":0}]
[null,null,{"$f":"会社データ!D14&\"　\"&会社データ!D16","v":"　"}]
[null,"住所及び連絡先又は所在地及び連絡先",{"$f":"会社データ!D18&会社データ!F18&会社データ!D19","v":""}]
[null,null,"電話",{"$f":"会社データ!D21","v":0}]
[null,null,"FAX",{"$f":"会社データ!F21","v":0}]
["記"]
["委 任 事 項","建設業法第3条に定める許可"]
[]
[null,null,null,null,"における"]
[]
[null,"1.行政手続法第2条第3号及び建設業法第5条に定める申請（書類等の作成及び当該書類等の補正又は訂正並びに当該申請の受理印・受付印・預り印等の押印を受けた書面の交付など受理等を証する書面の交付を受けることを含む）をすること及びこれを取下げること"]
[null,"1.行政手続法第2条第2号及び同法同条第4号に定める処分の通知を受けること"]
[null,"1.行政手続法その他法令に定める聴聞又は弁明等不利益処分に対する意見陳述に関する手続をすること"]
[]
[null,"1.復代理人を選任すること"]
["（千葉県行政書士会用紙）"]
[null,null,null,null,"©千葉県行政書士会"]

{"sheet":"登記されていない申請書","index":19,"n_rows":228,"n_cols":227,"rows_kept":228,"cut":false,"hidden":false,"merged":[[1,0,2,0],[1,1,1,7],[1,8,1,36],[1,37,1,74],[2,1,2,3],[2,4,2,7],[2,8,2,10],[2,11,2,14],[2,15,2,36],[2,37,2,49],[2,50,2,58],[2,59,2,66],[2,67,2,74],[3,1,3,3],[3,4,3,7],[3,8,3,10],[3,11,3,14],[3,15,3,36],[3,37,3,49],[3,50,3,58],[3,59,3,66],[3,67,3,74],[4,1,4,3],[4,4,4,7],[4,8,4,10],[4,11,4,14],[4,15,4,36],[4,37,4,49],[4,50,4,58],[4,59,4,66],[4,67,4,74],[5,1,5,3],[5,4,5,7],[5,8,5,10],[5,11,5,14],[5,15,5,36],[5,37,5,49],[5,50,5,58],[5,59,5,66],[5,67,5,74],[6,1,6,3],[6,4,6,7],[6,8,6,10],[6,11,6,14],[6,15,6,36],[6,37,6,49],[6,50,6,58],[6,59,6,66],[6,67,6,74],[7,1,7,3],[7,4,7,7],[7,8,7,10],[7,11,7,14],[7,15,7,36],[7,37,7,49],[7,50,7,58],[7,59,7,66],[7,67,7,74],[8,1,8,3],[8,4,8,7],[8,8,8,10],[8,11,8,14],[8,15,8,36],[8,37,8,49],[8,50,8,58],[8,59,8,66],[8,67,8,74],[9,1,9,3],[9,4,9,7],[9,8,9,10],[9,11,9,14],[9,15,9,36],[9,37,9,49],[9,50,9,58],[9,59,9,66],[9,67,9,74],[10,50,10,58],[10,59,10,66],[10,67,10,74],[11,1,11,3],[11,4,11,7],[11,8,11,10],[11,11,11,14],[11,15,11,36],[11,37,11,49],[11,50,11,58],[10,1,10,3],[10,4,10,7],[10,8,10,10],[10,11,10,14],[10,15,10,36],[10,37,10,49],[11,59,11,66],[11,67,11,74],[12,1,12,3],[12,4,12,7],[12,8,12,10],[12,11,12,14],[12,15,12,36],[12,37,12,49],[12,50,12,58],[12,59,12,66],[12,67,12,74],[13,1,13,3],[13,4,13,7],[13,8,13,10],[13,11,13,14],[13,15,13,36],[13,37,13,49],[13,50,13,58],[13,59,13,66],[13,67,13,74],[14,1,14,3],[14,4,14,7],[14,8,14,10],[14,11,14,14],[14,15,14,36],[14,37,14,49],[14,50,14,58],[14,59,14,66],[14,67,14,74],[15,50,15,58],[15,59,15,66],[15,67,15,74],[16,1,16,3],[16,4,16,7],[16,8,16,10],[16,11,16,14],[16,15,16,36],[16,37,16,49],[16,50,16,58],[15,1,15,3],[15,4,15,7],[15,8,15,10],[15,11,15,14],[15,15,15,36],[15,37,15,49],[16,59,16,66],[16,67,16,74],[17,1,17,3],[17,4,17,7],[17,8,17,10],[17,11,17,14],[17,15,17,36],[17,37,17,49],[17,50,17,58],[17,59,17,66],[17,67,17,74],[18,1,18,3],[18,4,18,7],[18,8,18,10],[18,11,18,14],[18,15,18,36],[18,37,18,49],[18,50,18,58],[18,59,18,66],[27,0,29,19],[23,4,23,7],[24,4,24,7],[20,15,20,36],[21,15,21,36],[22,15,22,36],[23,15,23,36],[24,15,24,36],[25,15,25,36],[25,11,25,14],[20,11,20,14],[21,11,21,14],[22,11,22,14],[23,11,23,14],[24,11,24,14],[20,50,20,58],[31,0,32,1],[31,2,32,3],[31,4,32,5],[31,16,32,19],[18,67,18,74],[19,1,19,3],[19,4,19,7],[19,8,19,10],[19,11,19,14],[19,15,19,36],[19,37,19,49],[19,50,19,58],[19,59,19,66],[19,67,19,74],[20,8,20,10],[21,8,21,10],[22,8,22,10],[23,8,23,10],[24,8,24,10],[25,8,25,10],[25,4,25,7],[20,4,20,7],[21,4,21,7],[22,4,22,7],[33,7,34,7],[33,8,34,8],[33,18,35,18],[37,0,38,5],[37,175,39,205],[39,1,40,1],[39,2,40,4],[39,5,40,9],[39,10,40,19],[33,0,34,1],[33,2,34,2],[33,3,34,3],[33,4,34,4],[33,5,34,5],[33,6,34,6],[41,1,42,2],[41,3,42,9],[41,10,42,13],[40,200,42,206],[40,189,42,195],[40,177,42,183],[43,1,44,2],[43,3,44,9],[43,10,44,19],[43,75,46,179],[45,13,46,15],[47,13,48,18],[47,75,48,179],[49,75,51,116],[50,1,51,2],[50,3,51,4],[50,5,51,5],[50,6,51,6],[50,7,51,7],[50,8,51,8],[50,9,51,9],[53,0,54,8],[55,1,56,1],[55,2,56,19],[55,75,58,179],[57,1,58,2],[57,3,58,9],[57,10,58,13],[50,10,51,10],[50,140,51,169],[52,77,54,79],[52,90,54,92],[52,107,54,109],[52,138,54,140],[52,157,54,176],[59,1,60,2],[59,3,60,9],[59,10,60,19],[59,75,60,179],[61,75,64,116],[61,117,62,172],[62,0,63,9],[63,140,64,169],[64,1,65,1],[64,2,65,19],[75,53,76,56],[77,53,78,56],[81,53,83,56],[82,0,83,2],[85,0,86,0],[85,53,86,56],[65,75,68,179],[66,1,67,1],[66,2,67,19],[69,0,70,2],[69,75,71,179],[73,53,74,56],[96,0,97,2],[96,3,97,3],[96,4,97,4],[97,47,100,53],[97,54,100,60],[97,118,100,124],[89,53,90,56],[92,3,93,3],[92,4,93,11],[92,12,93,15],[92,53,94,56],[92,73,94,137],[97,168,100,174],[97,175,100,182],[97,183,100,189],[97,190,100,196],[97,197,100,203],[97,204,100,210],[97,125,100,131],[97,132,100,138],[97,139,100,145],[97,146,100,153],[97,154,100,160],[97,161,100,167],[102,0,103,1],[102,2,103,4],[102,5,103,9],[102,10,103,19],[109,65,113,203],[115,114,118,121],[115,122,118,129],[115,130,118,138],[115,139,118,146],[115,156,118,163],[122,64,127,74],[122,75,127,84],[122,85,127,94],[122,95,127,105],[122,106,127,203],[130,65,134,203],[115,164,118,171],[115,180,118,187],[115,188,118,195],[116,69,118,72],[116,77,118,80],[116,85,118,88],[116,93,118,96],[116,106,118,109],[194,58,194,78],[194,79,194,177],[137,64,141,74],[137,75,141,84],[137,85,141,94],[137,95,141,105],[137,106,141,203],[144,47,145,50],[144,65,148,203],[224,109,224,123],[224,124,224,224],[227,109,227,123],[227,124,227,202],[20,1,20,3],[21,1,21,3],[22,1,22,3],[23,1,23,3],[24,1,24,3],[25,1,25,3],[203,21,203,224],[209,21,209,224],[217,41,217,52],[217,53,217,64],[217,65,217,72],[217,73,217,84],[217,85,217,92],[217,93,217,104],[217,105,217,112],[182,21,183,224],[190,58,190,77],[190,78,190,177],[192,58,192,77],[192,78,192,177],[20,59,20,66],[20,67,20,74],[21,37,21,49],[21,50,21,58],[21,59,21,66],[21,67,21,74],[20,37,20,49],[22,37,22,49],[24,50,24,58],[24,59,24,66],[24,67,24,74],[25,37,25,49],[25,50,25,58],[25,59,25,66],[25,67,25,74],[22,50,22,58],[22,59,22,66],[22,67,22,74],[23,37,23,49],[23,50,23,58],[23,59,23,66],[23,67,23,74],[24,37,24,49]]}
["役員のリスト"]
["No","氏名",null,null,null,null,null,null,"住所",null,null,null,null,null,null,null,null,null,null,null,null,null,null,null,null,null,null,null,null,null,null,null,null,null,null,null,null,"生年月日"]
[null,"フリガナ",null,null,"漢字",null,null,null,"都道府県",null,null,"市区町村",null,null,null,"番地",null,null,null,null,null,null,null,null,null,null,null,null,null,null,null,null,null,null,null,null,null,"年号",null,null,null,null,null,null,null,null,null,null,null,null,"年",null,null,null,null,null,null,null,null,"月",null,null,null,null,null,null,null,"日"]
[1,{"$f":"PHONETIC(役員等の一覧表!B7)","v":""},null,null,{"$f":"役員等の一覧表!B7","v":0},null,null,null,{"$f":"役員等の一覧表!H7","v":0},null,null,{"$f":"役員等の一覧表!I7","v":0},null,null,null,{"$f":"役員等の一覧表!J7","v":0},null,null,null,null,null,null,null,null,null,null,null,null,null,null,null,null,null,null,null,null,null,{"$f":"TEXT(役員等の一覧表!G7,\"gggg\")","v":"明治"},null,null,null,null,null,null,null,null,null,null,null,null,{"$f":"MID(TEXT(役員等の一覧表!G7,\"gy\"),2,2)","v":"33"},null,null,null,null,null,null,null,null,{"$f":"TEXT(役員等の一覧表!G7,\"m\")","v":"1"},null,null,null,null,null,null,null,{"$f":"TEXT(役員等の一覧表!G7,\"d\")","v":"0"}]
[2,{"$f":"PHONETIC(役員等の一覧表!B8)","v":""},null,null,{"$f":"役員等の一覧表!B8","v":0},null,null,null,{"$f":"役員等の一覧表!H8","v":0},null,null,{"$f":"役員等の一覧表!I8","v":0},null,null,null,{"$f":"役員等の一覧表!J8","v":0},null,null,null,null,null,null,null,null,null,null,null,null,null,null,null,null,null,null,null,null,null,{"$f":"TEXT(役員等の一覧表!G8,\"gggg\")","v":"明治"},null,null,null,null,null,null,null,null,null,null,null,null,{"$f":"MID(TEXT(役員等の一覧表!G8,\"gy\"),2,2)","v":"33"},null,null,null,null,null,null,null,null,{"$f":"TEXT(役員等の一覧表!G8,\"m\")","v":"1"},null,null,null,null,null,null,null,{"$f":"TEXT(役員等の一覧表!G8,\"d\")","v":"0"}]
[3,{"$f":"PHONETIC(役員等の一覧表!B9)","v":""},null,null,{"$f":"役員等の一覧表!B9","v":0},null,null,null,{"$f":"役員等の一覧表!H9","v":0},null,null,{"$f":"役員等の一覧表!I9","v":0},null,null,null,{"$f":"役員等の一覧表!J9","v":0},null,null,null,null,null,null,null,null,null,null,null,null,null,null,null,null,null,null,null,null,null,{"$f":"TEXT(役員等の一覧表!G9,\"gggg\")","v":"明治"},null,null,null,null,null,null,null,null,null,null,null,null,{"$f":"MID(TEXT(役員等の一覧表!G9,\"gy\"),2,2)","v":"33"},null,null,null,null,null,null,null,null,{"$f":"TEXT(役員等の一覧表!G9,\"m\")","v":"1"},null,null,null,null,null,null,null,{"$f":"TEXT(役員等の一覧表!G9,\"d\")","v":"0"}]
[4,{"$f":"PHONETIC(役員等の一覧表!B10)","v":""},null,null,{"$f":"役員等の一覧表!B10","v":0},null,null,null,{"$f":"役員等の一覧表!H10","v":0},null,null,{"$f":"役員等の一覧表!I10","v":0},null,null,null,{"$f":"役員等の一覧表!J10","v":0},null,null,null,null,null,null,null,null,null,null,null,null,null,null,null,null,null,null,null,null,null,{"$f":"TEXT(役員等の一覧表!G10,\"gggg\")","v":"明治"},null,null,null,null,null,null,null,null,null,null,null,null,{"$f":"MID(TEXT(役員等の一覧表!G10,\"gy\"),2,2)","v":"33"},null,null,null,null,null,null,null,null,{"$f":"TEXT(役員等の一覧表!G10,\"m\")","v":"1"},null,null,null,null,null,null,null,{"$f":"TEXT(役員等の一覧表!G10,\"d\")","v":"0"}]
[5,{"$f":"PHONETIC(役員等の一覧表!B11)","v":""},null,null,{"$f":"役員等の一覧表!B11","v":0},null,null,null,{"$f":"役員等の一覧表!H11","v":0},null,null,{"$f":"役員等の一覧表!I11","v":0},null,null,null,{"$f":"役員等の一覧表!J11","v":0},null,null,null,null,null,null,null,null,null,null,null,null,null,null,null,null,null,null,null,null,null,{"$f":"TEXT(役員等の一覧表!G11,\"gggg\")","v":"明治"},null,null,null,null,null,null,null,null,null,null,null,null,{"$f":"MID(TEXT(役員等の一覧表!G11,\"gy\"),2,2)","v":"33"},null,null,null,null,null,null,null,null,{"$f":"TEXT(役員等の一覧表!G11,\"m\")","v":"1"},null,null,null,null,null,null,null,{"$f":"TEXT(役員等の一覧表!G11,\"d\")","v":"0"}]
[6,{"$f":"PHONETIC(役員等の一覧表!B12)","v":""},null,null,{"$f":"役員等の一覧表!B12","v":0},null,null,null,{"$f":"役員等の一覧表!H12","v":0},null,null,{"$f":"役員等の一覧表!I12","v":0},null,null,null,{"$f":"役員等の一覧表!J12","v":0},null,null,null,null,null,null,null,null,null,null,null,null,null,null,null,null,null,null,null,null,null,{"$f":"TEXT(役員等の一覧表!G12,\"gggg\")","v":"明治"},null,null,null,null,null,null,null,null,null,null,null,null,{"$f":"MID(TEXT(役員等の一覧表!G12,\"gy\"),2,2)","v":"33"},null,null,null,null,null,null,null,null,{"$f":"TEXT(役員等の一覧表!G12,\"m\")","v":"1"},null,null,null,null,null,null,null,{"$f":"TEXT(役員等の一覧表!G12,\"d\")","v":"0"}]
[7,{"$f":"PHONETIC(役員等の一覧表!B13)","v":""},null,null,{"$f":"役員等の一覧表!B13","v":0},null,null,null,{"$f":"役員等の一覧表!H13","v":0},null,null,{"$f":"役員等の一覧表!I13","v":0},null,null,null,{"$f":"役員等の一覧表!J13","v":0},null,null,null,null,null,null,null,null,null,null,null,null,null,null,null,null,null,null,null,null,null,{"$f":"TEXT(役員等の一覧表!G13,\"gggg\")","v":"明治"},null,null,null,null,null,null,null,null,null,null,null,null,{"$f":"MID(TEXT(役員等の一覧表!G13,\"gy\"),2,2)","v":"33"},null,null,null,null,null,null,null,null,{"$f":"TEXT(役員等の一覧表!G13,\"m\")","v":"1"},null,null,null,null,null,null,null,{"$f":"TEXT(役員等の一覧表!G13,\"d\")","v":"0"}]
[8,{"$f":"PHONETIC(役員等の一覧表!B14)","v":""},null,null,{"$f":"役員等の一覧表!B14","v":0},null,null,null,{"$f":"役員等の一覧表!H14","v":0},null,null,{"$f":"役員等の一覧表!I14","v":0},null,null,null,{"$f":"役員等の一覧表!J14","v":0},null,null,null,null,null,null,null,null,null,null,null,null,null,null,null,null,null,null,null,null,null,{"$f":"TEXT(役員等の一覧表!G14,\"gggg\")","v":"明治"},null,null,null,null,null,null,null,null,null,null,null,null,{"$f":"MID(TEXT(役員等の一覧表!G14,\"gy\"),2,2)","v":"33"},null,null,null,null,null,null,null,null,{"$f":"TEXT(役員等の一覧表!G14,\"m\")","v":"1"},null,null,null,null,null,null,null,{"$f":"TEXT(役員等の一覧表!G14,\"d\")","v":"0"}]
[9,{"$f":"PHONETIC(役員等の一覧表!B15)","v":""},null,null,{"$f":"役員等の一覧表!B15","v":0},null,null,null,{"$f":"役員等の一覧表!H15","v":0},null,null,{"$f":"役員等の一覧表!I15","v":0},null,null,null,{"$f":"役員等の一覧表!J15","v":0},null,null,null,null,null,null,null,null,null,null,null,null,null,null,null,null,null,null,null,null,null,{"$f":"TEXT(役員等の一覧表!G15,\"gggg\")","v":"明治"},null,null,null,null,null,null,null,null,null,null,null,null,{"$f":"MID(TEXT(役員等の一覧表!G15,\"gy\"),2,2)","v":"33"},null,null,null,null,null,null,null,null,{"$f":"TEXT(役員等の一覧表!G15,\"m\")","v":"1"},null,null,null,null,null,null,null,{"$f":"TEXT(役員等の一覧表!G15,\"d\")","v":"0"}]
[10,{"$f":"PHONETIC(役員等の一覧表!B16)","v":""},null,null,{"$f":"役員等の一覧表!B16","v":0},null,null,null,{"$f":"役員等の一覧表!H16","v":0},null,null,{"$f":"役員等の一覧表!I16","v":0},null,null,null,{"$f":"役員等の一覧表!J16","v":0},null,null,null,null,null,null,null,null,null,null,null,null,null,null,null,null,null,null,null,null,null,{"$f":"TEXT(役員等の一覧表!G16,\"gggg\")","v":"明治"},null,null,null,null,null,null,null,null,null,null,null,null,{"$f":"MID(TEXT(役員等の一覧表!G16,\"gy\"),2,2)","v":"33"},null,null,null,null,null,null,null,null,{"$f":"TEXT(役員等の一覧表!G16,\"m\")","v":"1"},null,null,null,null,null,null,null,{"$f":"TEXT(役員等の一覧表!G16,\"d\")","v":"0"}]
[11,{"$f":"PHONETIC(役員等の一覧表!B17)","v":""},null,null,{"$f":"役員等の一覧表!B17","v":0},null,null,null,{"$f":"役員等の一覧表!H17","v":0},null,null,{"$f":"役員等の一覧表!I17","v":0},null,null,null,{"$f":"役員等の一覧表!J17","v":0},null,null,null,null,null,null,null,null,null,null,null,null,null,null,null,null,null,null,null,null,null,{"$f":"TEXT(役員等の一覧表!G17,\"gggg\")","v":"明治"},null,null,null,null,null,null,null,null,null,null,null,null,{"$f":"MID(TEXT(役員等の一覧表!G17,\"gy\"),2,2)","v":"33"},null,null,null,null,null,null,null,null,{"$f":"TEXT(役員等の一覧表!G17,\"m\")","v":"1"},null,null,null,null,null,null,null,{"$f":"TEXT(役員等の一覧表!G17,\"d\")","v":"0"}]
[12,{"$f":"PHONETIC(役員等の一覧表!B18)","v":""},null,null,{"$f":"役員等の一覧表!B18","v":0},null,null,null,{"$f":"役員等の一覧表!H18","v":0},null,null,{"$f":"役員等の一覧表!I18","v":0},null,null,null,{"$f":"役員等の一覧表!J18","v":0},null,null,null,null,null,null,null,null,null,null,null,null,null,null,null,null,null,null,null,null,null,{"$f":"TEXT(役員等の一覧表!G18,\"gggg\")","v":"明治"},null,null,null,null,null,null,null,null,null,null,null,null,{"$f":"MID(TEXT(役員等の一覧表!G18,\"gy\"),2,2)","v":"33"},null,null,null,null,null,null,null,null,{"$f":"TEXT(役員等の一覧表!G18,\"m\")","v":"1"},null,null,null,null,null,null,null,{"$f":"TEXT(役員等の一覧表!G18,\"d\")","v":"0"}]
[13,{"$f":"PHONETIC(役員等の一覧表!B19)","v":""},null,null,{"$f":"役員等の一覧表!B19","v":0},null,null,null,{"$f":"役員等の一覧表!H19","v":0},null,null,{"$f":"役員等の一覧表!I19","v":0},null,null,null,{"$f":"役員等の一覧表!J19","v":0},null,null,null,null,null,null,null,null,null,null,null,null,null,null,null,null,null,null,null,null,null,{"$f":"TEXT(役員等の一覧表!G19,\"gggg\")","v":"明治"},null,null,null,null,null,null,null,null,null,null,null,null,{"$f":"MID(TEXT(役員等の一覧表!G19,\"gy\"),2,2)","v":"33"},null,null,null,null,null,null,null,null,{"$f":"TEXT(役員等の一覧表!G19,\"m\")","v":"1"},null,null,null,null,null,null,null,{"$f":"TEXT(役員等の一覧表!G19,\"d\")","v":"0"}]
[14,{"$f":"PHONETIC(役員等の一覧表!B20)","v":""},null,null,{"$f":"役員等の一覧表!B20","v":0},null,null,null,{"$f":"役員等の一覧表!H20","v":0},null,null,{"$f":"役員等の一覧表!I20","v":0},null,null,null,{"$f":"役員等の一覧表!J20","v":0},null,null,null,null,null,null,null,null,null,null,null,null,null,null,null,null,null,null,null,null,null,{"$f":"TEXT(役員等の一覧表!G20,\"gggg\")","v":"明治"},null,null,null,null,null,null,null,null,null,null,null,null,{"$f":"MID(TEXT(役員等の一覧表!G20,\"gy\"),2,2)","v":"33"},null,null,null,null,null,null,null,null,{"$f":"TEXT(役員等の一覧表!G20,\"m\")","v":"1"},null,null,null,null,null,null,null,{"$f":"TEXT(役員等の一覧表!G20,\"d\")","v":"0"}]
[15,{"$f":"PHONETIC(役員等の一覧表!B21)","v":""},null,null,{"$f":"役員等の一覧表!B21","v":0},null,null,null,{"$f":"役員等の一覧表!H21","v":0},null,null,{"$f":"役員等の一覧表!I21","v":0},null,null,null,{"$f":"役員等の一覧表!J21","v":0},null,null,null,null,null,null,null,null,null,null,null,null,null,null,null,null,null,null,null,null,null,{"$f":"TEXT(役員等の一覧表!G21,\"gggg\")","v":"明治"},null,null,null,null,null,null,null,null,null,null,null,null,{"$f":"MID(TEXT(役員等の一覧表!G21,\"gy\"),2,2)","v":"33"},null,null,null,null,null,null,null,null,{"$f":"TEXT(役員等の一覧表!G21,\"m\")","v":"1"},null,null,null,null,null,null,null,{"$f":"TEXT(役員等の一覧表!G21,\"d\")","v":"0"}]
[16,{"$f":"PHONETIC(役員等の一覧表!B22)","v":""},null,null,{"$f":"役員等の一覧表!B22","v":0},null,null,null,{"$f":"役員等の一覧表!H22","v":0},null,null,{"$f":"役員等の一覧表!I22","v":0},null,null,null,{"$f":"役員等の一覧表!J22","v":0},null,null,null,null,null,null,null,null,null,null,null,null,null,null,null,null,null,null,null,null,null,{"$f":"TEXT(役員等の一覧表!G22,\"gggg\")","v":"明治"},null,null,null,null,null,null,null,null,null,null,null,null,{"$f":"MID(TEXT(役員等の一覧表!G22,\"gy\"),2,2)","v":"33"},null,null,null,null,null,null,null,null,{"$f":"TEXT(役員等の一覧表!G22,\"m\")","v":"1"},null,null,null,null,null,null,null,{"$f":"TEXT(役員等の一覧表!G22,\"d\")","v":"0"}]
[17,{"$f":"PHONETIC(役員等の一覧表!B23)","v":""},null,null,{"$f":"役員等の一覧表!B23","v":0},null,null,null,{"$f":"役員等の一覧表!H23","v":0},null,null,{"$f":"役員等の一覧表!I23","v":0},null,null,null,{"$f":"役員等の一覧表!J23","v":0},null,null,null,null,null,null,null,null,null,null,null,null,null,null,null,null,null,null,null,null,null,{"$f":"TEXT(役員等の一覧表!G23,\"gggg\")","v":"明治"},null,null,null,null,null,null,null,null,null,null,null,null,{"$f":"MID(TEXT(役員等の一覧表!G23,\"gy\"),2,2)","v":"33"},null,null,null,null,null,null,null,null,{"$f":"TEXT(役員等の一覧表!G23,\"m\")","v":"1"},null,null,null,null,null,null,null,{"$f":"TEXT(役員等の一覧表!G23,\"d\")","v":"0"}]
[18,{"$f":"PHONETIC(役員等の一覧表!B24)","v":""},null,null,{"$f":"役員等の一覧表!B24","v":0},null,null,null,{"$f":"役員等の一覧表!H24","v":0},null,null,{"$f":"役員等の一覧表!I24","v":0},null,null,null,{"$f":"役員等の一覧表!J24","v":0},null,null,null,null,null,null,null,null,null,null,null,null,null,null,null,null,null,null,null,null,null,{"$f":"TEXT(役員等の一覧表!G24,\"gggg\")","v":"明治"},null,null,null,null,null,null,null,null,null,null,null,null,{"$f":"MID(TEXT(役員等の一覧表!G24,\"gy\"),2,2)","v":"33"},null,null,null,null,null,null,null,null,{"$f":"TEXT(役員等の一覧表!G24,\"m\")","v":"1"},null,null,null,null,null,null,null,{"$f":"TEXT(役員等の一覧表!G24,\"d\")","v":"0"}]
[19,{"$f":"PHONETIC(役員等の一覧表!B25)","v":""},null,null,{"$f":"役員等の一覧表!B25","v":0},null,null,null,{"$f":"役員等の一覧表!H25","v":0},null,null,{"$f":"役員等の一覧表!I25","v":0},null,null,null,{"$f":"役員等の一覧表!J25","v":0},null,null,null,null,null,null,null,null,null,null,null,null,null,null,null,null,null,null,null,null,null,{"$f":"TEXT(役員等の一覧表!G25,\"gggg\")","v":"明治"},null,null,null,null,null,null,null,null,null,null,null,null,{"$f":"MID(TEXT(役員等の一覧表!G25,\"gy\"),2,2)","v":"33"},null,null,null,null,null,null,null,null,{"$f":"TEXT(役員等の一覧表!G25,\"m\")","v":"1"},null,null,null,null,null,null,null,{"$f":"TEXT(役員等の一覧表!G25,\"d\")","v":"0"}]
[20,{"$f":"PHONETIC(役員等の一覧表!B26)","v":""},null,null,{"$f":"役員等の一覧表!B26","v":0},null,null,null,{"$f":"役員等の一覧表!H26","v":0},null,null,{"$f":"役員等の一覧表!I26","v":0},null,null,null,{"$f":"役員等の一覧表!J26","v":0},null,null,null,null,null,null,null,null,null,null,null,null,null,null,null,null,null,null,null,null,null,{"$f":"TEXT(役員等の一覧表!G26,\"gggg\")","v":"明治"},null,null,null,null,null,null,null,null,null,null,null,null,{"$f":"MID(TEXT(役員等の一覧表!G26,\"gy\"),2,2)","v":"33"},null,null,null,null,null,null,null,null,{"$f":"TEXT(役員等の一覧表!G26,\"m\")","v":"1"},null,null,null,null,null,null,null,{"$f":"TEXT(役員等の一覧表!G26,\"d\")","v":"0"}]
[21,{"$f":"PHONETIC(役員等の一覧表!B27)","v":""},null,null,{"$f":"役員等の一覧表!B27","v":0},null,null,null,{"$f":"役員等の一覧表!H27","v":0},null,null,{"$f":"役員等の一覧表!I27","v":0},null,null,null,{"$f":"役員等の一覧表!J27","v":0},null,null,null,null,null,null,null,null,null,null,null,null,null,null,null,null,null,null,null,null,null,{"$f":"TEXT(役員等の一覧表!G27,\"gggg\")","v":"明治"},null,null,null,null,null,null,null,null,null,null,null,null,{"$f":"MID(TEXT(役員等の一覧表!G27,\"gy\"),2,2)","v":"33"},null,null,null,null,null,null,null,null,{"$f":"TEXT(役員等の一覧表!G27,\"m\")","v":"1"},null,null,null,null,null,null,null,{"$f":"TEXT(役員等の一覧表!G27,\"d\")","v":"0"}]
[22,{"$f":"PHONETIC(役員等の一覧表!B28)","v":""},null,null,{"$f":"役員等の一覧表!B28","v":0},null,null,null,{"$f":"役員等の一覧表!H28","v":0},null,null,{"$f":"役員等の一覧表!I28","v":0},null,null,null,{"$f":"役員等の一覧表!J28","v":0},null,null,null,null,null,null,null,null,null,null,null,null,null,null,null,null,null,null,null,null,null,{"$f":"TEXT(役員等の一覧表!G28,\"gggg\")","v":"明治"},null,null,null,null,null,null,null,null,null,null,null,null,{"$f":"MID(TEXT(役員等の一覧表!G28,\"gy\"),2,2)","v":"33"},null,null,null,null,null,null,null,null,{"$f":"TEXT(役員等の一覧表!G28,\"m\")","v":"1"},null,null,null,null,null,null,null,{"$f":"TEXT(役員等の一覧表!G28,\"d\")","v":"0"}]
[23,{"$f":"PHONETIC(役員等の一覧表!B29)","v":""},null,null,{"$f":"役員等の一覧表!B29","v":0},null,null,null,{"$f":"役員等の一覧表!H29","v":0},null,null,{"$f":"役員等の一覧表!I29","v":0},null,null,null,{"$f":"役員等の一覧表!J29","v":0},null,null,null,null,null,null,null,null,null,null,null,null,null,null,null,null,null,null,null,null,null,{"$f":"TEXT(役員等の一覧表!G29,\"gggg\")","v":"明治"},null,null,null,null,null,null,null,null,null,null,null,null,{"$f":"MID(TEXT(役員等の一覧表!G29,\"gy\"),2,2)","v":"33"},null,null,null,null,null,null,null,null,{"$f":"TEXT(役員等の一覧表!G29,\"m\")","v":"1"},null,null,null,null,null,null,null,{"$f":"TEXT(役員等の一覧表!G29,\"d\")","v":"0"}]
[]
["入力欄"]
[]
[]
[]
["あて先",null,"東京",null,"法務局",null,null,null,null,null,null,null,null,null,null,null,"印刷する人のNo"]
[]
["申請日",null,"平成",27,"年",null,"月",null,"日",null,null,null,null,null,null,null,null,null,1]
[]
[]
[]
["請求される方（請求権者）",null,null,null,null,null,null,null,null,null,null,null,null,null,null,null,null,null,null,null,null,null,null,null,null,null,null,null,null,null,null,null,null,null,null,null,null,null,null,null,null,null,null,null,null,null,null,null,null,null,null,null,null,null,null,null,null,null,null,null,null,null,null,null,null,null,null,null,null,null,null,null,null,null,null,null,null,null,null,null,null,null,null,null,null,null,null,null,null,null,null,null,null,null,null,null,null,null,null,null,null,null,null,null,null,null,null,null,null,null,null,null,null,null,null,null,null,null,null,null,null,null,null,null,null,null,null,null,null,null,null,null,null,null,null,null,null,null,null,null,null,null,null,null,null,null,null,null,null,null,null,null,null,null,null,null,null,null,null,null,null,null,null,null,null,null,null,null,null,null,null,null,null,null,null,{"$f":"C32","v":"東京"}]
[]
[null,"住所",{"$f":"INDEX($A$4:$BW$26,$S$34,9)","v":0},null,null,{"$f":"INDEX($A$4:$BW$26,$S$34,12)","v":0},null,null,null,null,{"$f":"INDEX($A$4:$BW$26,$S$34,16)","v":0}]
[null,null,null,null,null,null,null,null,null,null,null,null,null,null,null,null,null,null,null,null,null,null,null,null,null,null,null,null,null,null,null,null,null,null,null,null,null,null,null,null,null,null,null,null,null,null,null,null,null,null,null,null,null,null,null,null,null,null,null,null,null,null,null,null,null,null,null,null,null,null,null,null,null,null,null,null,null,null,null,null,null,null,null,null,null,null,null,null,null,null,null,null,null,null,null,null,null,null,null,null,null,null,null,null,null,null,null,null,null,null,null,null,null,null,null,null,null,null,null,null,null,null,null,null,null,null,null,null,null,null,null,null,null,null,null,null,null,null,null,null,null,null,null,null,null,null,null,null,null,null,null,null,null,null,null,null,null,null,null,null,null,null,null,null,null,null,null,null,null,null,null,null,null,null,null,null,null,{"$f":"D34","v":27},null,null,null,null,null,null,null,null,null,null,null,{"$f":"F34","v":0},null,null,null,null,null,null,null,null,null,null,{"$f":"H34","v":0}]
[null,"フリガナ",null,{"$f":"INDEX($A$4:$BW$26,$S$34,2)","v":""},null,null,null,null,null,null,"連絡先電話番号"]
[]
[null,"氏名",null,{"$f":"INDEX($A$4:$BW$26,$S$34,5)","v":0},null,null,null,null,null,null,null,null,null,null,null,null,null,null,null,null,null,null,null,null,null,null,null,null,null,null,null,null,null,null,null,null,null,null,null,null,null,null,null,null,null,null,null,null,null,null,null,null,null,null,null,null,null,null,null,null,null,null,null,null,null,null,null,null,null,null,null,null,null,null,null,{"$f":"C40&F40&K40","v":"000"}]
[]
[null,null,null,null,null,null,null,null,null,null,null,null,null,"（その他の場合）"]
[]
[null,null,null,null,null,null,null,null,null,null,null,null,null,"行政書士",null,null,null,null,null,null,null,null,null,null,null,null,null,null,null,null,null,null,null,null,null,null,null,null,null,null,null,null,null,null,null,null,null,null,null,null,null,null,null,null,null,null,null,null,null,null,null,null,null,null,null,null,null,null,null,null,null,null,null,null,null,{"$f":"D42","v":""}]
[]
[null,null,null,null,null,null,null,null,null,null,null,null,null,null,null,null,null,null,null,null,null,null,null,null,null,null,null,null,null,null,null,null,null,null,null,null,null,null,null,null,null,null,null,null,null,null,null,null,null,null,null,null,null,null,null,null,null,null,null,null,null,null,null,null,null,null,null,null,null,null,null,null,null,null,null,{"$f":"D44","v":0}]
[null,"生年月日",null,{"$f":"INDEX($A$4:$BW$26,$S$34,38)","v":"明治"},null,{"$f":"INDEX($A$4:$BW$26,$S$34,51)","v":"33"},"年",{"$f":"INDEX($A$4:$BW$26,$S$34,60)","v":"1"},"月",{"$f":"INDEX($A$4:$BW$26,$S$34,68)","v":"0"},"日",null,null,null,null,null,null,null,null,null,null,null,null,null,null,null,null,null,null,null,null,null,null,null,null,null,null,null,null,null,null,null,null,null,null,null,null,null,null,null,null,null,null,null,null,null,null,null,null,null,null,null,null,null,null,null,null,null,null,null,null,null,null,null,null,null,null,null,null,null,null,null,null,null,null,null,null,null,null,null,null,null,null,null,null,null,null,null,null,null,null,null,null,null,null,null,null,null,null,null,null,null,null,null,null,null,null,null,null,null,null,null,null,null,null,null,null,null,null,null,null,null,null,null,null,null,null,null,null,null,{"$f":"K44","v":0}]
[]
[null,null,null,null,null,null,null,null,null,null,null,null,null,null,null,null,null,null,null,null,null,null,null,null,null,null,null,null,null,null,null,null,null,null,null,null,null,null,null,null,null,null,null,null,null,null,null,null,null,null,null,null,null,null,null,null,null,null,null,null,null,null,null,null,null,null,null,null,null,null,null,null,null,null,null,null,null,{"$f":"IF(HS54=1,\"レ\",\"\")","v":""},null,null,null,null,null,null,null,null,null,null,null,null,{"$f":"IF(HS54=2,\"レ\",\"\")","v":""},null,null,null,null,null,null,null,null,null,null,null,null,null,null,null,null,{"$f":"IF(HS54=3,\"レ\",\"\")","v":""},null,null,null,null,null,null,null,null,null,null,null,null,null,null,null,null,null,null,null,null,null,null,null,null,null,null,null,null,null,null,{"$f":"IF(HS54=4,\"レ\",\"\")","v":"レ"},null,null,null,null,null,null,null,null,null,null,null,null,null,null,null,null,null,null,{"$f":"N48","v":"行政書士"}]
["代理人（上記の方から頼まれた方）",null,null,null,null,null,null,null,null,null,null,null,null,null,null,null,null,null,null,null,null,null,null,null,null,null,null,null,null,null,null,null,null,null,null,null,null,null,null,null,null,null,null,null,null,null,null,null,null,null,null,null,null,null,null,null,null,null,null,null,null,null,null,null,null,null,null,null,null,null,null,null,null,null,null,null,null,null,null,null,null,null,null,null,null,null,null,null,null,null,null,null,null,null,null,null,null,null,null,null,null,null,null,null,null,null,null,null,null,null,null,null,null,null,null,null,null,null,null,null,null,null,null,null,null,null,null,null,null,null,null,null,null,null,null,null,null,null,null,null,null,null,null,null,null,null,null,null,null,null,null,null,null,null,null,null,null,null,null,null,null,null,null,null,null,null,null,null,null,null,null,null,null,null,null,null,null,null,null,null,null,null,null,null,null,null,null,null,null,null,null,null,null,null,null,null,null,null,null,null,null,null,null,null,null,null,null,null,null,null,null,null,null,null,null,null,null,null,null,null,null,null,null,null,null,null,4]
[]
[null,"住所","千葉県君津市杢師4丁目19番6号",null,null,null,null,null,null,null,null,null,null,null,null,null,null,null,null,null,null,null,null,null,null,null,null,null,null,null,null,null,null,null,null,null,null,null,null,null,null,null,null,null,null,null,null,null,null,null,null,null,null,null,null,null,null,null,null,null,null,null,null,null,null,null,null,null,null,null,null,null,null,null,null,{"$f":"C56","v":"千葉県君津市杢師4丁目19番6号"}]
[]
[null,"フリガナ",null,"ヨツモト　ヘイイチ",null,null,null,null,null,null,"連絡先電話番号"]
[]
[null,"氏名",null,"四本　平一",null,null,null,null,null,null,"0439-55-4910",null,null,null,null,null,null,null,null,null,null,null,null,null,null,null,null,null,null,null,null,null,null,null,null,null,null,null,null,null,null,null,null,null,null,null,null,null,null,null,null,null,null,null,null,null,null,null,null,null,null,null,null,null,null,null,null,null,null,null,null,null,null,null,null,{"$f":"D58","v":"ヨツモト　ヘイイチ"}]
[]
[null,null,null,null,null,null,null,null,null,null,null,null,null,null,null,null,null,null,null,null,null,null,null,null,null,null,null,null,null,null,null,null,null,null,null,null,null,null,null,null,null,null,null,null,null,null,null,null,null,null,null,null,null,null,null,null,null,null,null,null,null,null,null,null,null,null,null,null,null,null,null,null,null,null,null,{"$f":"D60","v":"四本　平一"}]
["返送先（上記以外に返信先を指定する場合）"]
[null,null,null,null,null,null,null,null,null,null,null,null,null,null,null,null,null,null,null,null,null,null,null,null,null,null,null,null,null,null,null,null,null,null,null,null,null,null,null,null,null,null,null,null,null,null,null,null,null,null,null,null,null,null,null,null,null,null,null,null,null,null,null,null,null,null,null,null,null,null,null,null,null,null,null,null,null,null,null,null,null,null,null,null,null,null,null,null,null,null,null,null,null,null,null,null,null,null,null,null,null,null,null,null,null,null,null,null,null,null,null,null,null,null,null,null,null,null,null,null,null,null,null,null,null,null,null,null,null,null,null,null,null,null,null,null,null,null,null,null,{"$f":"K60","v":"0439-55-4910"}]
[null,"住所"]
[null,null,null,null,null,null,null,null,null,null,null,null,null,null,null,null,null,null,null,null,null,null,null,null,null,null,null,null,null,null,null,null,null,null,null,null,null,null,null,null,null,null,null,null,null,null,null,null,null,null,null,null,null,null,null,null,null,null,null,null,null,null,null,null,null,null,null,null,null,null,null,null,null,null,null,{"$f":"C65","v":0}]
[null,"宛先"]
[]
[]
["添付書類",null,null,null,null,null,null,null,null,null,null,null,null,null,null,null,null,null,null,null,null,null,null,null,null,null,null,null,null,null,null,null,null,null,null,null,null,null,null,null,null,null,null,null,null,null,null,null,null,null,null,null,null,null,null,null,null,null,null,null,null,null,null,null,null,null,null,null,null,null,null,null,null,null,null,{"$f":"C67","v":0}]
[]
[]
[]
[null,null,null,null,null,null,null,null,null,null,null,null,null,null,null,null,null,null,null,null,null,null,null,null,null,null,null,null,null,null,null,null,null,null,null,null,null,null,null,null,null,null,null,null,null,null,null,null,null,null,null,null,null,{"$f":"IF(HS75=TRUE,\"レ\",\"\")","v":"レ"}]
[null,null,null,null,null,null,null,null,null,null,null,null,null,null,null,null,null,null,null,null,null,null,null,null,null,null,null,null,null,null,null,null,null,null,null,null,null,null,null,null,null,null,null,null,null,null,null,null,null,null,null,null,null,null,null,null,null,null,null,null,null,null,null,null,null,null,null,null,null,null,null,null,null,null,null,null,null,null,null,null,null,null,null,null,null,null,null,null,null,null,null,null,null,null,null,null,null,null,null,null,null,null,null,null,null,null,null,null,null,null,null,null,null,null,null,null,null,null,null,null,null,null,null,null,null,null,null,null,null,null,null,null,null,null,null,null,null,null,null,null,null,null,null,null,null,null,null,null,null,null,null,null,null,null,null,null,null,null,null,null,null,null,null,null,null,null,null,null,null,null,null,null,null,null,null,null,null,null,null,null,null,null,null,null,null,null,null,null,null,null,null,null,null,null,null,null,null,null,null,null,null,null,null,null,null,null,null,null,null,null,null,null,null,null,null,null,null,null,null,null,null,null,null,null,null,null,true]
[null,null,null,null,null,null,null,null,null,null,null,null,null,null,null,null,null,null,null,null,null,null,null,null,null,null,null,null,null,null,null,null,null,null,null,null,null,null,null,null,null,null,null,null,null,null,null,null,null,null,null,null,null,{"$f":"IF(HS77=TRUE,\"レ\",\"\")","v":""}]
[null,null,null,null,null,null,null,null,null,null,null,null,null,null,null,null,null,null,null,null,null,null,null,null,null,null,null,null,null,null,null,null,null,null,null,null,null,null,null,null,null,null,null,null,null,null,null,null,null,null,null,null,null,null,null,null,null,null,null,null,null,null,null,null,null,null,null,null,null,null,null,null,null,null,null,null,null,null,null,null,null,null,null,null,null,null,null,null,null,null,null,null,null,null,null,null,null,null,null,null,null,null,null,null,null,null,null,null,null,null,null,null,null,null,null,null,null,null,null,null,null,null,null,null,null,null,null,null,null,null,null,null,null,null,null,null,null,null,null,null,null,null,null,null,null,null,null,null,null,null,null,null,null,null,null,null,null,null,null,null,null,null,null,null,null,null,null,null,null,null,null,null,null,null,null,null,null,null,null,null,null,null,null,null,null,null,null,null,null,null,null,null,null,null,null,null,null,null,null,null,null,null,null,null,null,null,null,null,null,null,null,null,null,null,null,null,null,null,null,null,null,null,null,null,null,null,false]
[null,null,null,null,null,null,null,null,null,null,null,null,null,null,null,null,null,null,null,null,null,null,null,null,null,null,null,null,null,null,null,null,null,null,null,null,null,null,null,null,null,null,null,null,null,null,null,null,null,null,null,null,null,{"$f":"IF(HS79=TRUE,\"レ\",\"\")","v":""}]
[null,null,null,null,null,null,null,null,null,null,null,null,null,null,null,null,null,null,null,null,null,null,null,null,null,null,null,null,null,null,null,null,null,null,null,null,null,null,null,null,null,null,null,null,null,null,null,null,null,null,null,null,null,null,null,null,null,null,null,null,null,null,null,null,null,null,null,null,null,null,null,null,null,null,null,null,null,null,null,null,null,null,null,null,null,null,null,null,null,null,null,null,null,null,null,null,null,null,null,null,null,null,null,null,null,null,null,null,null,null,null,null,null,null,null,null,null,null,null,null,null,null,null,null,null,null,null,null,null,null,null,null,null,null,null,null,null,null,null,null,null,null,null,null,null,null,null,null,null,null,null,null,null,null,null,null,null,null,null,null,null,null,null,null,null,null,null,null,null,null,null,null,null,null,null,null,null,null,null,null,null,null,null,null,null,null,null,null,null,null,null,null,null,null,null,null,null,null,null,null,null,null,null,null,null,null,null,null,null,null,null,null,null,null,null,null,null,null,null,null,null,null,null,null,null,null,false]
[]
[]
[null,null,null,null,null,null,null,null,null,null,null,null,null,null,null,null,null,null,null,null,null,null,null,null,null,null,null,null,null,null,null,null,null,null,null,null,null,null,null,null,null,null,null,null,null,null,null,null,null,null,null,null,null,{"$f":"IF(HS83=TRUE,\"レ\",\"\")","v":"レ"}]
["証明事項",null,null,null,null,null,null,null,null,null,null,null,null,null,null,null,null,null,null,null,null,null,null,null,null,null,null,null,null,null,null,null,null,null,null,null,null,null,null,null,null,null,null,null,null,null,null,null,null,null,null,null,null,null,null,null,null,null,null,null,null,null,null,null,null,null,null,null,null,null,null,null,null,null,null,null,null,null,null,null,null,null,null,null,null,null,null,null,null,null,null,null,null,null,null,null,null,null,null,null,null,null,null,null,null,null,null,null,null,null,null,null,null,null,null,null,null,null,null,null,null,null,null,null,null,null,null,null,null,null,null,null,null,null,null,null,null,null,null,null,null,null,null,null,null,null,null,null,null,null,null,null,null,null,null,null,null,null,null,null,null,null,null,null,null,null,null,null,null,null,null,null,null,null,null,null,null,null,null,null,null,null,null,null,null,null,null,null,null,null,null,null,null,null,null,null,null,null,null,null,null,null,null,null,null,null,null,null,null,null,null,null,null,null,null,null,null,null,null,null,null,null,null,null,null,null,true]
[]
[]
[null,null,null,null,null,null,null,null,null,null,null,null,null,null,null,null,null,null,null,null,null,null,null,null,null,null,null,null,null,null,null,null,null,null,null,null,null,null,null,null,null,null,null,null,null,null,null,null,null,null,null,null,null,{"$f":"IF(HS86=TRUE,\"レ\",\"\")","v":""},null,null,null,null,null,null,null,null,null,null,null,null,null,null,null,null,null,null,null,null,null,null,null,null,null,null,null,null,null,null,null,null,null,null,null,null,null,null,null,null,null,null,null,null,null,null,null,null,null,null,null,null,null,null,null,null,null,null,null,null,null,null,null,null,null,null,null,null,null,null,null,null,null,null,null,null,null,null,null,null,null,null,null,null,null,null,null,null,null,null,null,null,null,null,null,null,null,null,null,null,null,null,null,null,null,null,null,null,null,null,null,null,null,null,null,null,null,null,null,null,null,null,null,null,null,null,null,null,null,null,null,null,null,null,null,null,null,null,null,null,null,null,null,null,null,null,null,null,null,null,null,null,null,null,null,null,null,null,null,null,null,null,null,null,null,null,null,null,null,null,null,null,false]
[]
[]
[]
[null,null,null,null,null,null,null,null,null,null,null,null,null,null,null,null,null,null,null,null,null,null,null,null,null,null,null,null,null,null,null,null,null,null,null,null,null,null,null,null,null,null,null,null,null,null,null,null,null,null,null,null,null,{"$f":"IF(HS90=TRUE,\"レ\",\"\")","v":""},null,null,null,null,null,null,null,null,null,null,null,null,null,null,null,null,null,null,null,null,null,null,null,null,null,null,null,null,null,null,null,null,null,null,null,null,null,null,null,null,null,null,null,null,null,null,null,null,null,null,null,null,null,null,null,null,null,null,null,null,null,null,null,null,null,null,null,null,null,null,null,null,null,null,null,null,null,null,null,null,null,null,null,null,null,null,null,null,null,null,null,null,null,null,null,null,null,null,null,null,null,null,null,null,null,null,null,null,null,null,null,null,null,null,null,null,null,null,null,null,null,null,null,null,null,null,null,null,null,null,null,null,null,null,null,null,null,null,null,null,null,null,null,null,null,null,null,null,null,null,null,null,null,null,null,null,null,null,null,null,null,null,null,null,null,null,null,null,null,null,null,null,false]
[]
[]
[null,null,null,"（",null,null,null,null,null,null,null,null,"）とする記録がない。",null,null,null,null,null,null,null,null,null,null,null,null,null,null,null,null,null,null,null,null,null,null,null,null,null,null,null,null,null,null,null,null,null,null,null,null,null,null,null,null,{"$f":"IF(HS94=TRUE,\"レ\",\"\")","v":""},null,null,null,null,null,null,null,null,null,null,null,null,null,null,null,null,null,null,null,{"$f":"E93","v":0}]
[null,null,null,null,null,null,null,null,null,null,null,null,null,null,null,null,null,null,null,null,null,null,null,null,null,null,null,null,null,null,null,null,null,null,null,null,null,null,null,null,null,null,null,null,null,null,null,null,null,null,null,null,null,null,null,null,null,null,null,null,null,null,null,null,null,null,null,null,null,null,null,null,null,null,null,null,null,null,null,null,null,null,null,null,null,null,null,null,null,null,null,null,null,null,null,null,null,null,null,null,null,null,null,null,null,null,null,null,null,null,null,null,null,null,null,null,null,null,null,null,null,null,null,null,null,null,null,null,null,null,null,null,null,null,null,null,null,null,null,null,null,null,null,null,null,null,null,null,null,null,null,null,null,null,null,null,null,null,null,null,null,null,null,null,null,null,null,null,null,null,null,null,null,null,null,null,null,null,null,null,null,null,null,null,null,null,null,null,null,null,null,null,null,null,null,null,null,null,null,null,null,null,null,null,null,null,null,null,null,null,null,null,null,null,null,null,null,null,null,null,null,null,null,null,null,null,false]
[]
[]
["請求通数",null,null,1,"通"]
[null,null,null,null,null,null,null,null,null,null,null,null,null,null,null,null,null,null,null,null,null,null,null,null,null,null,null,null,null,null,null,null,null,null,null,null,null,null,null,null,null,null,null,null,null,null,null,{"$f":"IF(LEN(D97)<=1,\"\",MID(D97,LEN(D97)-1,1))","v":""},null,null,null,null,null,null,{"$f":"RIGHT(D97,1)","v":"1"},null,null,null,null,null,null,null,null,null,null,null,null,null,null,null,null,null,null,null,null,null,null,null,null,null,null,null,null,null,null,null,null,null,null,null,null,null,null,null,null,null,null,null,null,null,null,null,null,null,null,null,null,null,null,null,null,null,null,null,null,null,null,null,{"$f":"MID(D42,1,1)","v":""},null,null,null,null,null,null,{"$f":"MID(D42,2,1)","v":""},null,null,null,null,null,null,{"$f":"MID(D42,3,1)","v":""},null,null,null,null,null,null,{"$f":"MID(D42,4,1)","v":""},null,null,null,null,null,null,{"$f":"MID(D42,5,1)","v":""},null,null,null,null,null,null,null,{"$f":"MID(D42,6,1)","v":""},null,null,null,null,null,null,{"$f":"MID(D42,7,1)","v":""},null,null,null,null,null,null,{"$f":"MID(D42,8,1)","v":""},null,null,null,null,null,null,{"$f":"MID(D42,9,1)","v":""},null,null,null,null,null,null,null,{"$f":"MID(D42,10,1)","v":""},null,null,null,null,null,null,{"$f":"MID(D42,11,1)","v":""},null,null,null,null,null,null,{"$f":"MID(D42,12,1)","v":""},null,null,null,null,null,null,{"$f":"MID(D42,13,1)","v":""}]
[]
[]
[]
[]
["本籍"]
[]
[]
[]
[]
[]
[]
[null,null,null,null,null,null,null,null,null,null,null,null,null,null,null,null,null,null,null,null,null,null,null,null,null,null,null,null,null,null,null,null,null,null,null,null,null,null,null,null,null,null,null,null,null,null,null,null,null,null,null,null,null,null,null,null,null,null,null,null,null,null,null,null,null,{"$f":"D44","v":0}]
[]
[]
[]
[]
[]
[null,null,null,null,null,null,null,null,null,null,null,null,null,null,null,null,null,null,null,null,null,null,null,null,null,null,null,null,null,null,null,null,null,null,null,null,null,null,null,null,null,null,null,null,null,null,null,null,null,null,null,null,null,null,null,null,null,null,null,null,null,null,null,null,null,null,null,null,null,null,null,null,null,null,null,null,null,null,null,null,null,null,null,null,null,null,null,null,null,null,null,null,null,null,null,null,null,null,null,null,null,null,null,null,null,null,null,null,null,null,null,null,null,null,{"$f":"IF(LEN(F51)<=3,\"\",MID(F51,LEN(F51)-3,1))","v":""},null,null,null,null,null,null,null,{"$f":"IF(LEN(F51)<=2,\"\",MID(F51,LEN(F51)-2,1))","v":""},null,null,null,null,null,null,null,{"$f":"IF(LEN(F51)<=1,\"\",MID(F51,LEN(F51)-1,1))","v":"3"},null,null,null,null,null,null,null,null,{"$f":"RIGHT(F51,1)","v":"3"},null,null,null,null,null,null,null,null,null,null,null,null,null,null,null,null,{"$f":"IF(LEN(H51)<=1,\"\",MID(H51,LEN(H51)-1,1))","v":""},null,null,null,null,null,null,null,{"$f":"RIGHT(H51,1)","v":"1"},null,null,null,null,null,null,null,null,null,null,null,null,null,null,null,{"$f":"IF(LEN(J51)<=1,\"\",MID(J51,LEN(J51)-1,1))","v":""},null,null,null,null,null,null,null,{"$f":"RIGHT(J51,1)","v":"0"},null,null,null,null,null,null,null,null,null,null,null,null,null,null,null,null,null,null,null,null,null,null,null,null,null,null,null,null,null,null,null,null,null,null,null,null,null,"明治"]
[null,null,null,null,null,null,null,null,null,null,null,null,null,null,null,null,null,null,null,null,null,null,null,null,null,null,null,null,null,null,null,null,null,null,null,null,null,null,null,null,null,null,null,null,null,null,null,null,null,null,null,null,null,null,null,null,null,null,null,null,null,null,null,null,null,null,null,null,null,{"$f":"IF(D51=HS116,\"レ\",\"\")","v":"レ"},null,null,null,null,null,null,null,{"$f":"IF(D51=HS117,\"レ\",\"\")","v":""},null,null,null,null,null,null,null,{"$f":"IF(D51=HS118,\"レ\",\"\")","v":""},null,null,null,null,null,null,null,{"$f":"IF(D51=HS119,\"レ\",\"\")","v":""},null,null,null,null,null,null,null,null,null,null,null,null,{"$f":"IF(D51=HS120,\"レ\",\"\")","v":""},null,null,null,null,null,null,null,null,null,null,null,null,null,null,null,null,null,null,null,null,null,null,null,null,null,null,null,null,null,null,null,null,null,null,null,null,null,null,null,null,null,null,null,null,null,null,null,null,null,null,null,null,null,null,null,null,null,null,null,null,null,null,null,null,null,null,null,null,null,null,null,null,null,null,null,null,null,null,null,null,null,null,null,null,null,null,null,null,null,null,null,null,null,null,null,null,null,null,null,null,null,null,null,null,null,null,null,null,null,null,null,null,null,null,null,null,null,null,null,"大正"]
[null,null,null,null,null,null,null,null,null,null,null,null,null,null,null,null,null,null,null,null,null,null,null,null,null,null,null,null,null,null,null,null,null,null,null,null,null,null,null,null,null,null,null,null,null,null,null,null,null,null,null,null,null,null,null,null,null,null,null,null,null,null,null,null,null,null,null,null,null,null,null,null,null,null,null,null,null,null,null,null,null,null,null,null,null,null,null,null,null,null,null,null,null,null,null,null,null,null,null,null,null,null,null,null,null,null,null,null,null,null,null,null,null,null,null,null,null,null,null,null,null,null,null,null,null,null,null,null,null,null,null,null,null,null,null,null,null,null,null,null,null,null,null,null,null,null,null,null,null,null,null,null,null,null,null,null,null,null,null,null,null,null,null,null,null,null,null,null,null,null,null,null,null,null,null,null,null,null,null,null,null,null,null,null,null,null,null,null,null,null,null,null,null,null,null,null,null,null,null,null,null,null,null,null,null,null,null,null,null,null,null,null,null,null,null,null,null,null,null,null,null,null,null,null,null,null,"昭和"]
[null,null,null,null,null,null,null,null,null,null,null,null,null,null,null,null,null,null,null,null,null,null,null,null,null,null,null,null,null,null,null,null,null,null,null,null,null,null,null,null,null,null,null,null,null,null,null,null,null,null,null,null,null,null,null,null,null,null,null,null,null,null,null,null,null,null,null,null,null,null,null,null,null,null,null,null,null,null,null,null,null,null,null,null,null,null,null,null,null,null,null,null,null,null,null,null,null,null,null,null,null,null,null,null,null,null,null,null,null,null,null,null,null,null,null,null,null,null,null,null,null,null,null,null,null,null,null,null,null,null,null,null,null,null,null,null,null,null,null,null,null,null,null,null,null,null,null,null,null,null,null,null,null,null,null,null,null,null,null,null,null,null,null,null,null,null,null,null,null,null,null,null,null,null,null,null,null,null,null,null,null,null,null,null,null,null,null,null,null,null,null,null,null,null,null,null,null,null,null,null,null,null,null,null,null,null,null,null,null,null,null,null,null,null,null,null,null,null,null,null,null,null,null,null,null,null,"平成"]
[null,null,null,null,null,null,null,null,null,null,null,null,null,null,null,null,null,null,null,null,null,null,null,null,null,null,null,null,null,null,null,null,null,null,null,null,null,null,null,null,null,null,null,null,null,null,null,null,null,null,null,null,null,null,null,null,null,null,null,null,null,null,null,null,null,null,null,null,null,null,null,null,null,null,null,null,null,null,null,null,null,null,null,null,null,null,null,null,null,null,null,null,null,null,null,null,null,null,null,null,null,null,null,null,null,null,null,null,null,null,null,null,null,null,null,null,null,null,null,null,null,null,null,null,null,null,null,null,null,null,null,null,null,null,null,null,null,null,null,null,null,null,null,null,null,null,null,null,null,null,null,null,null,null,null,null,null,null,null,null,null,null,null,null,null,null,null,null,null,null,null,null,null,null,null,null,null,null,null,null,null,null,null,null,null,null,null,null,null,null,null,null,null,null,null,null,null,null,null,null,null,null,null,null,null,null,null,null,null,null,null,null,null,null,null,null,null,null,null,null,null,null,null,null,null,null,"西暦"]
[]
[]
[null,null,null,null,null,null,null,null,null,null,null,null,null,null,null,null,null,null,null,null,null,null,null,null,null,null,null,null,null,null,null,null,null,null,null,null,null,null,null,null,null,null,null,null,null,null,null,null,null,null,null,null,null,null,null,null,null,null,null,null,null,null,null,null,{"$f":"MID(C40,1,1)","v":"0"},null,null,null,null,null,null,null,null,null,null,{"$f":"MID(C40,2,1)","v":""},null,null,null,null,null,null,null,null,null,{"$f":"MID(C40,3,1)","v":""},null,null,null,null,null,null,null,null,null,{"$f":"MID(C40,4,1)","v":""},null,null,null,null,null,null,null,null,null,null,{"$f":"F40","v":0}]
[]
[]
[]
[]
[]
[]
[]
[null,null,null,null,null,null,null,null,null,null,null,null,null,null,null,null,null,null,null,null,null,null,null,null,null,null,null,null,null,null,null,null,null,null,null,null,null,null,null,null,null,null,null,null,null,null,null,null,null,null,null,null,null,null,null,null,null,null,null,null,null,null,null,null,null,{"$f":"K40","v":0}]
[]
[]
[]
[]
[]
[]
[null,null,null,null,null,null,null,null,null,null,null,null,null,null,null,null,null,null,null,null,null,null,null,null,null,null,null,null,null,null,null,null,null,null,null,null,null,null,null,null,null,null,null,null,null,null,null,null,null,null,null,null,null,null,null,null,null,null,null,null,null,null,null,null,{"$f":"MID(C103,1,1)","v":""},null,null,null,null,null,null,null,null,null,null,{"$f":"MID(C103,2,1)","v":""},null,null,null,null,null,null,null,null,null,{"$f":"MID(C103,3,1)","v":""},null,null,null,null,null,null,null,null,null,{"$f":"MID(C103,4,1)","v":""},null,null,null,null,null,null,null,null,null,null,{"$f":"F103","v":0}]
[]
[]
[]
[]
[]
[]
[null,null,null,null,null,null,null,null,null,null,null,null,null,null,null,null,null,null,null,null,null,null,null,null,null,null,null,null,null,null,null,null,null,null,null,null,null,null,null,null,null,null,null,null,null,null,null,{"$f":"IF(HS147=TRUE,\"レ\",\"\")","v":""},null,null,null,null,null,null,null,null,null,null,null,null,null,null,null,null,null,{"$f":"K103","v":0}]
[]
[null,null,null,null,null,null,null,null,null,null,null,null,null,null,null,null,null,null,null,null,null,null,null,null,null,null,null,null,null,null,null,null,null,null,null,null,null,null,null,null,null,null,null,null,null,null,null,null,null,null,null,null,null,null,null,null,null,null,null,null,null,null,null,null,null,null,null,null,null,null,null,null,null,null,null,null,null,null,null,null,null,null,null,null,null,null,null,null,null,null,null,null,null,null,null,null,null,null,null,null,null,null,null,null,null,null,null,null,null,null,null,null,null,null,null,null,null,null,null,null,null,null,null,null,null,null,null,null,null,null,null,null,null,null,null,null,null,null,null,null,null,null,null,null,null,null,null,null,null,null,null,null,null,null,null,null,null,null,null,null,null,null,null,null,null,null,null,null,null,null,null,null,null,null,null,null,null,null,null,null,null,null,null,null,null,null,null,null,null,null,null,null,null,null,null,null,null,null,null,null,null,null,null,null,null,null,null,null,null,null,null,null,null,null,null,null,null,null,null,null,null,null,null,null,null,null,false]
[]
[]
[]
[]
[]
[]
[]
[]
[]
[]
[]
[]
[]
[]
[]
[]
[]
[]
[]
[]
[]
[]
[]
[]
[]
[]
[]
[]
[]
[]
[]
[]
[]
[]
[]
[null,null,null,null,null,null,null,null,null,null,null,null,null,null,null,null,null,null,null,null,null,"委　　任　　状"]
[]
[]
[]
[]
[]
[]
[]
[null,null,null,null,null,null,null,null,null,null,null,null,null,null,null,null,null,null,null,null,null,null,null,null,null,null,null,null,null,null,null,null,null,null,null,null,null,null,null,null,null,null,null,null,null,null,null,null,null,null,null,null,null,null,null,null,null,null,"（氏名）",null,null,null,null,null,null,null,null,null,null,null,null,null,null,null,null,null,null,null,{"$f":"D60","v":"四本　平一"}]
[]
[null,null,null,null,null,null,null,null,null,null,null,null,null,null,null,null,null,null,null,null,null,null,null,null,null,null,null,null,null,null,null,null,null,null,null,null,null,null,null,null,null,null,null,null,null,null,null,null,null,null,null,null,null,null,null,null,null,null,"（住所）",null,null,null,null,null,null,null,null,null,null,null,null,null,null,null,null,null,null,null,{"$f":"C56","v":"千葉県君津市杢師4丁目19番6号"}]
[]
[null,null,null,null,null,null,null,null,null,null,null,null,null,null,null,null,null,null,null,null,null,null,null,null,null,null,null,null,null,null,null,null,null,null,null,null,null,null,null,null,null,null,null,null,null,null,null,null,null,null,null,null,null,null,null,null,null,null,"（電話番号）",null,null,null,null,null,null,null,null,null,null,null,null,null,null,null,null,null,null,null,null,{"$f":"K60","v":"0439-55-4910"}]
[]
[]
[]
[]
[]
[]
[]
[]
[null,null,null,null,null,null,null,null,null,null,null,null,null,null,null,null,null,null,null,null,null,"上記の者を代理人と定め、次の権限を委任する。"]
[]
[]
[]
[]
[]
[null,null,null,null,null,null,null,null,null,null,null,null,null,null,null,null,null,null,null,null,null,"1.登記されていないことの証明書の申請及び受領に関する一切の権限。"]
[]
[null,null,null,null,null,null,null,null,null,null,null,null,null,null,null,null,null,null,null,null,null,null,null,null,null,null,null,null,null,null,null,null,null,null,null,null,null,null,null,null,null,null,null,null,null,null,null,null,null,null,null,null,null,null,null,null,null,null,null,null,null,null,null,null,null,null,null,null,null,null,null,null,null,null,null,null,null,null,null,null,null,null,null,null,null,null,null,null,null,null,null,null,null,null,null,null,null,null,null,null,null,null,null,null,null,null,null,null,null,null,null,null,null,null,null,null,null,null,null,null,null,null,null,null,null,null,null,null,null,null,null,null,null,null,null,null,null,null,null,null,null,null,null,null,null,null,null,null,null,null,null,null,null,null,null,null,null,null,null,null,null,null,null,null,null,null,null,null,null,null,null,null,null,null,null,null,null,null,null,null,null,null,null,null,null,null,null,null,null,null,null,null,null,null,null,null,null,null,null,null,null,null,null,"以上"]
[]
[]
[]
[]
[]
[null,null,null,null,null,null,null,null,null,null,null,null,null,null,null,null,null,null,null,null,null,null,null,null,null,null,null,null,null,null,null,null,null,null,null,null,null,null,null,null,null,"平成",null,null,null,null,null,null,null,null,null,null,null,{"$f":"D34","v":27},null,null,null,null,null,null,null,null,null,null,null,"年",null,null,null,null,null,null,null,{"$f":"F34","v":0},null,null,null,null,null,null,null,null,null,null,null,"月",null,null,null,null,null,null,null,{"$f":"H34","v":0},null,null,null,null,null,null,null,null,null,null,null,"日"]
[]
[]
[]
[]
[]
[]
[null,null,null,null,null,null,null,null,null,null,null,null,null,null,null,null,null,null,null,null,null,null,null,null,null,null,null,null,null,null,null,null,null,null,null,null,null,null,null,null,null,null,null,null,null,null,null,null,null,null,null,null,null,null,null,null,null,null,null,null,null,null,null,null,null,null,null,null,null,null,null,null,null,null,null,null,null,null,null,null,null,null,null,null,null,null,null,null,null,null,null,null,null,null,null,null,null,null,null,null,null,null,null,null,null,null,null,null,null,"（住所）",null,null,null,null,null,null,null,null,null,null,null,null,null,null,{"$f":"C40&F40&K40","v":"000"}]
[]
[]
[null,null,null,null,null,null,null,null,null,null,null,null,null,null,null,null,null,null,null,null,null,null,null,null,null,null,null,null,null,null,null,null,null,null,null,null,null,null,null,null,null,null,null,null,null,null,null,null,null,null,null,null,null,null,null,null,null,null,null,null,null,null,null,null,null,null,null,null,null,null,null,null,null,null,null,null,null,null,null,null,null,null,null,null,null,null,null,null,null,null,null,null,null,null,null,null,null,null,null,null,null,null,null,null,null,null,null,null,null,"（氏名）",null,null,null,null,null,null,null,null,null,null,null,null,null,null,{"$f":"D44","v":0},null,null,null,null,null,null,null,null,null,null,null,null,null,null,null,null,null,null,null,null,null,null,null,null,null,null,null,null,null,null,null,null,null,null,null,null,null,null,null,null,null,null,null,null,null,null,null,null,null,null,null,null,null,null,null,null,null,null,null,null,null,null,null,null,null,null,null,null,null,null,null,null,null,null,null,null,null,null,"㊞"]

{"sheet":"都道府県・知事一覧など","index":20,"n_rows":1957,"n_cols":7,"rows_kept":1957,"cut":false,"hidden":false,"merged":[]}
["全国知事リスト",null,null,null,"全国市町村コード表",null,"最終修正日"]
[null,null,null,null,null,null,"2013-04-23"]
["北海道開発局長",null,null,null,"北海道","札幌市中央区","01101"]
["東北地方整備局長",null,null,null,"北海道","札幌市北区","01102"]
["関東地方整備局長",null,null,null,"北海道","札幌市東区","01103"]
["北陸地方整備局長",null,null,null,"北海道","札幌市白石区","01104"]
["中部地方整備局長",null,null,null,"北海道","札幌市豊平区","01105"]
["近畿地方整備局長",null,null,null,"北海道","札幌市南区","01106"]
["中国地方整備局長",null,null,null,"北海道","札幌市西区","01107"]
["四国地方整備局長",null,null,null,"北海道","札幌市厚別区","01108"]
["九州地方整備局長",null,null,null,"北海道","札幌市手稲区","01109"]
["沖縄総合事務局長",null,null,null,"北海道","札幌市清田区","01110"]
["北海道知事",null,"01",null,"北海道","函館市","01202"]
["青森県知事",null,"02",null,"北海道","小樽市","01203"]
["岩手県知事",null,"03",null,"北海道","旭川市","01204"]
["宮城県知事",null,"04",null,"北海道","室蘭市","01205"]
["秋田県知事",null,"05",null,"北海道","釧路市","01206"]
["山形県知事",null,"06",null,"北海道","帯広市","01207"]
["福島県知事",null,"07",null,"北海道","北見市","01208"]
["茨城県知事",null,"08",null,"北海道","夕張市","01209"]
["栃木県知事",null,"09",null,"北海道","岩見沢市","01210"]
["群馬県知事",null,"10",null,"北海道","網走市","01211"]
["埼玉県知事",null,"11",null,"北海道","留萌市","01212"]
["千葉県知事",null,"12",null,"北海道","苫小牧市","01213"]
["東京都知事",null,"13",null,"北海道","稚内市","01214"]
["神奈川県知事",null,"14",null,"北海道","美唄市","01215"]
["新潟県知事",null,"15",null,"北海道","芦別市","01216"]
["富山県知事",null,"16",null,"北海道","江別市","01217"]
["石川県知事",null,"17",null,"北海道","赤平市","01218"]
["福井県知事",null,"18",null,"北海道","紋別市","01219"]
["山梨県知事",null,"19",null,"北海道","士別市","01220"]
["長野県知事",null,"20",null,"北海道","名寄市","01221"]
["岐阜県知事",null,"21",null,"北海道","三笠市","01222"]
["静岡県知事",null,"22",null,"北海道","根室市","01223"]
["愛知県知事",null,"23",null,"北海道","千歳市","01224"]
["三重県知事",null,"24",null,"北海道","滝川市","01225"]
["滋賀県知事",null,"25",null,"北海道","砂川市","01226"]
["京都府知事",null,"26",null,"北海道","歌志内市","01227"]
["大阪府知事",null,"27",null,"北海道","深川市","01228"]
["兵庫県知事",null,"28",null,"北海道","富良野市","01229"]
["奈良県知事",null,"29",null,"北海道","登別市","01230"]
["和歌山県知事",null,"30",null,"北海道","恵庭市","01231"]
["鳥取県知事",null,"31",null,"北海道","伊達市","01233"]
["島根県知事",null,"32",null,"北海道","北広島市","01234"]
["岡山県知事",null,"33",null,"北海道","石狩市","01235"]
["広島県知事",null,"34",null,"北海道","北斗市","01236"]
["山口県知事",null,"35",null,"北海道","石狩郡当別町","01303"]
["徳島県知事",null,"36",null,"北海道","石狩郡新篠津村","01304"]
["香川県知事",null,"37",null,"北海道","厚田郡厚田村","01305"]
["愛媛県知事",null,"38",null,"北海道","浜益郡浜益村","01306"]
["高知県知事",null,"39",null,"北海道","松前郡松前町","01331"]
["福岡県知事",null,"40",null,"北海道","松前郡福島町","01332"]
["佐賀県知事",null,"41",null,"北海道","上磯郡知内町","01333"]
["長崎県知事",null,"42",null,"北海道","上磯郡木古内町","01334"]
["熊本県知事",null,"43",null,"北海道","亀田郡七飯町","01337"]
["大分県知事",null,"44",null,"北海道","茅部郡鹿部町","01343"]
["宮崎県知事",null,"45",null,"北海道","茅部郡森町","01345"]
["鹿児島県知事",null,"46",null,"北海道","山越郡八雲町","01346"]
["沖縄県知事",null,"47",null,"北海道","山越郡長万部町","01347"]
["国土交通大臣",null,"00",null,"北海道","桧山郡江差町","01361"]
[null,null,null,null,"北海道","桧山郡上ノ国町","01362"]
[null,null,null,null,"北海道","桧山郡厚沢部町","01363"]
[null,null,null,null,"北海道","爾志郡乙部町","01364"]
[null,null,null,null,"北海道","爾志郡熊石町","01365"]
[null,null,null,null,"北海道","奥尻郡奥尻町","01367"]
[null,null,null,null,"北海道","瀬棚郡今金町","01370"]
[null,null,null,null,"北海道","久遠郡せたな町","01371"]
[null,null,null,null,"北海道","島牧郡島牧村","01391"]
[null,null,null,null,"北海道","寿都郡寿都町","01392"]
[null,null,null,null,"北海道","寿都郡黒松内町","01393"]
[null,null,null,null,"北海道","磯谷郡蘭越町","01394"]
[null,null,null,null,"北海道","虻田郡ニセコ町","01395"]
[null,null,null,null,"北海道","虻田郡真狩村","01396"]
[null,null,null,null,"北海道","虻田郡留寿都村","01397"]
[null,null,null,null,"北海道","虻田郡喜茂別町","01398"]
[null,null,null,null,"北海道","虻田郡京極町","01399"]
[null,null,null,null,"北海道","虻田郡倶知安町","01400"]
[null,null,null,null,"北海道","岩内郡共和町","01401"]
[null,null,null,null,"北海道","岩内郡岩内町","01402"]
[null,null,null,null,"北海道","古宇郡泊村","01403"]
[null,null,null,null,"北海道","古宇郡神恵内村","01404"]
[null,null,null,null,"北海道","積丹郡積丹町","01405"]
[null,null,null,null,"北海道","古平郡古平町","01406"]
[null,null,null,null,"北海道","余市郡仁木町","01407"]
[null,null,null,null,"北海道","余市郡余市町","01408"]
[null,null,null,null,"北海道","余市郡赤井川村","01409"]
[null,null,null,null,"北海道","空知郡南幌町","01423"]
[null,null,null,null,"北海道","空知郡奈井江町","01424"]
[null,null,null,null,"北海道","空知郡上砂川町","01425"]
[null,null,null,null,"北海道","夕張郡由仁町","01427"]
[null,null,null,null,"北海道","夕張郡長沼町","01428"]
[null,null,null,null,"北海道","夕張郡栗山町","01429"]
[null,null,null,null,"北海道","樺戸郡月形町","01430"]
[null,null,null,null,"北海道","樺戸郡浦臼町","01431"]
[null,null,null,null,"北海道","樺戸郡新十津川町","01432"]
[null,null,null,null,"北海道","雨竜郡妹背牛町","01433"]
[null,null,null,null,"北海道","雨竜郡秩父別町","01434"]
[null,null,null,null,"北海道","雨竜郡雨竜町","01436"]
[null,null,null,null,"北海道","雨竜郡北竜町","01437"]
[null,null,null,null,"北海道","雨竜郡沼田町","01438"]
[null,null,null,null,"北海道","雨竜郡幌加内町","01439"]
[null,null,null,null,"北海道","上川郡鷹栖町","01452"]
[null,null,null,null,"北海道","上川郡東神楽町","01453"]
[null,null,null,null,"北海道","上川郡当麻町","01454"]
[null,null,null,null,"北海道","上川郡比布町","01455"]
[null,null,null,null,"北海道","上川郡愛別町","01456"]
[null,null,null,null,"北海道","上川郡上川町","01457"]
[null,null,null,null,"北海道","上川郡東川町","01458"]
[null,null,null,null,"北海道","上川郡美瑛町","01459"]
[null,null,null,null,"北海道","空知郡上富良野町","01460"]
[null,null,null,null,"北海道","空知郡中富良野町","01461"]
[null,null,null,null,"北海道","空知郡南富良野町","01462"]
[null,null,null,null,"北海道","勇払郡占冠村","01463"]
[null,null,null,null,"北海道","上川郡和寒町","01464"]
[null,null,null,null,"北海道","上川郡剣淵町","01465"]
[null,null,null,null,"北海道","上川郡下川町","01468"]
[null,null,null,null,"北海道","中川郡美深町","01469"]
[null,null,null,null,"北海道","中川郡音威子府村","01470"]
[null,null,null,null,"北海道","中川郡中川町","01471"]
[null,null,null,null,"北海道","増毛郡増毛町","01481"]
[null,null,null,null,"北海道","留萌郡小平町","01482"]
[null,null,null,null,"北海道","苫前郡苫前町","01483"]
[null,null,null,null,"北海道","苫前郡羽幌町","01484"]
[null,null,null,null,"北海道","苫前郡初山別村","01485"]
[null,null,null,null,"北海道","天塩郡遠別町","01486"]
[null,null,null,null,"北海道","天塩郡天塩町","01487"]
[null,null,null,null,"北海道","天塩郡幌延町","01488"]
[null,null,null,null,"北海道","宗谷郡猿払村","01511"]
[null,null,null,null,"北海道","枝幸郡浜頓別町","01512"]
[null,null,null,null,"北海道","枝幸郡中頓別町","01513"]
[null,null,null,null,"北海道","枝幸郡歌登町","01515"]
[null,null,null,null,"北海道","天塩郡豊富町","01516"]
[null,null,null,null,"北海道","礼文郡礼文町","01517"]
[null,null,null,null,"北海道","利尻郡利尻町","01518"]
[null,null,null,null,"北海道","利尻郡利尻富士町","01519"]
[null,null,null,null,"北海道","網走郡美幌町","01543"]
[null,null,null,null,"北海道","網走郡津別町","01544"]
[null,null,null,null,"北海道","斜里郡斜里町","01545"]
[null,null,null,null,"北海道","斜里郡清里町","01546"]
[null,null,null,null,"北海道","斜里郡小清水町","01547"]
[null,null,null,null,"北海道","常呂郡訓子府町","01549"]
[null,null,null,null,"北海道","常呂郡置戸町","01550"]
[null,null,null,null,"北海道","常呂郡佐呂間町","01552"]
[null,null,null,null,"北海道","紋別郡遠軽町","01555"]
[null,null,null,null,"北海道","紋別郡湧別町","01559"]
[null,null,null,null,"北海道","紋別郡滝上町","01560"]
[null,null,null,null,"北海道","紋別郡興部町","01561"]
[null,null,null,null,"北海道","紋別郡西興部村","01562"]
[null,null,null,null,"北海道","紋別郡雄武町","01563"]
[null,null,null,null,"北海道","網走郡大空町","01564"]
[null,null,null,null,"北海道","虻田郡豊浦町","01571"]
[null,null,null,null,"北海道","有珠郡壮瞥町","01575"]
[null,null,null,null,"北海道","白老郡白老町","01578"]
[null,null,null,null,"北海道","勇払郡厚真町","01581"]
[null,null,null,null,"北海道","虻田郡洞爺湖町","01584"]
[null,null,null,null,"北海道","勇払郡安平町","01585"]
[null,null,null,null,"北海道","勇払郡むかわ町","01586"]
[null,null,null,null,"北海道","沙流郡日高町","01601"]
[null,null,null,null,"北海道","沙流郡平取町","01602"]
[null,null,null,null,"北海道","新冠郡新冠町","01604"]
[null,null,null,null,"北海道","浦河郡浦河町","01607"]
[null,null,null,null,"北海道","様似郡様似町","01608"]
[null,null,null,null,"北海道","幌泉郡えりも町","01609"]
[null,null,null,null,"北海道","日高郡新ひだか町","01610"]
[null,null,null,null,"北海道","河東郡音更町","01631"]
[null,null,null,null,"北海道","河東郡士幌町","01632"]
[null,null,null,null,"北海道","河東郡上士幌町","01633"]
[null,null,null,null,"北海道","河東郡鹿追町","01634"]
[null,null,null,null,"北海道","上川郡新得町","01635"]
[null,null,null,null,"北海道","上川郡清水町","01636"]
[null,null,null,null,"北海道","河西郡芽室町","01637"]
[null,null,null,null,"北海道","河西郡中札内村","01638"]
[null,null,null,null,"北海道","河西郡更別村","01639"]
[null,null,null,null,"北海道","広尾郡大樹町","01641"]
[null,null,null,null,"北海道","広尾郡広尾町","01642"]
[null,null,null,null,"北海道","中川郡幕別町","01643"]
[null,null,null,null,"北海道","中川郡池田町","01644"]
[null,null,null,null,"北海道","中川郡豊頃町","01645"]
[null,null,null,null,"北海道","中川郡本別町","01646"]
[null,null,null,null,"北海道","足寄郡足寄町","01647"]
[null,null,null,null,"北海道","足寄郡陸別町","01648"]
[null,null,null,null,"北海道","十勝郡浦幌町","01649"]
[null,null,null,null,"北海道","釧路郡釧路町","01661"]
[null,null,null,null,"北海道","厚岸郡厚岸町","01662"]
[null,null,null,null,"北海道","厚岸郡浜中町","01663"]
[null,null,null,null,"北海道","川上郡標茶町","01664"]
[null,null,null,null,"北海道","川上郡弟子屈町","01665"]
[null,null,null,null,"北海道","阿寒郡阿寒町","01666"]
[null,null,null,null,"北海道","阿寒郡鶴居村","01667"]
[null,null,null,null,"北海道","白糠郡白糠町","01668"]
[null,null,null,null,"北海道","白糠郡音別町","01669"]
[null,null,null,null,"北海道","野付郡別海町","01691"]
[null,null,null,null,"北海道","標津郡中標津町","01692"]
[null,null,null,null,"北海道","標津郡標津町","01693"]
[null,null,null,null,"北海道","目梨郡羅臼町","01694"]
[null,null,null,null,"青森県","青森市","02201"]
[null,null,null,null,"青森県","弘前市","02202"]
[null,null,null,null,"青森県","八戸市","02203"]
[null,null,null,null,"青森県","黒石市","02204"]
[null,null,null,null,"青森県","五所川原市","02205"]
[null,null,null,null,"青森県","十和田市","02206"]
[null,null,null,null,"青森県","三沢市","02207"]
[null,null,null,null,"青森県","むつ市","02208"]
[null,null,null,null,"青森県","つがる市","02209"]
[null,null,null,null,"青森県","平川市","02210"]
[null,null,null,null,"青森県","東津軽郡平内町","02301"]
[null,null,null,null,"青森県","東津軽郡今別町","02303"]
[null,null,null,null,"青森県","東津軽郡蓬田村","02304"]
[null,null,null,null,"青森県","東津軽郡外ヶ浜町","02307"]
[null,null,null,null,"青森県","西津軽郡鯵ヶ沢町","02321"]
[null,null,null,null,"青森県","西津軽郡深浦町","02323"]
[null,null,null,null,"青森県","中津軽郡西目屋村","02343"]
[null,null,null,null,"青森県","南津軽郡藤崎町","02361"]
[null,null,null,null,"青森県","南津軽郡大鰐町","02362"]
[null,null,null,null,"青森県","南津軽郡田舎館村","02367"]
[null,null,null,null,"青森県","北津軽郡板柳町","02381"]
[null,null,null,null,"青森県","北津軽郡鶴田町","02384"]
[null,null,null,null,"青森県","北津軽郡中泊町","02387"]
[null,null,null,null,"青森県","上北郡野辺地町","02401"]
[null,null,null,null,"青森県","上北郡七戸町","02402"]
[null,null,null,null,"青森県","上北郡六戸町","02405"]
[null,null,null,null,"青森県","上北郡横浜町","02406"]
[null,null,null,null,"青森県","上北郡東北町","02408"]
[null,null,null,null,"青森県","上北郡六ヶ所村","02411"]
[null,null,null,null,"青森県","上北郡おいらせ町","02412"]
[null,null,null,null,"青森県","下北郡大間町","02423"]
[null,null,null,null,"青森県","下北郡東通村","02424"]
[null,null,null,null,"青森県","下北郡風間浦村","02425"]
[null,null,null,null,"青森県","下北郡佐井村","02426"]
[null,null,null,null,"青森県","三戸郡三戸町","02441"]
[null,null,null,null,"青森県","三戸郡五戸町","02442"]
[null,null,null,null,"青森県","三戸郡田子町","02443"]
[null,null,null,null,"青森県","三戸郡南部町","02445"]
[null,null,null,null,"青森県","三戸郡階上町","02446"]
[null,null,null,null,"青森県","三戸郡新郷村","02450"]
[null,null,null,null,"岩手県","盛岡市","03201"]
[null,null,null,null,"岩手県","宮古市","03202"]
[null,null,null,null,"岩手県","大船渡市","03203"]
[null,null,null,null,"岩手県","花巻市","03205"]
[null,null,null,null,"岩手県","北上市","03206"]
[null,null,null,null,"岩手県","久慈市","03207"]
[null,null,null,null,"岩手県","遠野市","03208"]
[null,null,null,null,"岩手県","一関市","03209"]
[null,null,null,null,"岩手県","陸前高田市","03210"]
[null,null,null,null,"岩手県","釜石市","03211"]
[null,null,null,null,"岩手県","二戸市","03213"]
[null,null,null,null,"岩手県","八幡平市","03214"]
[null,null,null,null,"岩手県","奥州市","03215"]
[null,null,null,null,"岩手県","岩手郡雫石町","03301"]
[null,null,null,null,"岩手県","岩手郡葛巻町","03302"]
[null,null,null,null,"岩手県","岩手郡岩手町","03303"]
[null,null,null,null,"岩手県","岩手郡滝沢村","03305"]
[null,null,null,null,"岩手県","紫波郡紫波町","03321"]
[null,null,null,null,"岩手県","紫波郡矢巾町","03322"]
[null,null,null,null,"岩手県","和賀郡西和賀町","03365"]
[null,null,null,null,"岩手県","胆沢郡金ヶ崎町","03381"]
[null,null,null,null,"岩手県","西磐井郡平泉町","03402"]
[null,null,null,null,"岩手県","東磐井郡藤沢町","03422"]
[null,null,null,null,"岩手県","気仙郡住田町","03441"]
[null,null,null,null,"岩手県","上閉伊郡大槌町","03461"]
[null,null,null,null,"岩手県","下閉伊郡山田町","03482"]
[null,null,null,null,"岩手県","下閉伊郡岩泉町","03483"]
[null,null,null,null,"岩手県","下閉伊郡田野畑村","03484"]
[null,null,null,null,"岩手県","下閉伊郡普代村","03485"]
[null,null,null,null,"岩手県","九戸郡軽米町","03501"]
[null,null,null,null,"岩手県","九戸郡野田村","03503"]
[null,null,null,null,"岩手県","九戸郡九戸村","03506"]
[null,null,null,null,"岩手県","九戸郡洋野町","03507"]
[null,null,null,null,"岩手県","二戸郡一戸町","03524"]
[null,null,null,null,"宮城県","仙台市青葉区","04101"]
[null,null,null,null,"宮城県","仙台市宮城野区","04102"]
[null,null,null,null,"宮城県","仙台市若林区","04103"]
[null,null,null,null,"宮城県","仙台市太白区","04104"]
[null,null,null,null,"宮城県","仙台市泉区","04105"]
[null,null,null,null,"宮城県","石巻市","04202"]
[null,null,null,null,"宮城県","塩竃市","04203"]
[null,null,null,null,"宮城県","気仙沼市","04205"]
[null,null,null,null,"宮城県","白石市","04206"]
[null,null,null,null,"宮城県","名取市","04207"]
[null,null,null,null,"宮城県","角田市","04208"]
[null,null,null,null,"宮城県","多賀城市","04209"]
[null,null,null,null,"宮城県","岩沼市","04211"]
[null,null,null,null,"宮城県","登米市","04212"]
[null,null,null,null,"宮城県","栗原市","04213"]
[null,null,null,null,"宮城県","東松島市","04214"]
[null,null,null,null,"宮城県","大崎市","04215"]
[null,null,null,null,"宮城県","刈田郡蔵王町","04301"]
[null,null,null,null,"宮城県","刈田郡七ヶ宿町","04302"]
[null,null,null,null,"宮城県","柴田郡大河原町","04321"]
[null,null,null,null,"宮城県","柴田郡村田町","04322"]
[null,null,null,null,"宮城県","柴田郡柴田町","04323"]
[null,null,null,null,"宮城県","柴田郡川崎町","04324"]
[null,null,null,null,"宮城県","伊具郡丸森町","04341"]
[null,null,null,null,"宮城県","亘理郡亘理町","04361"]
[null,null,null,null,"宮城県","亘理郡山元町","04362"]
[null,null,null,null,"宮城県","宮城郡松島町","04401"]
[null,null,null,null,"宮城県","宮城郡七ヶ浜町","04404"]
[null,null,null,null,"宮城県","宮城郡利府町","04406"]
[null,null,null,null,"宮城県","黒川郡大和町","04421"]
[null,null,null,null,"宮城県","黒川郡大郷町","04422"]
[null,null,null,null,"宮城県","黒川郡富谷町","04423"]
[null,null,null,null,"宮城県","黒川郡大衡村","04424"]
[null,null,null,null,"宮城県","加美郡色麻町","04444"]
[null,null,null,null,"宮城県","加美郡加美町","04445"]
[null,null,null,null,"宮城県","遠田郡涌谷町","04501"]
[null,null,null,null,"宮城県","遠田郡美里町","04505"]
[null,null,null,null,"宮城県","牡鹿郡女川町","04581"]
[null,null,null,null,"宮城県","本吉郡南三陸町","04606"]
[null,null,null,null,"秋田県","秋田市","05201"]
[null,null,null,null,"秋田県","能代市","05202"]
[null,null,null,null,"秋田県","横手市","05203"]
[null,null,null,null,"秋田県","大館市","05204"]
[null,null,null,null,"秋田県","男鹿市","05206"]
[null,null,null,null,"秋田県","湯沢市","05207"]
[null,null,null,null,"秋田県","鹿角市","05209"]
[null,null,null,null,"秋田県","由利本庄市","05210"]
[null,null,null,null,"秋田県","潟上市","05211"]
[null,null,null,null,"秋田県","大仙市","05212"]
[null,null,null,null,"秋田県","北秋田市","05213"]
[null,null,null,null,"秋田県","にかほ市","05214"]
[null,null,null,null,"秋田県","仙北市","05215"]
[null,null,null,null,"秋田県","鹿角郡小坂町","05303"]
[null,null,null,null,"秋田県","北秋田郡上小阿仁村","05327"]
[null,null,null,null,"秋田県","山本郡藤里町","05346"]
[null,null,null,null,"秋田県","山本郡三種町","05348"]
[null,null,null,null,"秋田県","山本郡八峰町","05349"]
[null,null,null,null,"秋田県","南秋田郡五城目町","05361"]
[null,null,null,null,"秋田県","南秋田郡八郎潟町","05363"]
[null,null,null,null,"秋田県","南秋田郡井川町","05366"]
[null,null,null,null,"秋田県","南秋田郡大潟村","05368"]
[null,null,null,null,"秋田県","仙北郡美郷町","05434"]
[null,null,null,null,"秋田県","雄勝郡羽後町","05463"]
[null,null,null,null,"秋田県","雄勝郡東成瀬村","05464"]
[null,null,null,null,"山形県","山形市","06201"]
[null,null,null,null,"山形県","米沢市","06202"]
[null,null,null,null,"山形県","鶴岡市","06203"]
[null,null,null,null,"山形県","酒田市","06204"]
[null,null,null,null,"山形県","新庄市","06205"]
[null,null,null,null,"山形県","寒河江市","06206"]
[null,null,null,null,"山形県","上山市","06207"]
[null,null,null,null,"山形県","村山市","06208"]
[null,null,null,null,"山形県","長井市","06209"]
[null,null,null,null,"山形県","天童市","06210"]
[null,null,null,null,"山形県","東根市","06211"]
[null,null,null,null,"山形県","尾花沢市","06212"]
[null,null,null,null,"山形県","南陽市","06213"]
[null,null,null,null,"山形県","東村山郡山辺町","06301"]
[null,null,null,null,"山形県","東村山郡中山町","06302"]
[null,null,null,null,"山形県","西村山郡河北町","06321"]
[null,null,null,null,"山形県","西村山郡西川町","06322"]
[null,null,null,null,"山形県","西村山郡朝日町","06323"]
[null,null,null,null,"山形県","西村山郡大江町","06324"]
[null,null,null,null,"山形県","北村山郡大石田町","06341"]
[null,null,null,null,"山形県","最上郡金山町","06361"]
[null,null,null,null,"山形県","最上郡最上町","06362"]
[null,null,null,null,"山形県","最上郡舟形町","06363"]
[null,null,null,null,"山形県","最上郡真室川町","06364"]
[null,null,null,null,"山形県","最上郡大蔵村","06365"]
[null,null,null,null,"山形県","最上郡鮭川村","06366"]
[null,null,null,null,"山形県","最上郡戸沢村","06367"]
[null,null,null,null,"山形県","東置賜郡高畠町","06381"]
[null,null,null,null,"山形県","東置賜郡川西町","06382"]
[null,null,null,null,"山形県","西置賜郡小国町","06401"]
[null,null,null,null,"山形県","西置賜郡白鷹町","06402"]
[null,null,null,null,"山形県","西置賜郡飯豊町","06403"]
[null,null,null,null,"山形県","東田川郡三川町","06426"]
[null,null,null,null,"山形県","東田川郡庄内町","06428"]
[null,null,null,null,"山形県","飽海郡遊佐町","06461"]
[null,null,null,null,"山形県","飽海郡八幡町","06462"]
[null,null,null,null,"山形県","飽海郡松山町","06463"]
[null,null,null,null,"山形県","飽海郡平田町","06464"]
[null,null,null,null,"福島県","福島市","07201"]
[null,null,null,null,"福島県","会津若松市","07202"]
[null,null,null,null,"福島県","郡山市","07203"]
[null,null,null,null,"福島県","いわき市","07204"]
[null,null,null,null,"福島県","白河市","07205"]
[null,null,null,null,"福島県","須賀川市","07207"]
[null,null,null,null,"福島県","喜多方市","07208"]
[null,null,null,null,"福島県","相馬市","07209"]
[null,null,null,null,"福島県","二本松市","07210"]
[null,null,null,null,"福島県","田村市","07211"]
[null,null,null,null,"福島県","南相馬市","07212"]
[null,null,null,null,"福島県","伊達市","07213"]
[null,null,null,null,"福島県","本宮市","07214"]
[null,null,null,null,"福島県","伊達郡桑折町","07301"]
[null,null,null,null,"福島県","伊達郡国見町","07303"]
[null,null,null,null,"福島県","伊達郡川俣町","07308"]
[null,null,null,null,"福島県","安達郡安達町","07321"]
[null,null,null,null,"福島県","安達郡大玉村","07322"]
[null,null,null,null,"福島県","安達郡岩代町","07325"]
[null,null,null,null,"福島県","安達郡東和町","07326"]
[null,null,null,null,"福島県","岩瀬郡鏡石町","07342"]
[null,null,null,null,"福島県","岩瀬郡天栄村","07344"]
[null,null,null,null,"福島県","南会津郡下郷町","07362"]
[null,null,null,null,"福島県","南会津郡桧枝岐村","07364"]
[null,null,null,null,"福島県","南会津郡只見町","07367"]
[null,null,null,null,"福島県","南会津郡南会津町","07368"]
[null,null,null,null,"福島県","耶麻郡北塩原村","07402"]
[null,null,null,null,"福島県","耶麻郡西会津町","07405"]
[null,null,null,null,"福島県","耶麻郡磐梯町","07407"]
[null,null,null,null,"福島県","耶麻郡猪苗代町","07408"]
[null,null,null,null,"福島県","河沼郡会津坂下町","07421"]
[null,null,null,null,"福島県","河沼郡湯川村","07422"]
[null,null,null,null,"福島県","河沼郡柳津町","07423"]
[null,null,null,null,"福島県","河沼郡河東町","07424"]
[null,null,null,null,"福島県","大沼郡三島町","07444"]
[null,null,null,null,"福島県","大沼郡金山町","07445"]
[null,null,null,null,"福島県","大沼郡昭和村","07446"]
[null,null,null,null,"福島県","大沼郡会津美里町","07447"]
[null,null,null,null,"福島県","西白河郡西郷村","07461"]
[null,null,null,null,"福島県","西白河郡表郷村","07462"]
[null,null,null,null,"福島県","西白河郡東村","07463"]
[null,null,null,null,"福島県","西白河郡泉崎村","07464"]
[null,null,null,null,"福島県","西白河郡中島村","07465"]
[null,null,null,null,"福島県","西白河郡矢吹町","07466"]
[null,null,null,null,"福島県","西白河郡大信村","07467"]
[null,null,null,null,"福島県","東白川郡棚倉町","07481"]
[null,null,null,null,"福島県","東白川郡矢祭町","07482"]
[null,null,null,null,"福島県","東白川郡塙町","07483"]
[null,null,null,null,"福島県","東白川郡鮫川村","07484"]
[null,null,null,null,"福島県","石川郡石川町","07501"]
[null,null,null,null,"福島県","石川郡玉川村","07502"]
[null,null,null,null,"福島県","石川郡平田村","07503"]
[null,null,null,null,"福島県","石川郡浅川町","07504"]
[null,null,null,null,"福島県","石川郡古殿町","07505"]
[null,null,null,null,"福島県","田村郡三春町","07521"]
[null,null,null,null,"福島県","田村郡小野町","07522"]
[null,null,null,null,"福島県","双葉郡広野町","07541"]
[null,null,null,null,"福島県","双葉郡楢葉町","07542"]
[null,null,null,null,"福島県","双葉郡富岡町","07543"]
[null,null,null,null,"福島県","双葉郡川内村","07544"]
[null,null,null,null,"福島県","双葉郡大熊町","07545"]
[null,null,null,null,"福島県","双葉郡双葉町","07546"]
[null,null,null,null,"福島県","双葉郡浪江町","07547"]
[null,null,null,null,"福島県","双葉郡葛尾村","07548"]
[null,null,null,null,"福島県","相馬郡新地町","07561"]
[null,null,null,null,"福島県","相馬郡飯舘村","07564"]
[null,null,null,null,"茨城県","水戸市","08201"]
[null,null,null,null,"茨城県","日立市","08202"]
[null,null,null,null,"茨城県","土浦市","08203"]
[null,null,null,null,"茨城県","古河市","08204"]
[null,null,null,null,"茨城県","石岡市","08205"]
[null,null,null,null,"茨城県","結城市","08207"]
[null,null,null,null,"茨城県","龍ヶ崎市","08208"]
[null,null,null,null,"茨城県","下妻市","08210"]
[null,null,null,null,"茨城県","常総市","08211"]
[null,null,null,null,"茨城県","常陸太田市","08212"]
[null,null,null,null,"茨城県","高萩市","08214"]
[null,null,null,null,"茨城県","北茨城市","08215"]
[null,null,null,null,"茨城県","笠間市","08216"]
[null,null,null,null,"茨城県","取手市","08217"]
[null,null,null,null,"茨城県","牛久市","08219"]
[null,null,null,null,"茨城県","つくば市","08220"]
[null,null,null,null,"茨城県","ひたちなか市","08221"]
[null,null,null,null,"茨城県","鹿嶋市","08222"]
[null,null,null,null,"茨城県","潮来市","08223"]
[null,null,null,null,"茨城県","守谷市","08224"]
[null,null,null,null,"茨城県","常陸大宮市","08225"]
[null,null,null,null,"茨城県","那珂市","08226"]
[null,null,null,null,"茨城県","筑西市","08227"]
[null,null,null,null,"茨城県","坂東市","08228"]
[null,null,null,null,"茨城県","稲敷市","08229"]
[null,null,null,null,"茨城県","かすみがうら市","08230"]
[null,null,null,null,"茨城県","桜川市","08231"]
[null,null,null,null,"茨城県","神栖市","08232"]
[null,null,null,null,"茨城県","行方市","08233"]
[null,null,null,null,"茨城県","鉾田市","08234"]
[null,null,null,null,"茨城県","つくばみらい市","08235"]
[null,null,null,null,"茨城県","小見玉市","08236"]
[null,null,null,null,"茨城県","東茨城郡茨城町","08302"]
[null,null,null,null,"茨城県","東茨城郡大洗町","08309"]
[null,null,null,null,"茨城県","東茨城郡城里町","08310"]
[null,null,null,null,"茨城県","那珂郡東海村","08341"]
[null,null,null,null,"茨城県","那珂郡瓜連町","08343"]
[null,null,null,null,"茨城県","久慈郡大子町","08364"]
[null,null,null,null,"茨城県","稲敷郡美浦村","08442"]
[null,null,null,null,"茨城県","稲敷郡阿見町","08443"]
[null,null,null,null,"茨城県","稲敷郡河内町","08447"]
[null,null,null,null,"茨城県","結城郡八千代町","08521"]
[null,null,null,null,"茨城県","猿島郡五霞町","08542"]
[null,null,null,null,"茨城県","猿島郡境町","08546"]
[null,null,null,null,"茨城県","北相馬郡利根町","08564"]
[null,null,null,null,"栃木県","宇都宮市","09201"]
[null,null,null,null,"栃木県","足利市","09202"]
[null,null,null,null,"栃木県","栃木市","09203"]
[null,null,null,null,"栃木県","佐野市","09204"]
[null,null,null,null,"栃木県","鹿沼市","09205"]
[null,null,null,null,"栃木県","日光市","09206"]
[null,null,null,null,"栃木県","小山市","09208"]
[null,null,null,null,"栃木県","真岡市","09209"]
[null,null,null,null,"栃木県","大田原市","09210"]
[null,null,null,null,"栃木県","矢板市","09211"]
[null,null,null,null,"栃木県","那須塩原市","09213"]
[null,null,null,null,"栃木県","さくら市","09214"]
[null,null,null,null,"栃木県","烏山市","09215"]
[null,null,null,null,"栃木県","下野市","09216"]
[null,null,null,null,"栃木県","河内郡上三川町","09301"]
[null,null,null,null,"栃木県","上都賀郡西方町","09321"]
[null,null,null,null,"栃木県","芳賀郡益子町","09342"]
[null,null,null,null,"栃木県","芳賀郡茂木町","09343"]
[null,null,null,null,"栃木県","芳賀郡市貝町","09344"]
[null,null,null,null,"栃木県","芳賀郡芳賀町","09345"]
[null,null,null,null,"栃木県","下都賀郡壬生町","09361"]
[null,null,null,null,"栃木県","下都賀郡野木町","09364"]
[null,null,null,null,"栃木県","下都賀郡岩舟町","09367"]
[null,null,null,null,"栃木県","塩谷郡塩谷町","09384"]
[null,null,null,null,"栃木県","塩谷郡高根沢町","09386"]
[null,null,null,null,"栃木県","那須郡那須町","09407"]
[null,null,null,null,"栃木県","那須郡那珂川町","09411"]
[null,null,null,null,"群馬県","前橋市","10201"]
[null,null,null,null,"群馬県","高崎市","10202"]
[null,null,null,null,"群馬県","桐生市","10203"]
[null,null,null,null,"群馬県","伊勢崎市","10204"]
[null,null,null,null,"群馬県","太田市","10205"]
[null,null,null,null,"群馬県","沼田市","10206"]
[null,null,null,null,"群馬県","館林市","10207"]
[null,null,null,null,"群馬県","渋川市","10208"]
[null,null,null,null,"群馬県","藤岡市","10209"]
[null,null,null,null,"群馬県","富岡市","10210"]
[null,null,null,null,"群馬県","安中市","10211"]
[null,null,null,null,"群馬県","みどり市","10212"]
[null,null,null,null,"群馬県","北群馬郡榛東村","10344"]
[null,null,null,null,"群馬県","北群馬郡吉岡町","10345"]
[null,null,null,null,"群馬県","多野郡上野村","10366"]
[null,null,null,null,"群馬県","多野郡神流町","10367"]
[null,null,null,null,"群馬県","甘楽郡下仁田町","10382"]
[null,null,null,null,"群馬県","甘楽郡南牧村","10383"]
[null,null,null,null,"群馬県","甘楽郡甘楽町","10384"]
[null,null,null,null,"群馬県","吾妻郡中之条町","10421"]
[null,null,null,null,"群馬県","吾妻郡長野原町","10424"]
[null,null,null,null,"群馬県","吾妻郡嬬恋村","10425"]
[null,null,null,null,"群馬県","吾妻郡草津町","10426"]
[null,null,null,null,"群馬県","吾妻郡六合村","10427"]
[null,null,null,null,"群馬県","吾妻郡高山村","10428"]
[null,null,null,null,"群馬県","吾妻郡東吾妻町","10429"]
[null,null,null,null,"群馬県","利根郡片品村","10443"]
[null,null,null,null,"群馬県","利根郡川場村","10444"]
[null,null,null,null,"群馬県","利根郡昭和村","10448"]
[null,null,null,null,"群馬県","利根郡みなかみ町","10449"]
[null,null,null,null,"群馬県","佐波郡玉村町","10464"]
[null,null,null,null,"群馬県","邑楽郡板倉町","10521"]
[null,null,null,null,"群馬県","邑楽郡明和町","10522"]
[null,null,null,null,"群馬県","邑楽郡千代田町","10523"]
[null,null,null,null,"群馬県","邑楽郡大泉町","10524"]
[null,null,null,null,"群馬県","邑楽郡邑楽町","10525"]
[null,null,null,null,"埼玉県","さいたま市西区","11101"]
[null,null,null,null,"埼玉県","さいたま市北区","11102"]
[null,null,null,null,"埼玉県","さいたま市大宮区","11103"]
[null,null,null,null,"埼玉県","さいたま市見沼区","11104"]
[null,null,null,null,"埼玉県","さいたま市中央区","11105"]
[null,null,null,null,"埼玉県","さいたま市桜区","11106"]
[null,null,null,null,"埼玉県","さいたま市浦和区","11107"]
[null,null,null,null,"埼玉県","さいたま市南区","11108"]
[null,null,null,null,"埼玉県","さいたま市緑区","11109"]
[null,null,null,null,"埼玉県","さいたま市岩槻区","11110"]
[null,null,null,null,"埼玉県","川越市","11201"]
[null,null,null,null,"埼玉県","熊谷市","11202"]
[null,null,null,null,"埼玉県","川口市","11203"]
[null,null,null,null,"埼玉県","行田市","11206"]
[null,null,null,null,"埼玉県","秩父市","11207"]
[null,null,null,null,"埼玉県","所沢市","11208"]
[null,null,null,null,"埼玉県","飯能市","11209"]
[null,null,null,null,"埼玉県","加須市","11210"]
[null,null,null,null,"埼玉県","本庄市","11211"]
[null,null,null,null,"埼玉県","東松山市","11212"]
[null,null,null,null,"埼玉県","春日部市","11214"]
[null,null,null,null,"埼玉県","狭山市","11215"]
[null,null,null,null,"埼玉県","羽生市","11216"]
[null,null,null,null,"埼玉県","鴻巣市","11217"]
[null,null,null,null,"埼玉県","深谷市","11218"]
[null,null,null,null,"埼玉県","上尾市","11219"]
[null,null,null,null,"埼玉県","草加市","11221"]
[null,null,null,null,"埼玉県","越谷市","11222"]
[null,null,null,null,"埼玉県","蕨市","11223"]
[null,null,null,null,"埼玉県","戸田市","11224"]
[null,null,null,null,"埼玉県","入間市","11225"]
[null,null,null,null,"埼玉県","朝霞市","11227"]
[null,null,null,null,"埼玉県","志木市","11228"]
[null,null,null,null,"埼玉県","和光市","11229"]
[null,null,null,null,"埼玉県","新座市","11230"]
[null,null,null,null,"埼玉県","桶川市","11231"]
[null,null,null,null,"埼玉県","久喜市","11232"]
[null,null,null,null,"埼玉県","北本市","11233"]
[null,null,null,null,"埼玉県","八潮市","11234"]
[null,null,null,null,"埼玉県","富士見市","11235"]
[null,null,null,null,"埼玉県","上福岡市","11236"]
[null,null,null,null,"埼玉県","三郷市","11237"]
[null,null,null,null,"埼玉県","蓮田市","11238"]
[null,null,null,null,"埼玉県","坂戸市","11239"]
[null,null,null,null,"埼玉県","幸手市","11240"]
[null,null,null,null,"埼玉県","鶴ヶ島市","11241"]
[null,null,null,null,"埼玉県","日高市","11242"]
[null,null,null,null,"埼玉県","吉川市","11243"]
[null,null,null,null,"埼玉県","白岡市","11246"]
[null,null,null,null,"埼玉県","北足立郡伊奈町","11301"]
[null,null,null,null,"埼玉県","入間郡大井町","11322"]
[null,null,null,null,"埼玉県","入間郡三芳町","11324"]
[null,null,null,null,"埼玉県","入間郡毛呂山町","11326"]
[null,null,null,null,"埼玉県","入間郡越生町","11327"]
[null,null,null,null,"埼玉県","比企郡滑川町","11341"]
[null,null,null,null,"埼玉県","比企郡嵐山町","11342"]
[null,null,null,null,"埼玉県","比企郡小川町","11343"]
[null,null,null,null,"埼玉県","比企郡川島町","11346"]
[null,null,null,null,"埼玉県","比企郡吉見町","11347"]
[null,null,null,null,"埼玉県","比企郡鳩山町","11348"]
[null,null,null,null,"埼玉県","比企郡ときがわ町","11349"]
[null,null,null,null,"埼玉県","秩父郡横瀬町","11361"]
[null,null,null,null,"埼玉県","秩父郡皆野町","11362"]
[null,null,null,null,"埼玉県","秩父郡長瀞町","11363"]
[null,null,null,null,"埼玉県","秩父郡小鹿野町","11365"]
[null,null,null,null,"埼玉県","秩父郡両神村","11366"]
[null,null,null,null,"埼玉県","秩父郡東秩父村","11369"]
[null,null,null,null,"埼玉県","児玉郡美里町","11381"]
[null,null,null,null,"埼玉県","児玉郡神川町","11383"]
[null,null,null,null,"埼玉県","児玉郡上里町","11385"]
[null,null,null,null,"埼玉県","大里郡寄居町","11408"]
[null,null,null,null,"埼玉県","南埼玉郡宮代町","11442"]
[null,null,null,null,"埼玉県","北葛飾郡杉戸町","11464"]
[null,null,null,null,"埼玉県","北葛飾郡松伏町","11465"]
[null,null,null,null,"埼玉県","北葛飾郡庄和町","11468"]
[null,null,null,null,"千葉県","千葉市中央区","12101"]
[null,null,null,null,"千葉県","千葉市花見川区","12102"]
[null,null,null,null,"千葉県","千葉市稲毛区","12103"]
[null,null,null,null,"千葉県","千葉市若葉区","12104"]
[null,null,null,null,"千葉県","千葉市緑区","12105"]
[null,null,null,null,"千葉県","千葉市美浜区","12106"]
[null,null,null,null,"千葉県","銚子市","12202"]
[null,null,null,null,"千葉県","市川市","12203"]
[null,null,null,null,"千葉県","船橋市","12204"]
[null,null,null,null,"千葉県","館山市","12205"]
[null,null,null,null,"千葉県","木更津市","12206"]
[null,null,null,null,"千葉県","松戸市","12207"]
[null,null,null,null,"千葉県","野田市","12208"]
[null,null,null,null,"千葉県","茂原市","12210"]
[null,null,null,null,"千葉県","成田市","12211"]
[null,null,null,null,"千葉県","佐倉市","12212"]
[null,null,null,null,"千葉県","東金市","12213"]
[null,null,null,null,"千葉県","旭市","12215"]
[null,null,null,null,"千葉県","習志野市","12216"]
[null,null,null,null,"千葉県","柏市","12217"]
[null,null,null,null,"千葉県","勝浦市","12218"]
[null,null,null,null,"千葉県","市原市","12219"]
[null,null,null,null,"千葉県","流山市","12220"]
[null,null,null,null,"千葉県","八千代市","12221"]
[null,null,null,null,"千葉県","我孫子市","12222"]
[null,null,null,null,"千葉県","鴨川市","12223"]
[null,null,null,null,"千葉県","鎌ヶ谷市","12224"]
[null,null,null,null,"千葉県","君津市","12225"]
[null,null,null,null,"千葉県","富津市","12226"]
[null,null,null,null,"千葉県","浦安市","12227"]
[null,null,null,null,"千葉県","四街道市","12228"]
[null,null,null,null,"千葉県","袖ヶ浦市","12229"]
[null,null,null,null,"千葉県","八街市","12230"]
[null,null,null,null,"千葉県","印西市","12231"]
[null,null,null,null,"千葉県","白井市","12232"]
[null,null,null,null,"千葉県","富里市","12233"]
[null,null,null,null,"千葉県","南房総市","12234"]
[null,null,null,null,"千葉県","匝瑳市","12235"]
[null,null,null,null,"千葉県","香取市","12236"]
[null,null,null,null,"千葉県","山武市","12237"]
[null,null,null,null,"千葉県","いすみ市","12238"]
[null,null,null,null,"千葉県","大網白里市","12239"]
[null,null,null,null,"千葉県","印旛郡酒々井町","12322"]
[null,null,null,null,"千葉県","印旛郡栄町","12329"]
[null,null,null,null,"千葉県","香取郡神崎町","12342"]
[null,null,null,null,"千葉県","香取郡多古町","12347"]
[null,null,null,null,"千葉県","香取郡東庄町","12349"]
[null,null,null,null,"千葉県","山武郡大網白里町","12402"]
[null,null,null,null,"千葉県","山武郡九十九里町","12403"]
[null,null,null,null,"千葉県","山武郡横芝町","12408"]
[null,null,null,null,"千葉県","山武郡芝山町","12409"]
[null,null,null,null,"千葉県","長生郡一宮町","12421"]
[null,null,null,null,"千葉県","長生郡睦沢町","12422"]
[null,null,null,null,"千葉県","長生郡長生村","12423"]
[null,null,null,null,"千葉県","長生郡白子町","12424"]
[null,null,null,null,"千葉県","長生郡長柄町","12426"]
[null,null,null,null,"千葉県","長生郡長南町","12427"]
[null,null,null,null,"千葉県","夷隅郡大多喜町","12441"]
[null,null,null,null,"千葉県","夷隅郡御宿町","12443"]
[null,null,null,null,"千葉県","安房郡鋸南町","12463"]
[null,null,null,null,"東京都","千代田区","13101"]
[null,null,null,null,"東京都","中央区","13102"]
[null,null,null,null,"東京都","港区","13103"]
[null,null,null,null,"東京都","新宿区","13104"]
[null,null,null,null,"東京都","文京区","13105"]
[null,null,null,null,"東京都","台東区","13106"]
[null,null,null,null,"東京都","墨田区","13107"]
[null,null,null,null,"東京都","江東区","13108"]
[null,null,null,null,"東京都","品川区","13109"]
[null,null,null,null,"東京都","目黒区","13110"]
[null,null,null,null,"東京都","大田区","13111"]
[null,null,null,null,"東京都","世田谷区","13112"]
[null,null,null,null,"東京都","渋谷区","13113"]
[null,null,null,null,"東京都","中野区","13114"]
[null,null,null,null,"東京都","杉並区","13115"]
[null,null,null,null,"東京都","豊島区","13116"]
[null,null,null,null,"東京都","北区","13117"]
[null,null,null,null,"東京都","荒川区","13118"]
[null,null,null,null,"東京都","板橋区","13119"]
[null,null,null,null,"東京都","練馬区","13120"]
[null,null,null,null,"東京都","足立区","13121"]
[null,null,null,null,"東京都","葛飾区","13122"]
[null,null,null,null,"東京都","江戸川区","13123"]
[null,null,null,null,"東京都","八王子市","13201"]
[null,null,null,null,"東京都","立川市","13202"]
[null,null,null,null,"東京都","武蔵野市","13203"]
[null,null,null,null,"東京都","三鷹市","13204"]
[null,null,null,null,"東京都","青梅市","13205"]
[null,null,null,null,"東京都","府中市","13206"]
[null,null,null,null,"東京都","昭島市","13207"]
[null,null,null,null,"東京都","調布市","13208"]
[null,null,null,null,"東京都","町田市","13209"]
[null,null,null,null,"東京都","小金井市","13210"]
[null,null,null,null,"東京都","小平市","13211"]
[null,null,null,null,"東京都","日野市","13212"]
[null,null,null,null,"東京都","東村山市","13213"]
[null,null,null,null,"東京都","国分寺市","13214"]
[null,null,null,null,"東京都","国立市","13215"]
[null,null,null,null,"東京都","福生市","13218"]
[null,null,null,null,"東京都","狛江市","13219"]
[null,null,null,null,"東京都","東大和市","13220"]
[null,null,null,null,"東京都","清瀬市","13221"]
[null,null,null,null,"東京都","東久留米市","13222"]
[null,null,null,null,"東京都","武蔵村山市","13223"]
[null,null,null,null,"東京都","多摩市","13224"]
[null,null,null,null,"東京都","稲城市","13225"]
[null,null,null,null,"東京都","羽村市","13227"]
[null,null,null,null,"東京都","あきる野市","13228"]
[null,null,null,null,"東京都","西東京市","13229"]
[null,null,null,null,"東京都","西多摩郡瑞穂町","13303"]
[null,null,null,null,"東京都","西多摩郡日の出町","13305"]
[null,null,null,null,"東京都","西多摩郡桧原村","13307"]
[null,null,null,null,"東京都","西多摩郡奥多摩町","13308"]
[null,null,null,null,"東京都","大島大島町","13361"]
[null,null,null,null,"東京都","利島利島村","13362"]
[null,null,null,null,"東京都","新島新島村","13363"]
[null,null,null,null,"東京都","神津島神津島村","13364"]
[null,null,null,null,"東京都","三宅島三宅村","13381"]
[null,null,null,null,"東京都","御蔵島御蔵島村","13382"]
[null,null,null,null,"東京都","八丈島八丈町","13401"]
[null,null,null,null,"東京都","青ヶ島青ヶ島村","13402"]
[null,null,null,null,"東京都","小笠原諸島小笠原村","13421"]
[null,null,null,null,"神奈川県","横浜市鶴見区","14101"]
[null,null,null,null,"神奈川県","横浜市神奈川区","14102"]
[null,null,null,null,"神奈川県","横浜市西区","14103"]
[null,null,null,null,"神奈川県","横浜市中区","14104"]
[null,null,null,null,"神奈川県","横浜市南区","14105"]
[null,null,null,null,"神奈川県","横浜市保土ヶ谷区","14106"]
[null,null,null,null,"神奈川県","横浜市磯子区","14107"]
[null,null,null,null,"神奈川県","横浜市金沢区","14108"]
[null,null,null,null,"神奈川県","横浜市港北区","14109"]
[null,null,null,null,"神奈川県","横浜市戸塚区","14110"]
[null,null,null,null,"神奈川県","横浜市港南区","14111"]
[null,null,null,null,"神奈川県","横浜市旭区","14112"]
[null,null,null,null,"神奈川県","横浜市緑区","14113"]
[null,null,null,null,"神奈川県","横浜市瀬谷区","14114"]
[null,null,null,null,"神奈川県","横浜市栄区","14115"]
[null,null,null,null,"神奈川県","横浜市泉区","14116"]
[null,null,null,null,"神奈川県","横浜市青葉区","14117"]
[null,null,null,null,"神奈川県","横浜市都筑区","14118"]
[null,null,null,null,"神奈川県","川崎市川崎区","14131"]
[null,null,null,null,"神奈川県","川崎市幸区","14132"]
[null,null,null,null,"神奈川県","川崎市中原区","14133"]
[null,null,null,null,"神奈川県","川崎市高津区","14134"]
[null,null,null,null,"神奈川県","川崎市多摩区","14135"]
[null,null,null,null,"神奈川県","川崎市宮前区","14136"]
[null,null,null,null,"神奈川県","川崎市麻生区","14137"]
[null,null,null,null,"神奈川県","相模原市緑区","14161"]
[null,null,null,null,"神奈川県","相模原市中央区","14162"]
[null,null,null,null,"神奈川県","相模原市南区","14163"]
[null,null,null,null,"神奈川県","横須賀市","14201"]
[null,null,null,null,"神奈川県","平塚市","14203"]
[null,null,null,null,"神奈川県","鎌倉市","14204"]
[null,null,null,null,"神奈川県","藤沢市","14205"]
[null,null,null,null,"神奈川県","小田原市","14206"]
[null,null,null,null,"神奈川県","茅ヶ崎市","14207"]
[null,null,null,null,"神奈川県","逗子市","14208"]
[null,null,null,null,"神奈川県","三浦市","14210"]
[null,null,null,null,"神奈川県","秦野市","14211"]
[null,null,null,null,"神奈川県","厚木市","14212"]
[null,null,null,null,"神奈川県","大和市","14213"]
[null,null,null,null,"神奈川県","伊勢原市","14214"]
[null,null,null,null,"神奈川県","海老名市","14215"]
[null,null,null,null,"神奈川県","座間市","14216"]
[null,null,null,null,"神奈川県","南足柄市","14217"]
[null,null,null,null,"神奈川県","綾瀬市","14218"]
[null,null,null,null,"神奈川県","三浦郡葉山町","14301"]
[null,null,null,null,"神奈川県","高座郡寒川町","14321"]
[null,null,null,null,"神奈川県","中郡大磯町","14341"]
[null,null,null,null,"神奈川県","中郡二宮町","14342"]
[null,null,null,null,"神奈川県","足柄上郡中井町","14361"]
[null,null,null,null,"神奈川県","足柄上郡大井町","14362"]
[null,null,null,null,"神奈川県","足柄上郡松田町","14363"]
[null,null,null,null,"神奈川県","足柄上郡山北町","14364"]
[null,null,null,null,"神奈川県","足柄上郡開成町","14366"]
[null,null,null,null,"神奈川県","足柄下郡箱根町","14382"]
[null,null,null,null,"神奈川県","足柄下郡真鶴町","14383"]
[null,null,null,null,"神奈川県","足柄下郡湯河原町","14384"]
[null,null,null,null,"神奈川県","愛甲郡愛川町","14401"]
[null,null,null,null,"神奈川県","愛甲郡清川村","14402"]
[null,null,null,null,"新潟県","新潟市北区","15101"]
[null,null,null,null,"新潟県","新潟市東区","15102"]
[null,null,null,null,"新潟県","新潟市中央区","15103"]
[null,null,null,null,"新潟県","新潟市江南区","15104"]
[null,null,null,null,"新潟県","新潟市秋葉区","15105"]
[null,null,null,null,"新潟県","新潟市南区","15106"]
[null,null,null,null,"新潟県","新潟市西区","15107"]
[null,null,null,null,"新潟県","新潟市西蒲区","15108"]
[null,null,null,null,"新潟県","長岡市","15202"]
[null,null,null,null,"新潟県","三条市","15204"]
[null,null,null,null,"新潟県","柏崎市","15205"]
[null,null,null,null,"新潟県","新発田市","15206"]
[null,null,null,null,"新潟県","小千谷市","15208"]
[null,null,null,null,"新潟県","加茂市","15209"]
[null,null,null,null,"新潟県","十日町市","15210"]
[null,null,null,null,"新潟県","見附市","15211"]
[null,null,null,null,"新潟県","村上市","15212"]
[null,null,null,null,"新潟県","燕市","15213"]
[null,null,null,null,"新潟県","糸魚川市","15216"]
[null,null,null,null,"新潟県","妙高市","15217"]
[null,null,null,null,"新潟県","五泉市","15218"]
[null,null,null,null,"新潟県","上越市","15222"]
[null,null,null,null,"新潟県","阿賀野市","15223"]
[null,null,null,null,"新潟県","佐渡市","15224"]
[null,null,null,null,"新潟県","魚沼市","15225"]
[null,null,null,null,"新潟県","南魚沼市","15226"]
[null,null,null,null,"新潟県","北蒲原郡聖篭町","15307"]
[null,null,null,null,"新潟県","北蒲原郡中条町","15310"]
[null,null,null,null,"新潟県","北蒲原郡黒川村","15311"]
[null,null,null,null,"新潟県","西蒲原郡弥彦村","15342"]
[null,null,null,null,"新潟県","西蒲原郡巻町","15345"]
[null,null,null,null,"新潟県","南蒲原郡田上町","15361"]
[null,null,null,null,"新潟県","東蒲原郡阿賀町","15385"]
[null,null,null,null,"新潟県","三島郡出雲崎町","15405"]
[null,null,null,null,"新潟県","南魚沼郡湯沢町","15461"]
[null,null,null,null,"新潟県","南魚沼郡塩沢町","15462"]
[null,null,null,null,"新潟県","中魚沼郡津南町","15482"]
[null,null,null,null,"新潟県","刈羽郡刈羽村","15504"]
[null,null,null,null,"新潟県","岩船郡関川村","15581"]
[null,null,null,null,"新潟県","岩船郡粟島浦村","15586"]
[null,null,null,null,"富山県","富山市","16201"]
[null,null,null,null,"富山県","高岡市","16202"]
[null,null,null,null,"富山県","魚津市","16204"]
[null,null,null,null,"富山県","氷見市","16205"]
[null,null,null,null,"富山県","滑川市","16206"]
[null,null,null,null,"富山県","黒部市","16207"]
[null,null,null,null,"富山県","礪波市","16208"]
[null,null,null,null,"富山県","小矢部市","16209"]
[null,null,null,null,"富山県","南砺市","16210"]
[null,null,null,null,"富山県","射水市","16211"]
[null,null,null,null,"富山県","中新川郡舟橋村","16321"]
[null,null,null,null,"富山県","中新川郡上市町","16322"]
[null,null,null,null,"富山県","中新川郡立山町","16323"]
[null,null,null,null,"富山県","下新川郡入善町","16342"]
[null,null,null,null,"富山県","下新川郡朝日町","16343"]
[null,null,null,null,"石川県","金沢市","17201"]
[null,null,null,null,"石川県","七尾市","17202"]
[null,null,null,null,"石川県","小松市","17203"]
[null,null,null,null,"石川県","輪島市","17204"]
[null,null,null,null,"石川県","珠洲市","17205"]
[null,null,null,null,"石川県","加賀市","17206"]
[null,null,null,null,"石川県","羽咋市","17207"]
[null,null,null,null,"石川県","かほく市","17209"]
[null,null,null,null,"石川県","白山市","17210"]
[null,null,null,null,"石川県","能美市","17211"]
[null,null,null,null,"石川県","野々市市","17212"]
[null,null,null,null,"石川県","能美郡川北町","17324"]
[null,null,null,null,"石川県","河北郡津幡町","17361"]
[null,null,null,null,"石川県","河北郡内灘町","17365"]
[null,null,null,null,"石川県","羽咋郡志賀町","17384"]
[null,null,null,null,"石川県","羽咋郡宝達志水町","17386"]
[null,null,null,null,"石川県","鹿島郡中能登町","17407"]
[null,null,null,null,"石川県","鳳珠郡穴水町","17461"]
[null,null,null,null,"石川県","鳳珠郡能登町","17463"]
[null,null,null,null,"福井県","福井市","18201"]
[null,null,null,null,"福井県","敦賀市","18202"]
[null,null,null,null,"福井県","小浜市","18204"]
[null,null,null,null,"福井県","大野市","18205"]
[null,null,null,null,"福井県","勝山市","18206"]
[null,null,null,null,"福井県","鯖江市","18207"]
[null,null,null,null,"福井県","あわら市","18208"]
[null,null,null,null,"福井県","越前市","18209"]
[null,null,null,null,"福井県","坂井市","18210"]
[null,null,null,null,"福井県","吉田郡永平寺町","18322"]
[null,null,null,null,"福井県","大野郡和泉村","18342"]
[null,null,null,null,"福井県","今立郡池田町","18382"]
[null,null,null,null,"福井県","南条郡南越前町","18404"]
[null,null,null,null,"福井県","丹生郡越前町","18423"]
[null,null,null,null,"福井県","三方郡美浜町","18442"]
[null,null,null,null,"福井県","大飯郡高浜町","18481"]
[null,null,null,null,"福井県","大飯郡おおい町","18483"]
[null,null,null,null,"福井県","三方上中郡若狭町","18501"]
[null,null,null,null,"山梨県","甲府市","19201"]
[null,null,null,null,"山梨県","富士吉田市","19202"]
[null,null,null,null,"山梨県","塩山市","19203"]
[null,null,null,null,"山梨県","都留市","19204"]
[null,null,null,null,"山梨県","山梨市","19205"]
[null,null,null,null,"山梨県","大月市","19206"]
[null,null,null,null,"山梨県","韮崎市","19207"]
[null,null,null,null,"山梨県","南アルプス市","19208"]
[null,null,null,null,"山梨県","北杜市","19209"]
[null,null,null,null,"山梨県","甲斐市","19210"]
[null,null,null,null,"山梨県","笛吹市","19211"]
[null,null,null,null,"山梨県","上野原市","19212"]
[null,null,null,null,"山梨県","中央市","19214"]
[null,null,null,null,"山梨県","東山梨郡勝沼町","19304"]
[null,null,null,null,"山梨県","東山梨郡大和村","19305"]
[null,null,null,null,"山梨県","西八代郡三珠町","19342"]
[null,null,null,null,"山梨県","西八代郡市川大門町","19343"]
[null,null,null,null,"山梨県","西八代郡六郷町","19344"]
[null,null,null,null,"山梨県","南巨摩郡早川町","19364"]
[null,null,null,null,"山梨県","南巨摩郡身延町","19365"]
[null,null,null,null,"山梨県","南巨摩郡南部町","19366"]
[null,null,null,null,"山梨県","南巨摩郡富士川町","19368"]
[null,null,null,null,"山梨県","中巨摩郡昭和町","19384"]
[null,null,null,null,"山梨県","南都留郡道志村","19422"]
[null,null,null,null,"山梨県","南都留郡西桂町","19423"]
[null,null,null,null,"山梨県","南都留郡忍野村","19424"]
[null,null,null,null,"山梨県","南都留郡山中湖村","19425"]
[null,null,null,null,"山梨県","南都留郡鳴沢村","19429"]
[null,null,null,null,"山梨県","南都留郡富士河口湖町","19430"]
[null,null,null,null,"山梨県","北都留郡小菅村","19442"]
[null,null,null,null,"山梨県","北都留郡丹波山村","19443"]
[null,null,null,null,"長野県","長野市","20201"]
[null,null,null,null,"長野県","松本市","20202"]
[null,null,null,null,"長野県","上田市","20203"]
[null,null,null,null,"長野県","岡谷市","20204"]
[null,null,null,null,"長野県","飯田市","20205"]
[null,null,null,null,"長野県","諏訪市","20206"]
[null,null,null,null,"長野県","須坂市","20207"]
[null,null,null,null,"長野県","小諸市","20208"]
[null,null,null,null,"長野県","伊那市","20209"]
[null,null,null,null,"長野県","駒ヶ根市","20210"]
[null,null,null,null,"長野県","中野市","20211"]
[null,null,null,null,"長野県","大町市","20212"]
[null,null,null,null,"長野県","飯山市","20213"]
[null,null,null,null,"長野県","茅野市","20214"]
[null,null,null,null,"長野県","塩尻市","20215"]
[null,null,null,null,"長野県","佐久市","20217"]
[null,null,null,null,"長野県","千曲市","20218"]
[null,null,null,null,"長野県","東御市","20219"]
[null,null,null,null,"長野県","南佐久郡小海町","20303"]
[null,null,null,null,"長野県","南佐久郡川上村","20304"]
[null,null,null,null,"長野県","南佐久郡南牧村","20305"]
[null,null,null,null,"長野県","南佐久郡南相木村","20306"]
[null,null,null,null,"長野県","南佐久郡北相木村","20307"]
[null,null,null,null,"長野県","南佐久郡佐久町穂町","20309"]
[null,null,null,null,"長野県","北佐久郡軽井沢町","20321"]
[null,null,null,null,"長野県","北佐久郡御代田町","20323"]
[null,null,null,null,"長野県","北佐久郡立科町","20324"]
[null,null,null,null,"長野県","小県郡長門町","20342"]
[null,null,null,null,"長野県","小県郡和田村","20347"]
[null,null,null,null,"長野県","小県郡青木村","20349"]
[null,null,null,null,"長野県","諏訪郡下諏訪町","20361"]
[null,null,null,null,"長野県","諏訪郡富士見町","20362"]
[null,null,null,null,"長野県","諏訪郡原村","20363"]
[null,null,null,null,"長野県","上伊那郡辰野町","20382"]
[null,null,null,null,"長野県","上伊那郡箕輪町","20383"]
[null,null,null,null,"長野県","上伊那郡飯島町","20384"]
[null,null,null,null,"長野県","上伊那郡南箕輪村","20385"]
[null,null,null,null,"長野県","上伊那郡中川村","20386"]
[null,null,null,null,"長野県","上伊那郡宮田村","20388"]
[null,null,null,null,"長野県","下伊那郡松川町","20402"]
[null,null,null,null,"長野県","下伊那郡高森町","20403"]
[null,null,null,null,"長野県","下伊那郡阿南町","20404"]
[null,null,null,null,"長野県","下伊那郡阿智村","20407"]
[null,null,null,null,"長野県","下伊那郡平谷村","20409"]
[null,null,null,null,"長野県","下伊那郡根羽村","20410"]
[null,null,null,null,"長野県","下伊那郡下條村","20411"]
[null,null,null,null,"長野県","下伊那郡売木村","20412"]
[null,null,null,null,"長野県","下伊那郡天龍村","20413"]
[null,null,null,null,"長野県","下伊那郡泰阜村","20414"]
[null,null,null,null,"長野県","下伊那郡喬木村","20415"]
[null,null,null,null,"長野県","下伊那郡豊丘村","20416"]
[null,null,null,null,"長野県","下伊那郡大鹿村","20417"]
[null,null,null,null,"長野県","下伊那郡上村","20418"]
[null,null,null,null,"長野県","下伊那郡南信濃村","20419"]
[null,null,null,null,"長野県","木曽郡木曽福島町","20421"]
[null,null,null,null,"長野県","木曽郡上松町","20422"]
[null,null,null,null,"長野県","木曽郡南木曽町","20423"]
[null,null,null,null,"長野県","木曽郡木祖村","20425"]
[null,null,null,null,"長野県","木曽郡日義村","20426"]
[null,null,null,null,"長野県","木曽郡開田村","20427"]
[null,null,null,null,"長野県","木曽郡三岳村","20428"]
[null,null,null,null,"長野県","木曽郡王滝村","20429"]
[null,null,null,null,"長野県","木曽郡大桑村","20430"]
[null,null,null,null,"長野県","東筑摩郡明科町","20441"]
[null,null,null,null,"長野県","東筑摩郡本城村","20444"]
[null,null,null,null,"長野県","東筑摩郡坂北村","20445"]
[null,null,null,null,"長野県","東筑摩郡麻績村","20446"]
[null,null,null,null,"長野県","東筑摩郡坂井村","20447"]
[null,null,null,null,"長野県","東筑摩郡生坂村","20448"]
[null,null,null,null,"長野県","東筑摩郡山形村","20450"]
[null,null,null,null,"長野県","東筑摩郡朝日村","20451"]
[null,null,null,null,"長野県","南安曇郡豊科町","20461"]
[null,null,null,null,"長野県","南安曇郡穂高町","20462"]
[null,null,null,null,"長野県","南安曇郡三郷村","20466"]
[null,null,null,null,"長野県","南安曇郡堀金村","20467"]
[null,null,null,null,"長野県","北安曇郡池田町","20481"]
[null,null,null,null,"長野県","北安曇郡松川村","20482"]
[null,null,null,null,"長野県","北安曇郡白馬村","20485"]
[null,null,null,null,"長野県","北安曇郡小谷村","20486"]
[null,null,null,null,"長野県","埴科郡坂城町","20521"]
[null,null,null,null,"長野県","上高井郡小布施町","20541"]
[null,null,null,null,"長野県","上高井郡高山村","20543"]
[null,null,null,null,"長野県","下高井郡山ノ内町","20561"]
[null,null,null,null,"長野県","下高井郡木島平村","20562"]
[null,null,null,null,"長野県","下高井郡野沢温泉村","20563"]
[null,null,null,null,"長野県","上水内郡信濃町","20583"]
[null,null,null,null,"長野県","上水内郡牟礼村","20584"]
[null,null,null,null,"長野県","上水内郡三水村","20585"]
[null,null,null,null,"長野県","上水内郡小川村","20588"]
[null,null,null,null,"長野県","下水内郡栄村","20602"]
[null,null,null,null,"岐阜県","岐阜市","21201"]
[null,null,null,null,"岐阜県","大垣市","21202"]
[null,null,null,null,"岐阜県","高山市","21203"]
[null,null,null,null,"岐阜県","多治見市","21204"]
[null,null,null,null,"岐阜県","関市","21205"]
[null,null,null,null,"岐阜県","中津川市","21206"]
[null,null,null,null,"岐阜県","美濃市","21207"]
[null,null,null,null,"岐阜県","瑞浪市","21208"]
[null,null,null,null,"岐阜県","羽島市","21209"]
[null,null,null,null,"岐阜県","恵那市","21210"]
[null,null,null,null,"岐阜県","美濃加茂市","21211"]
[null,null,null,null,"岐阜県","土岐市","21212"]
[null,null,null,null,"岐阜県","各務原市","21213"]
[null,null,null,null,"岐阜県","可児市","21214"]
[null,null,null,null,"岐阜県","山県市","21215"]
[null,null,null,null,"岐阜県","瑞穂市","21216"]
[null,null,null,null,"岐阜県","飛騨市","21217"]
[null,null,null,null,"岐阜県","本巣市","21218"]
[null,null,null,null,"岐阜県","郡上市","21219"]
[null,null,null,null,"岐阜県","下呂市","21220"]
[null,null,null,null,"岐阜県","海津市","21221"]
[null,null,null,null,"岐阜県","羽島郡岐南町","21302"]
[null,null,null,null,"岐阜県","羽島郡笠松町","21303"]
[null,null,null,null,"岐阜県","養老郡養老町","21341"]
[null,null,null,null,"岐阜県","不破郡垂井町","21361"]
[null,null,null,null,"岐阜県","不破郡関ヶ原町","21362"]
[null,null,null,null,"岐阜県","安八郡神戸町","21381"]
[null,null,null,null,"岐阜県","安八郡輪之内町","21382"]
[null,null,null,null,"岐阜県","安八郡安八町","21383"]
[null,null,null,null,"岐阜県","揖斐郡揖斐川町","21401"]
[null,null,null,null,"岐阜県","揖斐郡大野町","21403"]
[null,null,null,null,"岐阜県","揖斐郡池田町","21404"]
[null,null,null,null,"岐阜県","本巣郡北方町","21421"]
[null,null,null,null,"岐阜県","加茂郡坂祝町","21501"]
[null,null,null,null,"岐阜県","加茂郡富加町","21502"]
[null,null,null,null,"岐阜県","加茂郡川辺町","21503"]
[null,null,null,null,"岐阜県","加茂郡七宗町","21504"]
[null,null,null,null,"岐阜県","加茂郡八百津町","21505"]
[null,null,null,null,"岐阜県","加茂郡白川町","21506"]
[null,null,null,null,"岐阜県","加茂郡東白川村","21507"]
[null,null,null,null,"岐阜県","可児郡御嵩町","21521"]
[null,null,null,null,"岐阜県","大野郡白川村","21604"]
[null,null,null,null,"静岡県","静岡市葵区","22101"]
[null,null,null,null,"静岡県","静岡市駿河区","22102"]
[null,null,null,null,"静岡県","静岡市清水区","22103"]
[null,null,null,null,"静岡県","浜松市中区","22131"]
[null,null,null,null,"静岡県","浜松市東区","22132"]
[null,null,null,null,"静岡県","浜松市西区","22133"]
[null,null,null,null,"静岡県","浜松市南区","22134"]
[null,null,null,null,"静岡県","浜松市北区","22135"]
[null,null,null,null,"静岡県","浜松市浜北区","22136"]
[null,null,null,null,"静岡県","浜松市天竜区","22137"]
[null,null,null,null,"静岡県","沼津市","22203"]
[null,null,null,null,"静岡県","熱海市","22205"]
[null,null,null,null,"静岡県","三島市","22206"]
[null,null,null,null,"静岡県","富士宮市","22207"]
[null,null,null,null,"静岡県","伊東市","22208"]
[null,null,null,null,"静岡県","島田市","22209"]
[null,null,null,null,"静岡県","富士市","22210"]
[null,null,null,null,"静岡県","磐田市","22211"]
[null,null,null,null,"静岡県","焼津市","22212"]
[null,null,null,null,"静岡県","掛川市","22213"]
[null,null,null,null,"静岡県","藤枝市","22214"]
[null,null,null,null,"静岡県","御殿場市","22215"]
[null,null,null,null,"静岡県","袋井市","22216"]
[null,null,null,null,"静岡県","下田市","22219"]
[null,null,null,null,"静岡県","裾野市","22220"]
[null,null,null,null,"静岡県","湖西市","22221"]
[null,null,null,null,"静岡県","伊豆市","22222"]
[null,null,null,null,"静岡県","御前崎市","22223"]
[null,null,null,null,"静岡県","菊川市","22224"]
[null,null,null,null,"静岡県","伊豆の国市","22225"]
[null,null,null,null,"静岡県","牧之原市","22226"]
[null,null,null,null,"静岡県","賀茂郡東伊豆町","22301"]
[null,null,null,null,"静岡県","賀茂郡河津町","22302"]
[null,null,null,null,"静岡県","賀茂郡南伊豆町","22304"]
[null,null,null,null,"静岡県","賀茂郡松崎町","22305"]
[null,null,null,null,"静岡県","賀茂郡西伊豆町","22306"]
[null,null,null,null,"静岡県","田方郡函南町","22325"]
[null,null,null,null,"静岡県","駿東郡清水町","22341"]
[null,null,null,null,"静岡県","駿東郡長泉町","22342"]
[null,null,null,null,"静岡県","駿東郡小山町","22344"]
[null,null,null,null,"静岡県","榛原郡吉田町","22424"]
[null,null,null,null,"静岡県","榛原郡川根本町","22429"]
[null,null,null,null,"静岡県","周智郡森町","22461"]
[null,null,null,null,"愛知県","名古屋市千種区","23101"]
[null,null,null,null,"愛知県","名古屋市東区","23102"]
[null,null,null,null,"愛知県","名古屋市北区","23103"]
[null,null,null,null,"愛知県","名古屋市西区","23104"]
[null,null,null,null,"愛知県","名古屋市中村区","23105"]
[null,null,null,null,"愛知県","名古屋市中区","23106"]
[null,null,null,null,"愛知県","名古屋市昭和区","23107"]
[null,null,null,null,"愛知県","名古屋市瑞穂区","23108"]
[null,null,null,null,"愛知県","名古屋市熱田区","23109"]
[null,null,null,null,"愛知県","名古屋市中川区","23110"]
[null,null,null,null,"愛知県","名古屋市港区","23111"]
[null,null,null,null,"愛知県","名古屋市南区","23112"]
[null,null,null,null,"愛知県","名古屋市守山区","23113"]
[null,null,null,null,"愛知県","名古屋市緑区","23114"]
[null,null,null,null,"愛知県","名古屋市名東区","23115"]
[null,null,null,null,"愛知県","名古屋市天白区","23116"]
[null,null,null,null,"愛知県","豊橋市","23201"]
[null,null,null,null,"愛知県","岡崎市","23202"]
[null,null,null,null,"愛知県","一宮市","23203"]
[null,null,null,null,"愛知県","瀬戸市","23204"]
[null,null,null,null,"愛知県","半田市","23205"]
[null,null,null,null,"愛知県","春日井市","23206"]
[null,null,null,null,"愛知県","豊川市","23207"]
[null,null,null,null,"愛知県","津島市","23208"]
[null,null,null,null,"愛知県","碧南市","23209"]
[null,null,null,null,"愛知県","刈谷市","23210"]
[null,null,null,null,"愛知県","豊田市","23211"]
[null,null,null,null,"愛知県","安城市","23212"]
[null,null,null,null,"愛知県","西尾市","23213"]
[null,null,null,null,"愛知県","蒲郡市","23214"]
[null,null,null,null,"愛知県","犬山市","23215"]
[null,null,null,null,"愛知県","常滑市","23216"]
[null,null,null,null,"愛知県","江南市","23217"]
[null,null,null,null,"愛知県","小牧市","23219"]
[null,null,null,null,"愛知県","稲沢市","23220"]
[null,null,null,null,"愛知県","新城市","23221"]
[null,null,null,null,"愛知県","東海市","23222"]
[null,null,null,null,"愛知県","大府市","23223"]
[null,null,null,null,"愛知県","知多市","23224"]
[null,null,null,null,"愛知県","知立市","23225"]
[null,null,null,null,"愛知県","尾張旭市","23226"]
[null,null,null,null,"愛知県","高浜市","23227"]
[null,null,null,null,"愛知県","岩倉市","23228"]
[null,null,null,null,"愛知県","豊明市","23229"]
[null,null,null,null,"愛知県","日進市","23230"]
[null,null,null,null,"愛知県","田原市","23231"]
[null,null,null,null,"愛知県","愛西市","23232"]
[null,null,null,null,"愛知県","清須市","23233"]
[null,null,null,null,"愛知県","北名古屋市","23234"]
[null,null,null,null,"愛知県","弥富市","23235"]
[null,null,null,null,"愛知県","みよし市","23236"]
[null,null,null,null,"愛知県","あま市","23237"]
[null,null,null,null,"愛知県","長久手市","23238"]
[null,null,null,null,"愛知県","愛知郡東郷町","23302"]
[null,null,null,null,"愛知県","西春日井郡豊山町","23342"]
[null,null,null,null,"愛知県","丹羽郡大口町","23361"]
[null,null,null,null,"愛知県","丹羽郡扶桑町","23362"]
[null,null,null,null,"愛知県","海部郡大治町","23424"]
[null,null,null,null,"愛知県","海部郡蟹江町","23425"]
[null,null,null,null,"愛知県","海部郡飛島村","23427"]
[null,null,null,null,"愛知県","知多郡阿久比町","23441"]
[null,null,null,null,"愛知県","知多郡東浦町","23442"]
[null,null,null,null,"愛知県","知多郡南知多町","23445"]
[null,null,null,null,"愛知県","知多郡美浜町","23446"]
[null,null,null,null,"愛知県","知多郡武豊町","23447"]
[null,null,null,null,"愛知県","額田郡幸田町","23501"]
[null,null,null,null,"愛知県","北設楽郡設楽町","23561"]
[null,null,null,null,"愛知県","北設楽郡東栄町","23562"]
[null,null,null,null,"愛知県","北設楽郡豊根村","23563"]
[null,null,null,null,"愛知県","北設楽郡富山村","23564"]
[null,null,null,null,"愛知県","北設楽郡津具村","23565"]
[null,null,null,null,"愛知県","南設楽郡鳳来町","23581"]
[null,null,null,null,"愛知県","南設楽郡作手村","23582"]
[null,null,null,null,"三重県","津市","24201"]
[null,null,null,null,"三重県","四日市市","24202"]
[null,null,null,null,"三重県","伊勢市","24203"]
[null,null,null,null,"三重県","松阪市","24204"]
[null,null,null,null,"三重県","桑名市","24205"]
[null,null,null,null,"三重県","鈴鹿市","24207"]
[null,null,null,null,"三重県","名張市","24208"]
[null,null,null,null,"三重県","尾鷲市","24209"]
[null,null,null,null,"三重県","亀山市","24210"]
[null,null,null,null,"三重県","鳥羽市","24211"]
[null,null,null,null,"三重県","熊野市","24212"]
[null,null,null,null,"三重県","いなべ市","24214"]
[null,null,null,null,"三重県","志摩市","24215"]
[null,null,null,null,"三重県","伊賀市","24216"]
[null,null,null,null,"三重県","桑名郡木曽岬町","24303"]
[null,null,null,null,"三重県","員弁郡東員町","24324"]
[null,null,null,null,"三重県","三重郡菰野町","24341"]
[null,null,null,null,"三重県","三重郡朝日町","24343"]
[null,null,null,null,"三重県","三重郡川越町","24344"]
[null,null,null,null,"三重県","一志郡美杉村","24406"]
[null,null,null,null,"三重県","多気郡多気町","24441"]
[null,null,null,null,"三重県","多気郡明和町","24442"]
[null,null,null,null,"三重県","多気郡大台町","24443"]
[null,null,null,null,"三重県","度会郡玉城町","24461"]
[null,null,null,null,"三重県","度会郡度会町","24470"]
[null,null,null,null,"三重県","度会郡大紀町","24471"]
[null,null,null,null,"三重県","度会郡南伊勢町","24472"]
[null,null,null,null,"三重県","北牟婁郡紀北町","24543"]
[null,null,null,null,"三重県","南牟婁郡御浜町","24561"]
[null,null,null,null,"三重県","南牟婁郡紀宝町","24562"]
[null,null,null,null,"滋賀県","大津市","25201"]
[null,null,null,null,"滋賀県","彦根市","25202"]
[null,null,null,null,"滋賀県","長浜市","25203"]
[null,null,null,null,"滋賀県","近江八幡市","25204"]
[null,null,null,null,"滋賀県","草津市","25206"]
[null,null,null,null,"滋賀県","守山市","25207"]
[null,null,null,null,"滋賀県","栗東市","25208"]
[null,null,null,null,"滋賀県","甲賀市","25209"]
[null,null,null,null,"滋賀県","野洲市","25210"]
[null,null,null,null,"滋賀県","湖南市","25211"]
[null,null,null,null,"滋賀県","高島市","25212"]
[null,null,null,null,"滋賀県","東近江市","25213"]
[null,null,null,null,"滋賀県","米原市","25214"]
[null,null,null,null,"滋賀県","蒲生郡日野町","25383"]
[null,null,null,null,"滋賀県","蒲生郡竜王町","25384"]
[null,null,null,null,"滋賀県","愛知郡愛荘町","25425"]
[null,null,null,null,"滋賀県","犬上郡豊郷町","25441"]
[null,null,null,null,"滋賀県","犬上郡甲良町","25442"]
[null,null,null,null,"滋賀県","犬上郡多賀町","25443"]
[null,null,null,null,"京都府","京都市北区","26101"]
[null,null,null,null,"京都府","京都市上京区","26102"]
[null,null,null,null,"京都府","京都市左京区","26103"]
[null,null,null,null,"京都府","京都市中京区","26104"]
[null,null,null,null,"京都府","京都市東山区","26105"]
[null,null,null,null,"京都府","京都市下京区","26106"]
[null,null,null,null,"京都府","京都市南区","26107"]
[null,null,null,null,"京都府","京都市右京区","26108"]
[null,null,null,null,"京都府","京都市伏見区","26109"]
[null,null,null,null,"京都府","京都市山科区","26110"]
[null,null,null,null,"京都府","京都市西京区","26111"]
[null,null,null,null,"京都府","福知山市","26201"]
[null,null,null,null,"京都府","舞鶴市","26202"]
[null,null,null,null,"京都府","綾部市","26203"]
[null,null,null,null,"京都府","宇治市","26204"]
[null,null,null,null,"京都府","宮津市","26205"]
[null,null,null,null,"京都府","亀岡市","26206"]
[null,null,null,null,"京都府","城陽市","26207"]
[null,null,null,null,"京都府","向日市","26208"]
[null,null,null,null,"京都府","長岡京市","26209"]
[null,null,null,null,"京都府","八幡市","26210"]
[null,null,null,null,"京都府","京田辺市","26211"]
[null,null,null,null,"京都府","京丹後市","26212"]
[null,null,null,null,"京都府","南丹市","26213"]
[null,null,null,null,"京都府","木津川市","26214"]
[null,null,null,null,"京都府","乙訓郡大山崎町","26303"]
[null,null,null,null,"京都府","久世郡久御山町","26322"]
[null,null,null,null,"京都府","綴喜郡井手町","26343"]
[null,null,null,null,"京都府","綴喜郡宇治田原町","26344"]
[null,null,null,null,"京都府","相楽郡笠置町","26364"]
[null,null,null,null,"京都府","相楽郡和束町","26365"]
[null,null,null,null,"京都府","相楽郡精華町","26366"]
[null,null,null,null,"京都府","相楽郡南山城村","26367"]
[null,null,null,null,"京都府","船井郡丹波町","26403"]
[null,null,null,null,"京都府","与謝郡伊根町","26463"]
[null,null,null,null,"京都府","与謝郡与謝野町","26465"]
[null,null,null,null,"大阪府","大阪市都島区","27102"]
[null,null,null,null,"大阪府","大阪市福島区","27103"]
[null,null,null,null,"大阪府","大阪市此花区","27104"]
[null,null,null,null,"大阪府","大阪市西区","27106"]
[null,null,null,null,"大阪府","大阪市港区","27107"]
[null,null,null,null,"大阪府","大阪市大正区","27108"]
[null,null,null,null,"大阪府","大阪市天王寺区","27109"]
[null,null,null,null,"大阪府","大阪市浪速区","27111"]
[null,null,null,null,"大阪府","大阪市西淀川区","27113"]
[null,null,null,null,"大阪府","大阪市東淀川区","27114"]
[null,null,null,null,"大阪府","大阪市東成区","27115"]
[null,null,null,null,"大阪府","大阪市生野区","27116"]
[null,null,null,null,"大阪府","大阪市旭区","27117"]
[null,null,null,null,"大阪府","大阪市城東区","27118"]
[null,null,null,null,"大阪府","大阪市阿倍野区","27119"]
[null,null,null,null,"大阪府","大阪市住吉区","27120"]
[null,null,null,null,"大阪府","大阪市東住吉区","27121"]
[null,null,null,null,"大阪府","大阪市西成区","27122"]
[null,null,null,null,"大阪府","大阪市淀川区","27123"]
[null,null,null,null,"大阪府","大阪市鶴見区","27124"]
[null,null,null,null,"大阪府","大阪市住之江区","27125"]
[null,null,null,null,"大阪府","大阪市平野区","27126"]
[null,null,null,null,"大阪府","大阪市北区","27127"]
[null,null,null,null,"大阪府","大阪市中央区","27128"]
[null,null,null,null,"大阪府","堺市堺区","27141"]
[null,null,null,null,"大阪府","堺市中区","27142"]
[null,null,null,null,"大阪府","堺市東区","27143"]
[null,null,null,null,"大阪府","堺市西区","27144"]
[null,null,null,null,"大阪府","堺市南区","27145"]
[null,null,null,null,"大阪府","堺市北区","27146"]
[null,null,null,null,"大阪府","堺市美原区","27147"]
[null,null,null,null,"大阪府","岸和田市","27202"]
[null,null,null,null,"大阪府","豊中市","27203"]
[null,null,null,null,"大阪府","池田市","27204"]
[null,null,null,null,"大阪府","吹田市","27205"]
[null,null,null,null,"大阪府","泉大津市","27206"]
[null,null,null,null,"大阪府","高槻市","27207"]
[null,null,null,null,"大阪府","貝塚市","27208"]
[null,null,null,null,"大阪府","守口市","27209"]
[null,null,null,null,"大阪府","枚方市","27210"]
[null,null,null,null,"大阪府","茨木市","27211"]
[null,null,null,null,"大阪府","八尾市","27212"]
[null,null,null,null,"大阪府","泉佐野市","27213"]
[null,null,null,null,"大阪府","富田林市","27214"]
[null,null,null,null,"大阪府","寝屋川市","27215"]
[null,null,null,null,"大阪府","河内長野市","27216"]
[null,null,null,null,"大阪府","松原市","27217"]
[null,null,null,null,"大阪府","大東市","27218"]
[null,null,null,null,"大阪府","和泉市","27219"]
[null,null,null,null,"大阪府","箕面市","27220"]
[null,null,null,null,"大阪府","柏原市","27221"]
[null,null,null,null,"大阪府","羽曳野市","27222"]
[null,null,null,null,"大阪府","門真市","27223"]
[null,null,null,null,"大阪府","摂津市","27224"]
[null,null,null,null,"大阪府","高石市","27225"]
[null,null,null,null,"大阪府","藤井寺市","27226"]
[null,null,null,null,"大阪府","東大阪市","27227"]
[null,null,null,null,"大阪府","泉南市","27228"]
[null,null,null,null,"大阪府","四條畷市","27229"]
[null,null,null,null,"大阪府","交野市","27230"]
[null,null,null,null,"大阪府","大阪狭山市","27231"]
[null,null,null,null,"大阪府","阪南市","27232"]
[null,null,null,null,"大阪府","三島郡島本町","27301"]
[null,null,null,null,"大阪府","豊能郡豊能町","27321"]
[null,null,null,null,"大阪府","豊能郡能勢町","27322"]
[null,null,null,null,"大阪府","泉北郡忠岡町","27341"]
[null,null,null,null,"大阪府","泉南郡熊取町","27361"]
[null,null,null,null,"大阪府","泉南郡田尻町","27362"]
[null,null,null,null,"大阪府","泉南郡岬町","27366"]
[null,null,null,null,"大阪府","南河内郡太子町","27381"]
[null,null,null,null,"大阪府","南河内郡河南町","27382"]
[null,null,null,null,"大阪府","南河内郡千早赤阪村","27383"]
[null,null,null,null,"兵庫県","神戸市東灘区","28101"]
[null,null,null,null,"兵庫県","神戸市灘区","28102"]
[null,null,null,null,"兵庫県","神戸市兵庫区","28105"]
[null,null,null,null,"兵庫県","神戸市長田区","28106"]
[null,null,null,null,"兵庫県","神戸市須磨区","28107"]
[null,null,null,null,"兵庫県","神戸市垂水区","28108"]
[null,null,null,null,"兵庫県","神戸市北区","28109"]
[null,null,null,null,"兵庫県","神戸市中央区","28110"]
[null,null,null,null,"兵庫県","神戸市西区","28111"]
[null,null,null,null,"兵庫県","姫路市","28201"]
[null,null,null,null,"兵庫県","尼崎市","28202"]
[null,null,null,null,"兵庫県","明石市","28203"]
[null,null,null,null,"兵庫県","西宮市","28204"]
[null,null,null,null,"兵庫県","洲本市","28205"]
[null,null,null,null,"兵庫県","芦屋市","28206"]
[null,null,null,null,"兵庫県","伊丹市","28207"]
[null,null,null,null,"兵庫県","相生市","28208"]
[null,null,null,null,"兵庫県","豊岡市","28209"]
[null,null,null,null,"兵庫県","加古川市","28210"]
[null,null,null,null,"兵庫県","赤穂市","28212"]
[null,null,null,null,"兵庫県","西脇市","28213"]
[null,null,null,null,"兵庫県","宝塚市","28214"]
[null,null,null,null,"兵庫県","三木市","28215"]
[null,null,null,null,"兵庫県","高砂市","28216"]
[null,null,null,null,"兵庫県","川西市","28217"]
[null,null,null,null,"兵庫県","小野市","28218"]
[null,null,null,null,"兵庫県","三田市","28219"]
[null,null,null,null,"兵庫県","加西市","28220"]
[null,null,null,null,"兵庫県","篠山市","28221"]
[null,null,null,null,"兵庫県","養父市","28222"]
[null,null,null,null,"兵庫県","丹波市","28223"]
[null,null,null,null,"兵庫県","南あわじ市","28224"]
[null,null,null,null,"兵庫県","朝来市","28225"]
[null,null,null,null,"兵庫県","淡路市","28226"]
[null,null,null,null,"兵庫県","宍粟市","28227"]
[null,null,null,null,"兵庫県","加東市","28228"]
[null,null,null,null,"兵庫県","たつの市","28229"]
[null,null,null,null,"兵庫県","川辺郡猪名川町","28301"]
[null,null,null,null,"兵庫県","多可郡多可町","28365"]
[null,null,null,null,"兵庫県","加古郡稲美町","28381"]
[null,null,null,null,"兵庫県","加古郡播磨町","28382"]
[null,null,null,null,"兵庫県","神崎郡市川町","28442"]
[null,null,null,null,"兵庫県","神崎郡福崎町","28443"]
[null,null,null,null,"兵庫県","神崎郡神河町","28446"]
[null,null,null,null,"兵庫県","揖保郡太子町","28464"]
[null,null,null,null,"兵庫県","赤穂郡上郡町","28481"]
[null,null,null,null,"兵庫県","佐用郡佐用町","28501"]
[null,null,null,null,"兵庫県","美方郡香美町","28585"]
[null,null,null,null,"兵庫県","美方郡新温泉町","28586"]
[null,null,null,null,"奈良県","奈良市","29201"]
[null,null,null,null,"奈良県","大和高田市","29202"]
[null,null,null,null,"奈良県","大和郡山市","29203"]
[null,null,null,null,"奈良県","天理市","29204"]
[null,null,null,null,"奈良県","橿原市","29205"]
[null,null,null,null,"奈良県","桜井市","29206"]
[null,null,null,null,"奈良県","五條市","29207"]
[null,null,null,null,"奈良県","御所市","29208"]
[null,null,null,null,"奈良県","生駒市","29209"]
[null,null,null,null,"奈良県","香芝市","29210"]
[null,null,null,null,"奈良県","葛城市","29211"]
[null,null,null,null,"奈良県","宇陀市","29212"]
[null,null,null,null,"奈良県","山辺郡山添村","29322"]
[null,null,null,null,"奈良県","生駒郡平群町","29342"]
[null,null,null,null,"奈良県","生駒郡三郷町","29343"]
[null,null,null,null,"奈良県","生駒郡斑鳩町","29344"]
[null,null,null,null,"奈良県","生駒郡安堵町","29345"]
[null,null,null,null,"奈良県","磯城郡川西町","29361"]
[null,null,null,null,"奈良県","磯城郡三宅町","29362"]
[null,null,null,null,"奈良県","磯城郡田原本町","29363"]
[null,null,null,null,"奈良県","宇陀郡曽爾村","29385"]
[null,null,null,null,"奈良県","宇陀郡御杖村","29386"]
[null,null,null,null,"奈良県","高市郡高取町","29401"]
[null,null,null,null,"奈良県","高市郡明日香村","29402"]
[null,null,null,null,"奈良県","北葛城郡上牧町","29424"]
[null,null,null,null,"奈良県","北葛城郡王寺町","29425"]
[null,null,null,null,"奈良県","北葛城郡広陵町","29426"]
[null,null,null,null,"奈良県","北葛城郡河合町","29427"]
[null,null,null,null,"奈良県","吉野郡吉野町","29441"]
[null,null,null,null,"奈良県","吉野郡大淀町","29442"]
[null,null,null,null,"奈良県","吉野郡下市町","29443"]
[null,null,null,null,"奈良県","吉野郡黒滝村","29444"]
[null,null,null,null,"奈良県","吉野郡天川村","29446"]
[null,null,null,null,"奈良県","吉野郡野迫川村","29447"]
[null,null,null,null,"奈良県","吉野郡十津川村","29449"]
[null,null,null,null,"奈良県","吉野郡下北山村","29450"]
[null,null,null,null,"奈良県","吉野郡上北山村","29451"]
[null,null,null,null,"奈良県","吉野郡川上村","29452"]
[null,null,null,null,"奈良県","吉野郡東吉野村","29453"]
[null,null,null,null,"和歌山県","和歌山市","30201"]
[null,null,null,null,"和歌山県","海南市","30202"]
[null,null,null,null,"和歌山県","橋本市","30203"]
[null,null,null,null,"和歌山県","有田市","30204"]
[null,null,null,null,"和歌山県","御坊市","30205"]
[null,null,null,null,"和歌山県","田辺市","30206"]
[null,null,null,null,"和歌山県","新宮市","30207"]
[null,null,null,null,"和歌山県","紀の川市","30208"]
[null,null,null,null,"和歌山県","岩出市","30209"]
[null,null,null,null,"和歌山県","海草郡紀美野町","30304"]
[null,null,null,null,"和歌山県","伊都郡かつらぎ町","30341"]
[null,null,null,null,"和歌山県","伊都郡九度山町","30343"]
[null,null,null,null,"和歌山県","伊都郡高野町","30344"]
[null,null,null,null,"和歌山県","伊都郡花園村","30345"]
[null,null,null,null,"和歌山県","有田郡湯浅町","30361"]
[null,null,null,null,"和歌山県","有田郡広川町","30362"]
[null,null,null,null,"和歌山県","有田郡有田川町","30366"]
[null,null,null,null,"和歌山県","日高郡美浜町","30381"]
[null,null,null,null,"和歌山県","日高郡日高町","30382"]
[null,null,null,null,"和歌山県","日高郡由良町","30383"]
[null,null,null,null,"和歌山県","日高郡印南町","30390"]
[null,null,null,null,"和歌山県","日高郡南部町","30391"]
[null,null,null,null,"和歌山県","日高郡日高川町","30392"]
[null,null,null,null,"和歌山県","西牟婁郡白浜町","30401"]
[null,null,null,null,"和歌山県","西牟婁郡上富田町","30404"]
[null,null,null,null,"和歌山県","西牟婁郡すさみ町","30406"]
[null,null,null,null,"和歌山県","東牟婁郡那智勝浦町","30421"]
[null,null,null,null,"和歌山県","東牟婁郡太地町","30422"]
[null,null,null,null,"和歌山県","東牟婁郡古座川町","30424"]
[null,null,null,null,"和歌山県","東牟婁郡熊野川町","30425"]
[null,null,null,null,"和歌山県","東牟婁郡北山村","30427"]
[null,null,null,null,"和歌山県","東牟婁郡串本町","30428"]
[null,null,null,null,"鳥取県","鳥取市","31201"]
[null,null,null,null,"鳥取県","米子市","31202"]
[null,null,null,null,"鳥取県","倉吉市","31203"]
[null,null,null,null,"鳥取県","境港市","31204"]
[null,null,null,null,"鳥取県","岩美郡岩美町","31302"]
[null,null,null,null,"鳥取県","八頭郡若桜町","31325"]
[null,null,null,null,"鳥取県","八頭郡智頭町","31328"]
[null,null,null,null,"鳥取県","八頭郡八頭町","31329"]
[null,null,null,null,"鳥取県","東伯郡三朝町","31364"]
[null,null,null,null,"鳥取県","東伯郡湯梨浜町","31370"]
[null,null,null,null,"鳥取県","東伯郡北栄町","31372"]
[null,null,null,null,"鳥取県","東伯郡琴浦町","31378"]
[null,null,null,null,"鳥取県","西伯郡日吉津村","31384"]
[null,null,null,null,"鳥取県","西伯郡大山町","31386"]
[null,null,null,null,"鳥取県","西伯郡南部町","31389"]
[null,null,null,null,"鳥取県","西伯郡伯耆町","31390"]
[null,null,null,null,"鳥取県","日野郡日南町","31401"]
[null,null,null,null,"鳥取県","日野郡日野町","31402"]
[null,null,null,null,"鳥取県","日野郡江府町","31403"]
[null,null,null,null,"島根県","松江市","32201"]
[null,null,null,null,"島根県","浜田市","32202"]
[null,null,null,null,"島根県","出雲市","32203"]
[null,null,null,null,"島根県","益田市","32204"]
[null,null,null,null,"島根県","大田市","32205"]
[null,null,null,null,"島根県","安来市","32206"]
[null,null,null,null,"島根県","江津市","32207"]
[null,null,null,null,"島根県","雲南市","32209"]
[null,null,null,null,"島根県","仁多郡奥出雲町","32343"]
[null,null,null,null,"島根県","飯石郡飯南町","32386"]
[null,null,null,null,"島根県","邑智郡川本町","32441"]
[null,null,null,null,"島根県","邑智郡美郷町","32448"]
[null,null,null,null,"島根県","邑智郡邑南町","32449"]
[null,null,null,null,"島根県","鹿足郡津和野町","32501"]
[null,null,null,null,"島根県","鹿足郡吉賀町","32505"]
[null,null,null,null,"島根県","隠岐郡海士町","32525"]
[null,null,null,null,"島根県","隠岐郡西ノ島町","32526"]
[null,null,null,null,"島根県","隠岐郡知夫村","32527"]
[null,null,null,null,"島根県","隠岐郡隠岐の島町","32528"]
[null,null,null,null,"岡山県","岡山市","33100"]
[null,null,null,null,"岡山県","岡山市北区","33101"]
[null,null,null,null,"岡山県","岡山市中区","33102"]
[null,null,null,null,"岡山県","岡山市東区","33103"]
[null,null,null,null,"岡山県","岡山市南区","33104"]
[null,null,null,null,"岡山県","倉敷市","33202"]
[null,null,null,null,"岡山県","津山市","33203"]
[null,null,null,null,"岡山県","玉野市","33204"]
[null,null,null,null,"岡山県","笠岡市","33205"]
[null,null,null,null,"岡山県","井原市","33207"]
[null,null,null,null,"岡山県","総社市","33208"]
[null,null,null,null,"岡山県","高梁市","33209"]
[null,null,null,null,"岡山県","新見市","33210"]
[null,null,null,null,"岡山県","備前市","33211"]
[null,null,null,null,"岡山県","瀬戸内市","33212"]
[null,null,null,null,"岡山県","赤磐市","33213"]
[null,null,null,null,"岡山県","真庭市","33214"]
[null,null,null,null,"岡山県","美作市","33215"]
[null,null,null,null,"岡山県","浅口市","33216"]
[null,null,null,null,"岡山県","和気郡和気町","33346"]
[null,null,null,null,"岡山県","都窪郡早島町","33423"]
[null,null,null,null,"岡山県","浅口郡里庄町","33445"]
[null,null,null,null,"岡山県","小田郡矢掛町","33461"]
[null,null,null,null,"岡山県","真庭郡新庄村","33586"]
[null,null,null,null,"岡山県","苫田郡鏡野町","33606"]
[null,null,null,null,"岡山県","勝田郡勝央町","33622"]
[null,null,null,null,"岡山県","勝田郡奈義町","33623"]
[null,null,null,null,"岡山県","英田郡西粟倉村","33643"]
[null,null,null,null,"岡山県","久米郡久米南町","33663"]
[null,null,null,null,"岡山県","久米郡美咲町","33666"]
[null,null,null,null,"岡山県","加賀郡吉備中央町","33681"]
[null,null,null,null,"広島県","広島市中区","34101"]
[null,null,null,null,"広島県","広島市東区","34102"]
[null,null,null,null,"広島県","広島市南区","34103"]
[null,null,null,null,"広島県","広島市西区","34104"]
[null,null,null,null,"広島県","広島市安佐南区","34105"]
[null,null,null,null,"広島県","広島市安佐北区","34106"]
[null,null,null,null,"広島県","広島市安芸区","34107"]
[null,null,null,null,"広島県","広島市佐伯区","34108"]
[null,null,null,null,"広島県","呉市","34202"]
[null,null,null,null,"広島県","竹原市","34203"]
[null,null,null,null,"広島県","三原市","34204"]
[null,null,null,null,"広島県","尾道市","34205"]
[null,null,null,null,"広島県","福山市","34207"]
[null,null,null,null,"広島県","府中市","34208"]
[null,null,null,null,"広島県","三次市","34209"]
[null,null,null,null,"広島県","庄原市","34210"]
[null,null,null,null,"広島県","大竹市","34211"]
[null,null,null,null,"広島県","東広島市","34212"]
[null,null,null,null,"広島県","廿日市市","34213"]
[null,null,null,null,"広島県","安芸高田市","34214"]
[null,null,null,null,"広島県","江田島市","34215"]
[null,null,null,null,"広島県","安芸郡府中町","34302"]
[null,null,null,null,"広島県","安芸郡海田町","34304"]
[null,null,null,null,"広島県","安芸郡熊野町","34307"]
[null,null,null,null,"広島県","安芸郡坂町","34309"]
[null,null,null,null,"広島県","佐伯郡宮島町","34327"]
[null,null,null,null,"広島県","山県郡安芸太田町","34368"]
[null,null,null,null,"広島県","山県郡北広島町","34369"]
[null,null,null,null,"広島県","豊田郡大崎上島町","34431"]
[null,null,null,null,"広島県","世羅郡世羅町","34462"]
[null,null,null,null,"広島県","神石郡神石高原町","34545"]
[null,null,null,null,"山口県","下関市","35201"]
[null,null,null,null,"山口県","宇部市","35202"]
[null,null,null,null,"山口県","山口市","35203"]
[null,null,null,null,"山口県","萩市","35204"]
[null,null,null,null,"山口県","防府市","35206"]
[null,null,null,null,"山口県","下松市","35207"]
[null,null,null,null,"山口県","岩国市","35208"]
[null,null,null,null,"山口県","光市","35210"]
[null,null,null,null,"山口県","長門市","35211"]
[null,null,null,null,"山口県","柳井市","35212"]
[null,null,null,null,"山口県","美祢市","35213"]
[null,null,null,null,"山口県","周南市","35215"]
[null,null,null,null,"山口県","山陽小野田市","35216"]
[null,null,null,null,"山口県","大島郡周防大島町","35305"]
[null,null,null,null,"山口県","玖珂郡和木町","35321"]
[null,null,null,null,"山口県","熊毛郡上関町","35341"]
[null,null,null,null,"山口県","熊毛郡田布施町","35343"]
[null,null,null,null,"山口県","熊毛郡平生町","35344"]
[null,null,null,null,"山口県","阿武郡阿武町","35502"]
[null,null,null,null,"徳島県","徳島市","36201"]
[null,null,null,null,"徳島県","鳴門市","36202"]
[null,null,null,null,"徳島県","小松島市","36203"]
[null,null,null,null,"徳島県","阿南市","36204"]
[null,null,null,null,"徳島県","吉野川市","36205"]
[null,null,null,null,"徳島県","阿波市","36206"]
[null,null,null,null,"徳島県","美馬市","36207"]
[null,null,null,null,"徳島県","三好市","36208"]
[null,null,null,null,"徳島県","勝浦郡勝浦町","36301"]
[null,null,null,null,"徳島県","勝浦郡上勝町","36302"]
[null,null,null,null,"徳島県","名東郡佐那河内村","36321"]
[null,null,null,null,"徳島県","名西郡石井町","36341"]
[null,null,null,null,"徳島県","名西郡神山町","36342"]
[null,null,null,null,"徳島県","那賀郡那賀町","36368"]
[null,null,null,null,"徳島県","海部郡牟岐町","36383"]
[null,null,null,null,"徳島県","海部郡美波町","36387"]
[null,null,null,null,"徳島県","海部郡海陽町","36388"]
[null,null,null,null,"徳島県","板野郡松茂町","36401"]
[null,null,null,null,"徳島県","板野郡北島町","36402"]
[null,null,null,null,"徳島県","板野郡藍住町","36403"]
[null,null,null,null,"徳島県","板野郡板野町","36404"]
[null,null,null,null,"徳島県","板野郡上板町","36405"]
[null,null,null,null,"徳島県","美馬郡つるぎ町","36468"]
[null,null,null,null,"徳島県","三好郡東みよし町","36489"]
[null,null,null,null,"香川県","高松市","37201"]
[null,null,null,null,"香川県","丸亀市","37202"]
[null,null,null,null,"香川県","坂出市","37203"]
[null,null,null,null,"香川県","善通寺市","37204"]
[null,null,null,null,"香川県","観音寺市","37205"]
[null,null,null,null,"香川県","さぬき市","37206"]
[null,null,null,null,"香川県","東かがわ市","37207"]
[null,null,null,null,"香川県","三豊市","37208"]
[null,null,null,null,"香川県","小豆郡土庄町","37322"]
[null,null,null,null,"香川県","小豆郡小豆島町","37324"]
[null,null,null,null,"香川県","木田郡三木町","37341"]
[null,null,null,null,"香川県","香川郡直島町","37364"]
[null,null,null,null,"香川県","綾歌郡宇多津町","37386"]
[null,null,null,null,"香川県","綾歌郡綾川町","37387"]
[null,null,null,null,"香川県","仲多度郡琴平町","37403"]
[null,null,null,null,"香川県","仲多度郡多度津町","37404"]
[null,null,null,null,"香川県","仲多度郡まんのう町","37406"]
[null,null,null,null,"愛媛県","松山市","38201"]
[null,null,null,null,"愛媛県","今治市","38202"]
[null,null,null,null,"愛媛県","宇和島市","38203"]
[null,null,null,null,"愛媛県","八幡浜市","38204"]
[null,null,null,null,"愛媛県","新居浜市","38205"]
[null,null,null,null,"愛媛県","西条市","38206"]
[null,null,null,null,"愛媛県","大洲市","38207"]
[null,null,null,null,"愛媛県","伊予市","38210"]
[null,null,null,null,"愛媛県","四国中央市","38213"]
[null,null,null,null,"愛媛県","西予市","38214"]
[null,null,null,null,"愛媛県","東温市","38215"]
[null,null,null,null,"愛媛県","越智郡上島町","38356"]
[null,null,null,null,"愛媛県","上浮穴郡久万高原町","38386"]
[null,null,null,null,"愛媛県","伊予郡松前町","38401"]
[null,null,null,null,"愛媛県","伊予郡砥部町","38402"]
[null,null,null,null,"愛媛県","西宇和郡伊方町","38442"]
[null,null,null,null,"愛媛県","北宇和郡松野町","38484"]
[null,null,null,null,"愛媛県","北宇和郡鬼北町","38488"]
[null,null,null,null,"愛媛県","南宇和郡愛南町","38506"]
[null,null,null,null,"高知県","高知市","39201"]
[null,null,null,null,"高知県","室戸市","39202"]
[null,null,null,null,"高知県","安芸市","39203"]
[null,null,null,null,"高知県","南国市","39204"]
[null,null,null,null,"高知県","土佐市","39205"]
[null,null,null,null,"高知県","須崎市","39206"]
[null,null,null,null,"高知県","宿毛市","39208"]
[null,null,null,null,"高知県","土佐清水市","39209"]
[null,null,null,null,"高知県","四万十市","39210"]
[null,null,null,null,"高知県","香南市","39211"]
[null,null,null,null,"高知県","香美市","39212"]
[null,null,null,null,"高知県","安芸郡東洋町","39301"]
[null,null,null,null,"高知県","安芸郡奈半利町","39302"]
[null,null,null,null,"高知県","安芸郡田野町","39303"]
[null,null,null,null,"高知県","安芸郡安田町","39304"]
[null,null,null,null,"高知県","安芸郡北川村","39305"]
[null,null,null,null,"高知県","安芸郡馬路村","39306"]
[null,null,null,null,"高知県","安芸郡芸西村","39307"]
[null,null,null,null,"高知県","長岡郡本山町","39341"]
[null,null,null,null,"高知県","長岡郡大豊町","39344"]
[null,null,null,null,"高知県","土佐郡土佐町","39363"]
[null,null,null,null,"高知県","土佐郡大川村","39364"]
[null,null,null,null,"高知県","吾川郡いの町","39386"]
[null,null,null,null,"高知県","吾川郡仁淀川町","39387"]
[null,null,null,null,"高知県","高岡郡中土佐町","39401"]
[null,null,null,null,"高知県","高岡郡佐川町","39402"]
[null,null,null,null,"高知県","高岡郡越知町","39403"]
[null,null,null,null,"高知県","高岡郡梼原町","39405"]
[null,null,null,null,"高知県","高岡郡日高村","39410"]
[null,null,null,null,"高知県","高岡郡津野町","39411"]
[null,null,null,null,"高知県","高岡郡四万十町","39412"]
[null,null,null,null,"高知県","幡多郡大月町","39424"]
[null,null,null,null,"高知県","幡多郡三原村","39427"]
[null,null,null,null,"高知県","幡多郡黒潮町","39428"]
[null,null,null,null,"福岡県","北九州市門司区","40101"]
[null,null,null,null,"福岡県","北九州市若松区","40103"]
[null,null,null,null,"福岡県","北九州市戸畑区","40105"]
[null,null,null,null,"福岡県","北九州市小倉北区","40106"]
[null,null,null,null,"福岡県","北九州市小倉南区","40107"]
[null,null,null,null,"福岡県","北九州市八幡東区","40108"]
[null,null,null,null,"福岡県","北九州市八幡西区","40109"]
[null,null,null,null,"福岡県","福岡市東区","40131"]
[null,null,null,null,"福岡県","福岡市博多区","40132"]
[null,null,null,null,"福岡県","福岡市中央区","40133"]
[null,null,null,null,"福岡県","福岡市南区","40134"]
[null,null,null,null,"福岡県","福岡市西区","40135"]
[null,null,null,null,"福岡県","福岡市城南区","40136"]
[null,null,null,null,"福岡県","福岡市早良区","40137"]
[null,null,null,null,"福岡県","大牟田市","40202"]
[null,null,null,null,"福岡県","久留米市","40203"]
[null,null,null,null,"福岡県","直方市","40204"]
[null,null,null,null,"福岡県","飯塚市","40205"]
[null,null,null,null,"福岡県","田川市","40206"]
[null,null,null,null,"福岡県","柳川市","40207"]
[null,null,null,null,"福岡県","八女市","40210"]
[null,null,null,null,"福岡県","筑後市","40211"]
[null,null,null,null,"福岡県","大川市","40212"]
[null,null,null,null,"福岡県","行橋市","40213"]
[null,null,null,null,"福岡県","豊前市","40214"]
[null,null,null,null,"福岡県","中間市","40215"]
[null,null,null,null,"福岡県","小郡市","40216"]
[null,null,null,null,"福岡県","筑紫野市","40217"]
[null,null,null,null,"福岡県","春日市","40218"]
[null,null,null,null,"福岡県","大野城市","40219"]
[null,null,null,null,"福岡県","宗像市","40220"]
[null,null,null,null,"福岡県","太宰府市","40221"]
[null,null,null,null,"福岡県","古賀市","40223"]
[null,null,null,null,"福岡県","福津市","40224"]
[null,null,null,null,"福岡県","うきは市","40225"]
[null,null,null,null,"福岡県","宮若市","40226"]
[null,null,null,null,"福岡県","嘉麻市","40227"]
[null,null,null,null,"福岡県","朝倉市","40228"]
[null,null,null,null,"福岡県","みやま市","40229"]
[null,null,null,null,"福岡県","糸島市","40230"]
[null,null,null,null,"福岡県","筑紫郡那珂川町","40305"]
[null,null,null,null,"福岡県","糟屋郡宇美町","40341"]
[null,null,null,null,"福岡県","糟屋郡篠栗町","40342"]
[null,null,null,null,"福岡県","糟屋郡志免町","40343"]
[null,null,null,null,"福岡県","糟屋郡須惠町","40344"]
[null,null,null,null,"福岡県","糟屋郡新宮町","40345"]
[null,null,null,null,"福岡県","糟屋郡久山町","40348"]
[null,null,null,null,"福岡県","糟屋郡粕屋町","40349"]
[null,null,null,null,"福岡県","遠賀郡芦屋町","40381"]
[null,null,null,null,"福岡県","遠賀郡水巻町","40382"]
[null,null,null,null,"福岡県","遠賀郡岡垣町","40383"]
[null,null,null,null,"福岡県","遠賀郡遠賀町","40384"]
[null,null,null,null,"福岡県","鞍手郡小竹町","40401"]
[null,null,null,null,"福岡県","鞍手郡鞍手町","40402"]
[null,null,null,null,"福岡県","嘉穂郡桂川町","40421"]
[null,null,null,null,"福岡県","朝倉郡筑前町","40447"]
[null,null,null,null,"福岡県","朝倉郡東峰村","40448"]
[null,null,null,null,"福岡県","三井郡大刀洗町","40503"]
[null,null,null,null,"福岡県","三潴郡大木町","40522"]
[null,null,null,null,"福岡県","八女郡広川町","40544"]
[null,null,null,null,"福岡県","田川郡香春町","40601"]
[null,null,null,null,"福岡県","田川郡添田町","40602"]
[null,null,null,null,"福岡県","田川郡糸田町","40604"]
[null,null,null,null,"福岡県","田川郡川崎町","40605"]
[null,null,null,null,"福岡県","田川郡大任町","40608"]
[null,null,null,null,"福岡県","田川郡赤村","40609"]
[null,null,null,null,"福岡県","田川郡福智町","40610"]
[null,null,null,null,"福岡県","京都郡苅田町","40621"]
[null,null,null,null,"福岡県","京都郡みやこ町","40625"]
[null,null,null,null,"福岡県","築上郡吉富町","40642"]
[null,null,null,null,"福岡県","築上郡上毛町","40646"]
[null,null,null,null,"福岡県","築上郡築上町","40647"]
[null,null,null,null,"佐賀県","佐賀市","41201"]
[null,null,null,null,"佐賀県","唐津市","41202"]
[null,null,null,null,"佐賀県","鳥栖市","41203"]
[null,null,null,null,"佐賀県","多久市","41204"]
[null,null,null,null,"佐賀県","伊万里市","41205"]
[null,null,null,null,"佐賀県","武雄市","41206"]
[null,null,null,null,"佐賀県","鹿島市","41207"]
[null,null,null,null,"佐賀県","小城市","41208"]
[null,null,null,null,"佐賀県","嬉野市","41209"]
[null,null,null,null,"佐賀県","神崎市","41210"]
[null,null,null,null,"佐賀県","神埼郡吉野ヶ里町","41327"]
[null,null,null,null,"佐賀県","三養基郡基山町","41341"]
[null,null,null,null,"佐賀県","三養基郡上峰町","41345"]
[null,null,null,null,"佐賀県","三養基郡みやき町","41346"]
[null,null,null,null,"佐賀県","東松浦郡玄海町","41387"]
[null,null,null,null,"佐賀県","西松浦郡有田町","41401"]
[null,null,null,null,"佐賀県","杵島郡大町町","41423"]
[null,null,null,null,"佐賀県","杵島郡江北町","41424"]
[null,null,null,null,"佐賀県","杵島郡白石町","41425"]
[null,null,null,null,"佐賀県","藤津郡太良町","41441"]
[null,null,null,null,"長崎県","長崎市","42201"]
[null,null,null,null,"長崎県","佐世保市","42202"]
[null,null,null,null,"長崎県","島原市","42203"]
[null,null,null,null,"長崎県","諌早市","42204"]
[null,null,null,null,"長崎県","大村市","42205"]
[null,null,null,null,"長崎県","平戸市","42207"]
[null,null,null,null,"長崎県","松浦市","42208"]
[null,null,null,null,"長崎県","対馬市","42209"]
[null,null,null,null,"長崎県","壱岐市","42210"]
[null,null,null,null,"長崎県","五島市","42211"]
[null,null,null,null,"長崎県","西海市","42212"]
[null,null,null,null,"長崎県","雲仙市","42213"]
[null,null,null,null,"長崎県","南島原市","42214"]
[null,null,null,null,"長崎県","西彼杵郡長与町","42307"]
[null,null,null,null,"長崎県","西彼杵郡時津町","42308"]
[null,null,null,null,"長崎県","東彼杵郡東彼杵町","42321"]
[null,null,null,null,"長崎県","東彼杵郡川棚町","42322"]
[null,null,null,null,"長崎県","東彼杵郡波佐見町","42323"]
[null,null,null,null,"長崎県","北松浦郡小値賀町","42383"]
[null,null,null,null,"長崎県","北松浦郡佐々町","42391"]
[null,null,null,null,"長崎県","南松浦郡新上五島町","42411"]
[null,null,null,null,"熊本県","熊本市中央区","43101"]
[null,null,null,null,"熊本県","熊本市東区","43102"]
[null,null,null,null,"熊本県","熊本市西区","43103"]
[null,null,null,null,"熊本県","熊本市南区","43104"]
[null,null,null,null,"熊本県","熊本市北区","43105"]
[null,null,null,null,"熊本県","八代市","43202"]
[null,null,null,null,"熊本県","人吉市","43203"]
[null,null,null,null,"熊本県","荒尾市","43204"]
[null,null,null,null,"熊本県","水俣市","43205"]
[null,null,null,null,"熊本県","玉名市","43206"]
[null,null,null,null,"熊本県","山鹿市","43208"]
[null,null,null,null,"熊本県","菊池市","43210"]
[null,null,null,null,"熊本県","宇土市","43211"]
[null,null,null,null,"熊本県","上天草市","43212"]
[null,null,null,null,"熊本県","宇城市","43213"]
[null,null,null,null,"熊本県","阿蘇市","43214"]
[null,null,null,null,"熊本県","天草市","43215"]
[null,null,null,null,"熊本県","合志市","43216"]
[null,null,null,null,"熊本県","下益城郡美里町","43348"]
[null,null,null,null,"熊本県","玉名郡玉東町","43364"]
[null,null,null,null,"熊本県","玉名郡南関町","43367"]
[null,null,null,null,"熊本県","玉名郡長洲町","43368"]
[null,null,null,null,"熊本県","玉名郡和水町","43369"]
[null,null,null,null,"熊本県","菊池郡大津町","43403"]
[null,null,null,null,"熊本県","菊池郡菊陽町","43404"]
[null,null,null,null,"熊本県","阿蘇郡南小国町","43423"]
[null,null,null,null,"熊本県","阿蘇郡小国町","43424"]
[null,null,null,null,"熊本県","阿蘇郡産山村","43425"]
[null,null,null,null,"熊本県","阿蘇郡高森町","43428"]
[null,null,null,null,"熊本県","阿蘇郡西原村","43432"]
[null,null,null,null,"熊本県","阿蘇郡南阿蘇村","43433"]
[null,null,null,null,"熊本県","上益城郡御船町","43441"]
[null,null,null,null,"熊本県","上益城郡嘉島町","43442"]
[null,null,null,null,"熊本県","上益城郡益城町","43443"]
[null,null,null,null,"熊本県","上益城郡甲佐町","43444"]
[null,null,null,null,"熊本県","上益城郡山都町","43447"]
[null,null,null,null,"熊本県","八代郡氷川町","43468"]
[null,null,null,null,"熊本県","葦北郡芦北町","43482"]
[null,null,null,null,"熊本県","葦北郡津奈木町","43484"]
[null,null,null,null,"熊本県","球磨郡錦町","43501"]
[null,null,null,null,"熊本県","球磨郡多良木町","43505"]
[null,null,null,null,"熊本県","球磨郡湯前町","43506"]
[null,null,null,null,"熊本県","球磨郡水上村","43507"]
[null,null,null,null,"熊本県","球磨郡相良村","43510"]
[null,null,null,null,"熊本県","球磨郡五木村","43511"]
[null,null,null,null,"熊本県","球磨郡山江村","43512"]
[null,null,null,null,"熊本県","球磨郡球磨村","43513"]
[null,null,null,null,"熊本県","球磨郡あさぎり町","43514"]
[null,null,null,null,"熊本県","天草郡苓北町","43531"]
[null,null,null,null,"大分県","大分市","44201"]
[null,null,null,null,"大分県","別府市","44202"]
[null,null,null,null,"大分県","中津市","44203"]
[null,null,null,null,"大分県","日田市","44204"]
[null,null,null,null,"大分県","佐伯市","44205"]
[null,null,null,null,"大分県","臼杵市","44206"]
[null,null,null,null,"大分県","津久見市","44207"]
[null,null,null,null,"大分県","竹田市","44208"]
[null,null,null,null,"大分県","豊後高田市","44209"]
[null,null,null,null,"大分県","杵築市","44210"]
[null,null,null,null,"大分県","宇佐市","44211"]
[null,null,null,null,"大分県","豊後大野市","44212"]
[null,null,null,null,"大分県","由布市","44213"]
[null,null,null,null,"大分県","国東市","44214"]
[null,null,null,null,"大分県","東国東郡姫島村","44322"]
[null,null,null,null,"大分県","速見郡日出町","44341"]
[null,null,null,null,"大分県","玖珠郡九重町","44461"]
[null,null,null,null,"大分県","玖珠郡玖珠町","44462"]
[null,null,null,null,"宮崎県","宮崎市","45201"]
[null,null,null,null,"宮崎県","都城市","45202"]
[null,null,null,null,"宮崎県","延岡市","45203"]
[null,null,null,null,"宮崎県","日南市","45204"]
[null,null,null,null,"宮崎県","小林市","45205"]
[null,null,null,null,"宮崎県","日向市","45206"]
[null,null,null,null,"宮崎県","串間市","45207"]
[null,null,null,null,"宮崎県","西都市","45208"]
[null,null,null,null,"宮崎県","えびの市","45209"]
[null,null,null,null,"宮崎県","北諸県郡三股町","45341"]
[null,null,null,null,"宮崎県","西諸県郡高原町","45361"]
[null,null,null,null,"宮崎県","東諸県郡国富町","45382"]
[null,null,null,null,"宮崎県","東諸県郡綾町","45383"]
[null,null,null,null,"宮崎県","児湯郡高鍋町","45401"]
[null,null,null,null,"宮崎県","児湯郡新富町","45402"]
[null,null,null,null,"宮崎県","児湯郡西米良村","45403"]
[null,null,null,null,"宮崎県","児湯郡木城町","45404"]
[null,null,null,null,"宮崎県","児湯郡川南町","45405"]
[null,null,null,null,"宮崎県","児湯郡都農町","45406"]
[null,null,null,null,"宮崎県","東臼杵郡門川町","45421"]
[null,null,null,null,"宮崎県","東臼杵郡諸塚村","45429"]
[null,null,null,null,"宮崎県","東臼杵郡椎葉村","45430"]
[null,null,null,null,"宮崎県","東臼杵郡美郷町","45431"]
[null,null,null,null,"宮崎県","西臼杵郡高千穂町","45441"]
[null,null,null,null,"宮崎県","西臼杵郡日之影町","45442"]
[null,null,null,null,"宮崎県","西臼杵郡五ヶ瀬町","45443"]
[null,null,null,null,"鹿児島県","鹿児島市","46201"]
[null,null,null,null,"鹿児島県","鹿屋市","46203"]
[null,null,null,null,"鹿児島県","枕崎市","46204"]
[null,null,null,null,"鹿児島県","串木野市","46205"]
[null,null,null,null,"鹿児島県","阿久根市","46206"]
[null,null,null,null,"鹿児島県","出水市","46208"]
[null,null,null,null,"鹿児島県","指宿市","46210"]
[null,null,null,null,"鹿児島県","加世田市","46211"]
[null,null,null,null,"鹿児島県","西之表市","46213"]
[null,null,null,null,"鹿児島県","垂水市","46214"]
[null,null,null,null,"鹿児島県","薩摩川内市","46215"]
[null,null,null,null,"鹿児島県","日置市","46216"]
[null,null,null,null,"鹿児島県","曽於市","46217"]
[null,null,null,null,"鹿児島県","霧島市","46218"]
[null,null,null,null,"鹿児島県","志布志市","46221"]
[null,null,null,null,"鹿児島県","奄美市","46222"]
[null,null,null,null,"鹿児島県","南九州市","46223"]
[null,null,null,null,"鹿児島県","伊佐市","46224"]
[null,null,null,null,"鹿児島県","姶良市","46225"]
[null,null,null,null,"鹿児島県","鹿児島郡三島村","46303"]
[null,null,null,null,"鹿児島県","鹿児島郡十島村","46304"]
[null,null,null,null,"鹿児島県","日置郡市来町","46361"]
[null,null,null,null,"鹿児島県","日置郡金峰町","46368"]
[null,null,null,null,"鹿児島県","薩摩郡さつま町","46392"]
[null,null,null,null,"鹿児島県","出水郡長島町","46404"]
[null,null,null,null,"鹿児島県","姶良郡湧水町","46452"]
[null,null,null,null,"鹿児島県","曽於郡大崎町","46468"]
[null,null,null,null,"鹿児島県","肝属郡東串良町","46482"]
[null,null,null,null,"鹿児島県","肝属郡錦江町","46490"]
[null,null,null,null,"鹿児島県","肝属郡南大隈町","46491"]
[null,null,null,null,"鹿児島県","肝属郡肝付町","46492"]
[null,null,null,null,"鹿児島県","熊毛郡中種子町","46501"]
[null,null,null,null,"鹿児島県","熊毛郡南種子町","46502"]
[null,null,null,null,"鹿児島県","熊毛郡屋久島町","46505"]
[null,null,null,null,"鹿児島県","大島郡大和村","46523"]
[null,null,null,null,"鹿児島県","大島郡宇検村","46524"]
[null,null,null,null,"鹿児島県","大島郡瀬戸内町","46525"]
[null,null,null,null,"鹿児島県","大島郡龍郷町","46527"]
[null,null,null,null,"鹿児島県","大島郡喜界町","46529"]
[null,null,null,null,"鹿児島県","大島郡徳之島町","46530"]
[null,null,null,null,"鹿児島県","大島郡天城町","46531"]
[null,null,null,null,"鹿児島県","大島郡伊仙町","46532"]
[null,null,null,null,"鹿児島県","大島郡和泊町","46533"]
[null,null,null,null,"鹿児島県","大島郡知名町","46534"]
[null,null,null,null,"鹿児島県","大島郡与論町","46535"]
[null,null,null,null,"沖縄県","那覇市","47201"]
[null,null,null,null,"沖縄県","宜野湾市","47205"]
[null,null,null,null,"沖縄県","平良市","47206"]
[null,null,null,null,"沖縄県","石垣市","47207"]
[null,null,null,null,"沖縄県","浦添市","47208"]
[null,null,null,null,"沖縄県","名護市","47209"]
[null,null,null,null,"沖縄県","糸満市","47210"]
[null,null,null,null,"沖縄県","沖縄市","47211"]
[null,null,null,null,"沖縄県","豊見城市","47212"]
[null,null,null,null,"沖縄県","うるま市","47213"]
[null,null,null,null,"沖縄県","南城市","47215"]
[null,null,null,null,"沖縄県","国頭郡国頭村","47301"]
[null,null,null,null,"沖縄県","国頭郡大宜味村","47302"]
[null,null,null,null,"沖縄県","国頭郡東村","47303"]
[null,null,null,null,"沖縄県","国頭郡今帰仁村","47306"]
[null,null,null,null,"沖縄県","国頭郡本部町","47308"]
[null,null,null,null,"沖縄県","国頭郡恩納村","47311"]
[null,null,null,null,"沖縄県","国頭郡宜野座村","47313"]
[null,null,null,null,"沖縄県","国頭郡金武町","47314"]
[null,null,null,null,"沖縄県","国頭郡伊江村","47315"]
[null,null,null,null,"沖縄県","中頭郡読谷村","47324"]
[null,null,null,null,"沖縄県","中頭郡嘉手納町","47325"]
[null,null,null,null,"沖縄県","中頭郡北谷町","47326"]
[null,null,null,null,"沖縄県","中頭郡北中城村","47327"]
[null,null,null,null,"沖縄県","中頭郡中城村","47328"]
[null,null,null,null,"沖縄県","中頭郡西原町","47329"]
[null,null,null,null,"沖縄県","島尻郡与那原町","47348"]
[null,null,null,null,"沖縄県","島尻郡南風原町","47350"]
[null,null,null,null,"沖縄県","島尻郡渡嘉敷村","47353"]
[null,null,null,null,"沖縄県","島尻郡座間味村","47354"]
[null,null,null,null,"沖縄県","島尻郡粟国村","47355"]
[null,null,null,null,"沖縄県","島尻郡渡名喜村","47356"]
[null,null,null,null,"沖縄県","島尻郡南大東村","47357"]
[null,null,null,null,"沖縄県","島尻郡北大東村","47358"]
[null,null,null,null,"沖縄県","島尻郡伊平屋村","47359"]
[null,null,null,null,"沖縄県","島尻郡伊是名村","47360"]
[null,null,null,null,"沖縄県","島尻郡久米島町","47361"]
[null,null,null,null,"沖縄県","島尻郡八重瀬町","47362"]
[null,null,null,null,"沖縄県","宮古郡城辺町","47371"]
[null,null,null,null,"沖縄県","宮古郡下地町","47372"]
[null,null,null,null,"沖縄県","宮古郡上野村","47373"]
[null,null,null,null,"沖縄県","宮古郡伊良部町","47374"]
[null,null,null,null,"沖縄県","宮古郡多良間村","47375"]
[null,null,null,null,"沖縄県","八重山郡竹富町","47381"]
[null,null,null,null,"沖縄県","八重山郡与那国町","47382"]

{"sheet":"(般)有資格コード","index":21,"n_rows":83,"n_cols":31,"rows_kept":83,"cut":false,"hidden":false,"merged":[[48,1,49,1],[50,1,81,1],[44,1,46,1],[7,1,22,1],[23,1,25,1],[26,1,39,1],[40,1,42,1]]}
["一般建設業の有資格コード一覧表"]
[]
[null,null,null,"土","建","大","左","と","石","屋","電","管","タ","鋼","筋","ほ","し","板","ガ","塗","防","内","機","絶","通","園","井","具","水","消","清"]
["01",null,"法第7条第2号イ該当（所定学科+実務経験）",1,1,1,1,1,1,1,1,1,1,1,1,1,1,1,1,1,1,1,1,1,1,1,1,1,1,1,1]
["02",null,"法第7条第2号ロ該当（10年以上の実務経験）",4,4,4,4,4,4,4,4,4,4,4,4,4,4,4,4,4,4,4,4,4,4,4,4,4,4,4,4]
["03"]
["04"]
["11","建設業法","1級建設機械施工管理技士",7,null,null,null,7,null,null,null,null,null,null,null,7]
["12",null,"2級建設機械施工管理技士",7,null,null,null,7,null,null,null,null,null,null,null,7]
["13",null,"1級土木施工管理技士",7,null,null,null,7,7,null,null,null,null,7,null,7,7,null,null,7,null,null,null,null,null,null,null,null,7]
["14",null,"2級土木施工管理技士（土木）",7,null,null,null,7,7,null,null,null,null,7,null,7,7,null,null,null,null,null,null,null,null,null,null,null,7]
["15",null,"2級土木施工管理技士（鋼構造物塗装）",null,null,null,null,null,null,null,null,null,null,null,null,null,null,null,null,7]
["16",null,"2級土木施工管理技士（薬液注入）",null,null,null,null,7]
["20",null,"1級建築施工管理技士",null,7,7,7,7,7,7,null,null,7,7,7,null,null,7,7,7,7,7,null,7,null,null,null,7]
["21",null,"2級建築施工管理技士（建築）",null,7]
["22",null,"2級建築施工管理技士（躯体）",null,null,7,null,7,null,null,null,null,7,7,7]
["23",null,"2級建築施工管理技士（仕上げ）",null,null,7,7,null,7,7,null,null,7,null,null,null,null,7,7,7,7,7,null,7,null,null,null,7]
["27",null,"1級電気施工管理技士",null,null,null,null,null,null,null,7]
["28",null,"2級電気施工管理技士",null,null,null,null,null,null,null,7]
["29",null,"1級管工事施工管理技士",null,null,null,null,null,null,null,null,7]
["30",null,"2級管工事施工管理技士",null,null,null,null,null,null,null,null,7]
["33",null,"1級造園施工管理技士",null,null,null,null,null,null,null,null,null,null,null,null,null,null,null,null,null,null,null,null,null,null,7]
["34",null,"2級造園施工管理技士",null,null,null,null,null,null,null,null,null,null,null,null,null,null,null,null,null,null,null,null,null,null,7]
["37","建築士法","1級建築士",null,7,7,null,null,null,7,null,null,7,7,null,null,null,null,null,null,null,7]
["38",null,"2級建築士",null,7,7,null,null,null,7,null,null,7,null,null,null,null,null,null,null,null,7]
["39",null,"木造建築士",null,null,7]
["41","技術士法","建設",7,null,null,null,7,null,null,7,null,null,null,null,7,7,null,null,null,null,null,null,null,null,7]
["42",null,"建設「鋼構造及びコンクリート」",7,null,null,null,7,null,null,7,null,null,7,null,7,7,null,null,null,null,null,null,null,null,7]
["43",null,"農業「農業土木」",7,null,null,null,7]
["44",null,"電気・電子",null,null,null,null,null,null,null,7,null,null,null,null,null,null,null,null,null,null,null,null,null,7]
["45",null,"機械",null,null,null,null,null,null,null,null,null,null,null,null,null,null,null,null,null,null,null,7]
["46",null,"機械「流体機械」又は「暖冷房及び冷凍機械」",null,null,null,null,null,null,null,null,7,null,null,null,null,null,null,null,null,null,null,7]
["47",null,"水道",null,null,null,null,null,null,null,null,7,null,null,null,null,null,null,null,null,null,null,null,null,null,null,null,null,7]
["48",null,"水道「上水道及び工業用水道」",null,null,null,null,null,null,null,null,7,null,null,null,null,null,null,null,null,null,null,null,null,null,null,7,null,7]
["49",null,"水道「水産土木」",7,null,null,7,null,null,null,null,null,null,null,null,null,7]
["50",null,"林業「林業」",null,null,null,null,null,null,null,null,null,null,null,null,null,null,null,null,null,null,null,null,null,null,7]
["51",null,"林業「森林土木」",7,null,null,null,7,null,null,null,null,null,null,null,null,null,null,null,null,null,null,null,null,null,7]
["52",null,"衛生工学",null,null,null,null,null,null,null,null,7]
["53",null,"衛生工学「水質管理」",null,null,null,null,null,null,null,null,7,null,null,null,null,null,null,null,null,null,null,null,null,null,null,null,null,7]
["54",null,"衛生工学「廃棄物処理」又は「汚物処理」",null,null,null,null,null,null,null,null,7,null,null,null,null,null,null,null,null,null,null,null,null,null,null,null,null,7,null,7]
["55","電気工事士法電気事業法","第1種電気工事士",null,null,null,null,null,null,null,7]
["56",null,"第2種電気工事士",null,null,null,null,null,null,null,7]
["58",null,"電気主任技術者（第1種～第3種）",null,null,null,null,null,null,null,7]
["59","電気通信事業法","電気通信主任技術者",null,null,null,null,null,null,null,null,null,null,null,null,null,null,null,null,null,null,null,null,null,7]
["61","民間資格","地すべり防止工事士",null,null,null,null,7,null,null,null,null,null,null,null,null,null,null,null,null,null,null,null,null,null,null,7]
["62",null,"建築設備士",null,null,null,null,null,null,null,7,7]
["63",null,"1級計装士",null,null,null,null,null,null,null,7,7]
["65","水道法","給水装置工事主任技術者",null,null,null,null,null,null,null,null,7]
["68","消防法","甲種消防設備士",null,null,null,null,null,null,null,null,null,null,null,null,null,null,null,null,null,null,null,null,null,null,null,null,null,null,7]
["69",null,"乙種消防設備士",null,null,null,null,null,null,null,null,null,null,null,null,null,null,null,null,null,null,null,null,null,null,null,null,null,null,7]
["66","職業能力開発促進法","ウエルポイント施工",null,null,null,null,7]
["67",null,"路面表示施工",null,null,null,null,null,null,null,null,null,null,null,null,null,null,null,null,7]
["71",null,"建築大工",null,null,7]
["64",null,"型枠施工",null,null,7]
["72",null,"左官",null,null,null,7]
["73",null,"とび・とび工・型枠施工・コンクリート圧送施工",null,null,null,null,7]
["74",null,"空気調和設備配管",null,null,null,null,null,null,null,null,7]
["75",null,"給排水衛生設備配管",null,null,null,null,null,null,null,null,7]
["76",null,"配管・配管工",null,null,null,null,null,null,null,null,7]
["70",null,"建築板金「ダクト板金作業」",null,null,null,null,null,null,null,null,7]
["77",null,"タイル張り・タイル張り工",null,null,null,null,null,null,null,null,null,7]
["78",null,"築炉・築炉工・れんが積み",null,null,null,null,null,null,null,null,null,7]
["79",null,"ブロック建築・ブロック建築工・コンクリート積みブロック施工",null,null,null,null,null,7,null,null,null,7]
["80",null,"石工・石材施工・石積み",null,null,null,null,null,7]
["81",null,"鉄工・製罐",null,null,null,null,null,null,null,null,null,null,7]
["82",null,"鉄筋組立て・鉄筋施工",null,null,null,null,null,null,null,null,null,null,null,7]
["83",null,"工場板金",null,null,null,null,null,null,null,null,null,null,null,null,null,null,7]
["84",null,"板金「建築板金作業」建築板金「内外装板金作業」・板金工「建築板金作業」",null,null,null,null,null,null,7,null,null,null,null,null,null,null,7]
["85",null,"板金・板金工・打出し板金",null,null,null,null,null,null,null,null,null,null,null,null,null,null,7]
["86",null,"かわらぶき・スレート施工",null,null,null,null,null,null,7]
["87",null,"ガラス施工",null,null,null,null,null,null,null,null,null,null,null,null,null,null,null,7]
["88",null,"塗装・木工塗装・木工塗装工",null,null,null,null,null,null,null,null,null,null,null,null,null,null,null,null,7]
["89",null,"建築塗装・建築塗装士",null,null,null,null,null,null,null,null,null,null,null,null,null,null,null,null,7]
["90",null,"金属塗装・金属塗装工",null,null,null,null,null,null,null,null,null,null,null,null,null,null,null,null,7]
["91",null,"噴霧塗装",null,null,null,null,null,null,null,null,null,null,null,null,null,null,null,null,7]
["92",null,"畳製作・畳工",null,null,null,null,null,null,null,null,null,null,null,null,null,null,null,null,null,null,7]
["93",null,"内装仕上げ施工・カーテン施工・天井仕上げ施工・床仕上施工・表装・表具・表具工",null,null,null,null,null,null,null,null,null,null,null,null,null,null,null,null,null,null,7]
["94",null,"熱絶縁施工",null,null,null,null,null,null,null,null,null,null,null,null,null,null,null,null,null,null,null,null,7]
["95",null,"建具製作・建具工・木工・カーテンウォール施工・サッシ施工",null,null,null,null,null,null,null,null,null,null,null,null,null,null,null,null,null,null,null,null,null,null,null,null,7]
["96",null,"造園",null,null,null,null,null,null,null,null,null,null,null,null,null,null,null,null,null,null,null,null,null,null,7]
["97",null,"防水施工",null,null,null,null,null,null,null,null,null,null,null,null,null,null,null,null,null,7]
["98",null,"さく井",null,null,null,null,null,null,null,null,null,null,null,null,null,null,null,null,null,null,null,null,null,null,null,7]
["99","その他","（実務経験の緩和措置）",null,null,7,null,7,null,7,null,null,null,null,null,null,7,null,7,null,7,7,null,7,null,null,null,null,7]

{"sheet":"(特)有資格コード","index":22,"n_rows":83,"n_cols":31,"rows_kept":83,"cut":false,"hidden":false,"merged":[[48,1,49,1],[50,1,81,1],[44,1,46,1],[7,1,22,1],[23,1,25,1],[26,1,39,1],[40,1,42,1]]}
["特定建設業の有資格コード一覧表"]
[]
[null,null,null,"土","建","大","左","と","石","屋","電","管","タ","鋼","筋","ほ","し","板","ガ","塗","防","内","機","絶","通","園","井","具","水","消","清"]
["01",null,"法第15条第2号ロ該当（所定学科+実務経験）",null,null,2,2,2,2,2,null,null,2,null,2,null,2,2,2,2,2,2,2,2,2,null,2,2,2,2,2]
["02",null,"法第15条第2号ロ該当（10年以上の実務経験）",null,null,5,5,5,5,5,null,null,5,null,5,null,5,5,5,5,5,5,5,5,5,null,5,5,5,5,5]
["03",null,"法第15条第2号ハ該当（同号イと同等以上）",3,3,null,null,null,null,null,3,3,null,3,null,3,null,null,null,null,null,null,null,null,null,3]
["04",null,"法第15条第2号ハ該当（同号ロと同等以上）",null,null,6,6,6,6,6,null,null,6,null,6,null,6,6,6,6,6,6,6,6,6,null,6,6,6,6,6]
["11","建設業法","1級建設機械施工管理技士",9,null,null,null,9,null,null,null,null,null,null,null,9]
["12",null,"2級建設機械施工管理技士",null,null,null,null,8]
["13",null,"1級土木施工管理技士",9,null,null,null,9,9,null,null,null,null,9,null,9,9,null,null,9,null,null,null,null,null,null,null,null,9]
["14",null,"2級土木施工管理技士（土木）",null,null,null,null,8,8,null,null,null,null,null,null,null,8,null,null,null,null,null,null,null,null,null,null,null,8]
["15",null,"2級土木施工管理技士（鋼構造物塗装）",null,null,null,null,null,null,null,null,null,null,null,null,null,null,null,null,8]
["16",null,"2級土木施工管理技士（薬液注入）",null,null,null,null,8]
["20",null,"1級建築施工管理技士",null,9,9,9,9,9,9,null,null,9,9,9,null,null,9,9,9,9,9,null,9,null,null,null,9]
["21",null,"2級建築施工管理技士（建築）"]
["22",null,"2級建築施工管理技士（躯体）",null,null,8,null,8,null,null,null,null,8,null,8]
["23",null,"2級建築施工管理技士（仕上げ）",null,null,8,8,null,8,8,null,null,8,null,null,null,null,8,8,8,8,8,null,8,null,null,null,8]
["27",null,"1級電気施工管理技士",null,null,null,null,null,null,null,9]
["28",null,"2級電気施工管理技士"]
["29",null,"1級管工事施工管理技士",null,null,null,null,null,null,null,null,9]
["30",null,"2級管工事施工管理技士"]
["33",null,"1級造園施工管理技士",null,null,null,null,null,null,null,null,null,null,null,null,null,null,null,null,null,null,null,null,null,null,9]
["34",null,"2級造園施工管理技士"]
["37","建築士法","1級建築士",null,9,9,null,null,null,9,null,null,9,9,null,null,null,null,null,null,null,9]
["38",null,"2級建築士",null,null,8,null,null,null,8,null,null,8,null,null,null,null,null,null,null,null,8]
["39",null,"木造建築士",null,null,8]
["41","技術士法","建設",9,null,null,null,9,null,null,9,null,null,null,null,9,9,null,null,null,null,null,null,null,null,9]
["42",null,"建設「鋼構造及びコンクリート」",9,null,null,null,9,null,null,9,null,null,9,null,9,9,null,null,null,null,null,null,null,null,9]
["43",null,"農業「農業土木」",9,null,null,null,9]
["44",null,"電気・電子",null,null,null,null,null,null,null,9,null,null,null,null,null,null,null,null,null,null,null,null,null,9]
["45",null,"機械",null,null,null,null,null,null,null,null,null,null,null,null,null,null,null,null,null,null,null,9]
["46",null,"機械「流体機械」又は「暖冷房及び冷凍機械」",null,null,null,null,null,null,null,null,9,null,null,null,null,null,null,null,null,null,null,9]
["47",null,"水道",null,null,null,null,null,null,null,null,9,null,null,null,null,null,null,null,null,null,null,null,null,null,null,null,null,9]
["48",null,"水道「上水道及び工業用水道」",null,null,null,null,null,null,null,null,9,null,null,null,null,null,null,null,null,null,null,null,null,null,null,9,null,9]
["49",null,"水道「水産土木」",9,null,null,9,null,null,null,null,null,null,null,null,null,9]
["50",null,"林業「林業」",null,null,null,null,null,null,null,null,null,null,null,null,null,null,null,null,null,null,null,null,null,null,9]
["51",null,"林業「森林土木」",9,null,null,null,9,null,null,null,null,null,null,null,null,null,null,null,null,null,null,null,null,null,9]
["52",null,"衛生工学",null,null,null,null,null,null,null,null,9]
["53",null,"衛生工学「水質管理」",null,null,null,null,null,null,null,null,9,null,null,null,null,null,null,null,null,null,null,null,null,null,null,null,null,9]
["54",null,"衛生工学「廃棄物処理」又は「汚物処理」",null,null,null,null,null,null,null,null,9,null,null,null,null,null,null,null,null,null,null,null,null,null,null,null,null,9,null,9]
["55",null,"第1種電気工事士"]
["56",null,"第2種電気工事士"]
["58",null,"電気主任技術者（第1種～第3種）"]
["59","電気通信事業法","電気通信主任技術者",null,null,null,null,null,null,null,null,null,null,null,null,null,null,null,null,null,null,null,null,null,8]
["61","民間資格","地すべり防止工事士",null,null,null,null,8,null,null,null,null,null,null,null,null,null,null,null,null,null,null,null,null,null,null,8]
["62",null,"建築設備士"]
["63",null,"1級計装士"]
["65","水道法","給水装置工事主任技術者"]
["68","消防法","甲種消防設備士",null,null,null,null,null,null,null,null,null,null,null,null,null,null,null,null,null,null,null,null,null,null,null,null,null,null,8]
["69",null,"乙種消防設備士",null,null,null,null,null,null,null,null,null,null,null,null,null,null,null,null,null,null,null,null,null,null,null,null,null,null,8]
["66","職業能力開発促進法","ウエルポイント施工",null,null,null,null,8]
["67",null,"路面表示施工",null,null,null,null,null,null,null,null,null,null,null,null,null,null,null,null,8]
["71",null,"建築大工",null,null,8]
["64",null,"型枠施工",null,null,8]
["72",null,"左官",null,null,null,8]
["73",null,"とび・とび工・型枠施工・コンクリート圧送施工",null,null,null,null,8]
["74",null,"空気調和設備配管"]
["75",null,"給排水衛生設備配管"]
["76",null,"配管・配管工"]
["70",null,"建築板金「ダクト板金作業」",null,null,null,null,null,null,null,null,8]
["77",null,"タイル張り・タイル張り工",null,null,null,null,null,null,null,null,null,8]
["78",null,"築炉・築炉工・れんが積み",null,null,null,null,null,null,null,null,null,8]
["79",null,"ブロック建築・ブロック建築工・コンクリート積みブロック施工",null,null,null,null,null,8,null,null,null,8]
["80",null,"石工・石材施工・石積み",null,null,null,null,null,8]
["81",null,"鉄工・製罐"]
["82",null,"鉄筋組立て・鉄筋施工",null,null,null,null,null,null,null,null,null,null,null,8]
["83",null,"工場板金",null,null,null,null,null,null,null,null,null,null,null,null,null,null,8]
["84",null,"板金「建築板金作業」建築板金「内外装板金作業」・板金工「建築板金作業」",null,null,null,null,null,null,8,null,null,null,null,null,null,null,8]
["85",null,"板金・板金工・打出し板金",null,null,null,null,null,null,null,null,null,null,null,null,null,null,8]
["86",null,"かわらぶき・スレート施工",null,null,null,null,null,null,8]
["87",null,"ガラス施工",null,null,null,null,null,null,null,null,null,null,null,null,null,null,null,8]
["88",null,"塗装・木工塗装・木工塗装工",null,null,null,null,null,null,null,null,null,null,null,null,null,null,null,null,8]
["89",null,"建築塗装・建築塗装士",null,null,null,null,null,null,null,null,null,null,null,null,null,null,null,null,8]
["90",null,"金属塗装・金属塗装工",null,null,null,null,null,null,null,null,null,null,null,null,null,null,null,null,8]
["91",null,"噴霧塗装",null,null,null,null,null,null,null,null,null,null,null,null,null,null,null,null,8]
["92",null,"畳製作・畳工",null,null,null,null,null,null,null,null,null,null,null,null,null,null,null,null,null,null,8]
["93",null,"内装仕上げ施工・カーテン施工・天井仕上げ施工・床仕上施工・表装・表具・表具工",null,null,null,null,null,null,null,null,null,null,null,null,null,null,null,null,null,null,8]
["94",null,"熱絶縁施工",null,null,null,null,null,null,null,null,null,null,null,null,null,null,null,null,null,null,null,null,8]
["95",null,"建具製作・建具工・木工・カーテンウォール施工・サッシ施工",null,null,null,null,null,null,null,null,null,null,null,null,null,null,null,null,null,null,null,null,null,null,null,null,8]
["96",null,"造園"]
["97",null,"防水施工",null,null,null,null,null,null,null,null,null,null,null,null,null,null,null,null,null,8]
["98",null,"さく井",null,null,null,null,null,null,null,null,null,null,null,null,null,null,null,null,null,null,null,null,null,null,null,8]
["99","その他","（実務経験の緩和措置）",null,null,8,null,8,null,8,null,null,null,null,null,null,8,null,8,null,8,8,null,8,null,null,null,null,8]